{"text_format":"1","workbook":"xlsx","n_sheets":12,"sheets":["Статус заполнения","Форма заявки","Спр_Показатели компонентов","МСП","Стартовая страница","Справочники","Справочник процессов","Процессы прочие","Справка","Шаблоны","Шаблоны фигур","Динамические справочники"],"not_rendered":{"charts":0,"images":14,"macros":1,"external_links":0,"defined_names":109,"comments":0,"pivot_tables":0},"unopened":[],"bounds":{"document_bytes":16777216,"sheet_cells":100000,"rows_first":2000,"rows_last":500,"rows_between":2000,"halvings":0,"cell_chars":16384,"cell_head_chars":4096},"cells_cut":0,"cells_raw":0,"read":"whole","date_system":"1900"}

{"sheet":"Статус заполнения","index":0,"n_rows":6,"n_cols":3,"rows_kept":6,"cut":false,"hidden":true,"merged":[]}
[]
[]
[]
[]
[]
[null,null,"Форма находится в разработке"]

{"sheet":"Форма заявки","index":1,"n_rows":330,"n_cols":6,"rows_kept":330,"cut":false,"hidden":true,"merged":[[125,4,125,7]]}
[]
[]
[]
[]
[]
[null,null,null,null,"Раздел №1. Общая информация о проекте"]
[]
[null,null,null,null,null,"Тип заявки"]
[null,null,null,null,null,"Заявка на целевой инновационный проект (включает стадии НИР, ОКР, ОПР, Внедрение)"]
[]
[null,null,null,null,"Краткая информация о проекте"]
[]
[null,null,null,null,"1.1","Наименование проекта"]
[null,null,null,null,null,"Поле для ввода наименования проекта"]
[]
[null,null,null,null,{"$f":"NextRecNum(E13,2)","v":"1.2"},"Выберите из списка соответствующее проекту направление инновационного развития Компании. Если в списке нет нужного наименования - впишите его самостоятельно"]
[]
[]
[null,null,null,null,{"$f":"NextRecNum(E16,2)","v":"1.3"},"Краткое резюме проекта"]
[null,null,null,null,null,"Поле для ввода краткого резюме проекта"]
[]
[null,null,null,null,{"$f":"NextRecNum(E19,2)","v":"1.4"},"Краткое описание проблематики, на преодоление которой направлен проект"]
[null,null,null,null,null,"Поле для ввода проблематики проекта"]
[]
[null,null,null,null,"Информация о заявителе"]
[]
[null,null,null,null,{"$f":"NextRecNum(E22,2)","v":"1.5"},"Ф.И.О. Инициатора проекта"]
[null,null,null,null,null,"Поле для ввода ФИО инициатора проекта"]
[]
[null,null,null,null,{"$f":"NextRecNum(E27,2)","v":"1.6"},"Ф.И.О. Лица, заполнившего анкету"]
[null,null,null,null,null,"Поле для ввода ФИО лица, заполнившего анкету"]
[]
[null,null,null,null,{"$f":"NextRecNum(E30,2)","v":"1.7"},"Координаты для связи - телефон"]
[null,null,null,null,null,"Поле для ввода телефона"]
[]
[null,null,null,null,{"$f":"NextRecNum(E33,2)","v":"1.8"},"Координаты для связи - email"]
[null,null,null,null,null,"Поле для ввода email"]
[]
[null,null,null,null,{"$f":"NextRecNum(E36,2)","v":"1.9"},"Организация - инициатор предложения"]
[null,null,null,null,null,"Поле для ввода наименования организации - инициатора предложения"]
[]
[null,null,null,null,{"$f":"NextRecNum(E39,2)","v":"1.10"},"Выберите из списка тип организации - инициатора предложения. Если в списке нет нужного наименования - впишите его самостоятельно"]
[]
[]
[null,null,null,null,{"$f":"NextRecNum(E42,2)","v":"1.11"},"Укажите, является ли организация - инициатор предложения предприятием малого или среднего бизнеса"]
[]
[null,null,null,null,null,{"$f":"IF(F46=\"Да\",HYPERLINK(МСП!A1&\"MSB\",\"Заполните обоснование\"),\"\")","v":""}]
[]
[null,null,null,null,"Текущая стадия проработки"]
[]
[null,null,null,null,{"$f":"NextRecNum(E45,2)","v":"1.12"},"Выберите текущую стадию проработки из списка. Если в списке нет нужного наименования - впишите его самостоятельно"]
[]
[]
[null,null,null,null,{"$f":"NextRecNum(E51,2)","v":"1.13"},"Укажите какие результаты уже достигнуты. Для добавления нового результата нажмите кнопку \"Добавить достигнутый результат\""]
[]
[null,null,null,null,{"$f":"'Форма заявки'!$E$54&\".1\"","v":"1.13.1"},"Результат №1"]
[]
[null,null,null,null,{"$f":"'Форма заявки'!$E$54&\".1.1\"","v":"1.13.1.1"},"Выберите тип достигнутого результата из списка. Если в списке нет нужного наименования - впишите его самостоятельно"]
[]
[]
[null,null,null,null,{"$f":"'Форма заявки'!$E$54&\".1.2\"","v":"1.13.1.2"},"Укажите объекты интеллектуальной собственности, относящиеся к результату. Для добавления нажмите кнопку \"Добавить объект интеллектуальной собственности\""]
[]
[null,null,null,null,{"$f":"'Форма заявки'!$E$54&\".1.2.1\"","v":"1.13.1.2.1"},"Объект интеллектуальной собственности №1"]
[]
[null,null,null,null,{"$f":"'Форма заявки'!$E$54&\".1.2.1.1\"","v":"1.13.1.2.1.1"},"Укажите тип объекта интеллектуальной собственности"]
[]
[null,null,null,null,{"$f":"'Форма заявки'!$E$54&\".1.2.1.2\"","v":"1.13.1.2.1.2"},"Укажите территорию правовой защиты ОИС. Если в списке нет нужного наименования - впишите его самостоятельно"]
[]
[]
[]
[]
[]
[]
[]
[null,null,null,null,"Описание инновационного продукта / новой технологии (НТ)"]
[null,null,null,null,{"$f":"NextRecNum(E54,2)","v":"1.14"},"Краткое описание инновационного продукта / новой технологии, принцип действия"]
[null,null,null,null,null,"Поле для ввода описания инновационного продукта / новой технологии"]
[]
[null,null,null,null,{"$f":"NextRecNum(E76,2)","v":"1.15"},"Укажите тип инновационного продукта, получаемого в результате реализации проекта, выбрав его из списка. При необходимости введите тип инновационного продукта самостоятельно."]
[]
[]
[null,null,null,null,{"$f":"NextRecNum(E79,2)","v":"1.16"},"Укажите назначение инновационного продукта, выбрав его из списка. При необходимости введите назначение инновационного продукта самостоятельно."]
[]
[]
[null,null,null,null,{"$f":"NextRecNum(E82,2)","v":"1.17"},"Перечислите потенциальных исполнителей работ"]
[null,null,null,null,null,"Поле для перечисления потенциальных исполнителей работ"]
[]
[null,null,null,null,{"$f":"NextRecNum(E85,2)","v":"1.18"},"Укажите перечень эффектов инновации. Для добавления нажмите кнопку \"Добавить эффект инновации\""]
[null,null,null,null,{"$f":"'Форма заявки'!$E$88&\".1\"","v":"1.18.1"},"Эффект 1. Выберите тип эффекта из списка. Если в списке нет нужного наименования - впишите его самостоятельно"]
[]
[]
[]
[]
[]
[]
[]
[null,null,null,null,"Раздел №2. Влияние инновационного продукта / НТ на бизнес-процессы НК «Роснефть»"]
[]
[null,null,null,null,"Влияние Инновационного продукта / новой технологии на бизнес-процессы"]
[]
[null,null,null,null,null,"Последовательно выберите из списка наименования бизнес-процессов на которые будет оказываться воздействие инновационного проекта. Процессы 1-4 уровней последовательно детализируются"]
[]
[null,null,null,null,{"$f":"NextRecNum(E88,1,FALSE)","v":"2.1"},"Группа бизнес-процессов"]
[null,null,null,null,null,"БП1 ГРУППА ОСНОВНЫХ ПРОЦЕССОВ "]
[]
[null,null,null,null,{"$f":"NextRecNum(E103,2)","v":"2.2"},"Подгруппа бизнес-процессов"]
[]
[]
[null,null,null,null,{"$f":"NextRecNum(E106,2)","v":"2.3"},"Бизнес-процесс 1-го уровня"]
[]
[]
[null,null,null,null,{"$f":"NextRecNum(E109,2)","v":"2.4"},"Бизнес-процесс 2-го уровня"]
[]
[]
[null,null,null,null,{"$f":"NextRecNum(E112,2)","v":"2.5"},"Бизнес-процесс 3-го уровня"]
[]
[]
[null,null,null,null,{"$f":"NextRecNum(E115,2)","v":"2.6"},"В том случае, если Вы хотите продолжить детализацию, самостоятельно опишите процесс более низкого уровня.\nТакже Вы можете описать более детальные процессы, используя кнопку \"Добавить процесс\"."]
[]
[]
[]
[null,null,null,null,{"$f":"NextRecNum(E118,2)","v":"2.7"},"Укажите показатель, на улучшение которого направлен инновационный проект. \nДанный показатель должен характеризовать последний бизнес-процесс (самый детальный уровень). \nВ том случае, если проект воздействует на несколько показателей - добавьте их, используя кнопку \"Добавить показатель\""]
[]
[]
[]
[null,null,null,null,"Описание компонентов инновации\n(Технико-экономическая модель влияния инновационного продукта / новой технологии на показатели бизнес-процессов)"]
[]
[null,null,null,null,{"$f":"NextRecNum(E122,2)","v":"2.8"},"Вы можете добавить в описание компоненты инновации и показатели, которые их характеризуют.\nНажмите на кнопку \"Добавить компонент инновации\" и выберите категорию и тип компонента \nНеобходимо описать как минимум один компонент инноваций и его характеристики."]
[]
[null,null,null,null,"2.8.1","Компонент инновации"]
[]
[null,null,null,null,"2.8.1.1","Выберите категорию компонента"]
[]
[]
[null,null,null,null,"2.8.1.2","Выберите тип из списка. Если в списке нет нужного значения - впишите его самостоятельно"]
[]
[]
[null,null,null,null,"2.8.1.3","Введите наименование компонента инновации"]
[null,null,null,null,null,"Поле для ввода наименования компонента инновации"]
[]
[null,null,null,null,"2.8.1.4","Укажите показатели, являющиеся характеристиками компонента инновации. Данные показатели должны оказывать влияние на характеристики процесса или других компонентов инновационного продукта"]
[null,null,null,null,null,"Показатель №1"]
[]
[null,null,null,null,"2.8.1.4.1"]
[]
[]
[null,null,null,null,null,"Для полноты описания показателя необходимо указать, на какой показатель процесса или других компонентов инновации он влияет.\nДля этого нужно выбрать зависимый показатель и указать тип воздействия"]
[null,null,null,null,"2.8.1.4.1.1","Зависимый показатель №1"]
[]
[null,null,null,null,"2.8.1.4.1.1.1","Выберите зависимый показатель из списка"]
[]
[]
[null,null,null,null,"2.8.1.4.1.1.2","Выберите тип зависимости из списка или введите его вручную"]
[]
[]
[null,null,null,null,"2.8.1.4.1.1.3","Оцените степень изменения зависимого показателя в случае изменения влияющего показателя на 1% (в процентном выражении)"]
[null,null,null,null,null,"Поле для ввода степени зависимости показателя (%)"]
[]
[]
[]
[]
[]
[]
[]
[]
[]
[]
[]
[null,null,null,null,"Раздел №3. Этапы работ по проекту"]
[]
[null,null,null,null,null,"Добавьте описание этапов проекта, нажимая на кнопки с названиями этапов. Должен быть описан как минимум один этап."]
[]
[]
[]
[]
[]
[null,null,null,"Этап НИР. Научно-исследовательские работы."]
[]
[null,null,null,null,"3.1.1","Укажите предполагаемые сроки реализации этапа"]
[null,null,null,null,null,"Поле для ввода сроков реализации. Пример: май 2015 - сентябрь 2015"]
[]
[null,null,null,null,"3.1.2","Укажите наименование дочернего общества Компании, привлеченного к выполнению этапа"]
[]
[]
[null,null,null,null,"Работы этапа"]
[null,null,null,null,null,"Опишите работы, входящие в состав этапа. Для добавления новой работы нажмите кнопку \"Добавить работу\""]
[null,null,null,null,null,"Работа №1"]
[]
[null,null,null,null,"3.1.3.1","Выберите наименование работы из списка. Если в списке нет нужного наименования - впишите его самостоятельно"]
[]
[]
[null,null,null,null,"3.1.3.2","Укажите компанию-подрядчика для выполнения работы"]
[null,null,null,null,null,"Поле для самостоятельного указания компании-подрядчика"]
[]
[null,null,null,null,"3.1.3.3","Укажите ориентировочную стоимость работ в рублях"]
[null,null,null,null,null,"Поле для самостоятельного ввода стоимости работы"]
[]
[null,null,null,null,"3.1.3.4","Перечислите организации, которые планируются к привлечению в ходе работ"]
[null,null,null,null,"3.1.3.4.1","Организация №1"]
[]
[null,null,null,null,"3.1.3.4.1.1","Введите наименование организации-соисполнителя работ"]
[null,null,null,null,null,"Поле для ввода наименования организации"]
[]
[null,null,null,null,"3.1.3.4.1.2","Выберите тип работ, исполняемых организацией, из списка. Если в списке нет нужного наименования - впишите его самостоятельно"]
[]
[]
[null,null,null,null,"3.1.3.4.1.3","Укажите ориентировочную стоимость работ, выполняемых организацией соисполнителем, в рублях"]
[null,null,null,null,null,"Поле для самостоятельного ввода стоимости работы"]
[]
[]
[]
[]
[null,null,null,null,"3.1.3.5","Укажите результаты работы. Для добавления нового результата нажмите кнопку \"Добавить результат работы\""]
[null,null,null,null,null,"Результат №1"]
[]
[null,null,null,null,"3.1.3.5.1","Выберите наименование результата работы из списка. Если в списке нет нужного наименования - впишите его самостоятельно"]
[]
[]
[]
[]
[]
[]
[]
[]
[]
[]
[null,null,null,null,"Раздел №4. Внедрение и коммерциализация. Аналоги"]
[]
[null,null,null,null,"Внедрение и коммерциализация"]
[]
[null,null,null,null,{"$f":"NextRecNum(NextRecNum(E128,1,0),1,0)","v":"4.1"},"Выберите способ коммерциализации инновационного продукта"]
[]
[]
[null,null,null,null,{"$f":"NextRecNum(E231,2)","v":"4.2"},"Укажите, каким образом будет обеспечиваться масштаб внедрения инновационного продукта"]
[]
[]
[null,null,null,null,{"$f":"NextRecNum(E234,2)","v":"4.3"},"Выберите тип объекта внедрения инновационного продукта из списка. При необходимости введите тип объекта внедрения самостоятельно."]
[]
[]
[null,null,null,null,{"$f":"NextRecNum(E237,2)","v":"4.4"},"Укажите оценочное количество объектов внедрения"]
[null,null,null,null,null,"Поле для ввода количества объектов внедрения"]
[]
[null,null,null,null,{"$f":"NextRecNum(E240,2)","v":"4.5"},"Перечислите компании, являющиеся потенциальными потребителями инновационной продукции. В случае отсутствия инфомации заполните поле значением \"Заявитель не располагает нужной информацией\""]
[null,null,null,null,null,"Поле для ввода наименований компаний - потребителей инновационной продукции"]
[]
[null,null,null,null,"Базовый аналог (текущий вариант)"]
[]
[null,null,null,null,{"$f":"NextRecNum(NextRecNum(E243,2),3)","v":"4.6.1"},"Опишите подход (технологию, продукт), применяемый в настоящее время, на изменение (замену) которого направлен предлагаемый инновационный проект. В случае отсутствия инфомации о базовом аналоге заполните поля данного блока значением \"Заявитель не располагает нужной информацией\""]
[]
[]
[null,null,null,null,"4.6.1.1","Укажите наименование базового аналога"]
[null,null,null,null,null,"Поле для самостоятельного ввода наименования базового аналога"]
[]
[null,null,null,null,"4.6.1.2","Введите наименование компании, представляющей данное решение на рынке"]
[null,null,null,null,null,"Поле для самостоятельного ввода компании-поставщика"]
[]
[null,null,null,null,"4.6.1.3","Укажите компании, являющиеся потребителями данного решения"]
[null,null,null,null,null,"Поле для ввода наименований компаний, являющихся потребителями решения"]
[]
[null,null,null,null,"4.6.1.4","Оцените количество внедрений решения (единиц внедрения)"]
[null,null,null,null,null,"Поле для ввода количества внедрений решения"]
[]
[null,null,null,null,"4.6.1.5","Укажите показатели, по которым решение может быть сопоставлено инновационному продукту. Для добавления показателя используйте кнопку \"Добавить показатель для сравнения\". "]
[]
[]
[]
[]
[null,null,null,null,"Прочие аналоги"]
[]
[null,null,null,null,{"$f":"NextRecNum(E248,3)","v":"4.6.2"},"Опишите аналоги инновационного продукта, присутствующие на рынке. Для добавления аналога нажмите кнопку \"Добавить аналог\""]
[]
[]
[null,null,null,null,null,"Аналог №1"]
[]
[null,null,null,null,"4.6.2.1","Укажите наименование аналога инновационного продукта"]
[null,null,null,null,null,"Поле для самостоятельного ввода аналога инновационного продукта"]
[]
[null,null,null,null,"4.6.2.2","Введите наименование компании, представляющей аналог на рынке"]
[null,null,null,null,null,"Поле для самостоятельного ввода стоимости работы"]
[]
[null,null,null,null,"4.6.2.3","Укажите компании, являющиеся потребителями аналога инновационного продукта"]
[null,null,null,null,null,"Поле для ввода наименований компаний, являющихся потребителями аналога"]
[]
[null,null,null,null,"4.6.2.4","Оцените количество успешных внедрений аналога (единиц внедрения)"]
[null,null,null,null,null,"Поле для ввода количества внедрений аналога"]
[]
[null,null,null,null,"4.6.2.5","Укажите показатели, по которым аналог может быть сопоставлен инновационному продукту. Для добавления показателя используйте кнопку \"Добавить показатель для сравнения\". "]
[]
[]
[]
[]
[]
[]
[]
[null,null,null,null,"Раздел №5. Риски проекта"]
[]
[null,null,null,null,null,"Опишите риски инновационного проекта. Для добавления нового риска нажмите кнопку \"Добавить риск\""]
[]
[]
[null,null,null,null,"5.1","Риск №1"]
[]
[null,null,null,null,"5.1.1","Введите наименование риска"]
[null,null,null,null,null,"Поле для ввода наименования риска"]
[]
[null,null,null,null,"5.1.2","Выберите тип риска из списка. При необходимости укажите тип риска самостоятельно."]
[]
[]
[null,null,null,null,"5.1.3","Выберите тип ущерба от риска из списка. При необходимости укажите тип ущерба от риска самостоятельно"]
[]
[]
[null,null,null,null,"5.1.4","Укажите, к какому этапу реализации проекта может быть отнесён данный риск, выбрав его из списка"]
[]
[]
[null,null,null,null,"5.1.5","Выберите показатель, характеризующий инновационный продукт, на который окажет воздействие рисковое событие"]
[]
[]
[null,null,null,null,"5.1.6","Выберите из списка тип воздействия риска на показатель"]
[]
[]
[null,null,null,null,"5.1.7","Оцените степень изменения показателя в результате реализации риска в процентном выражении"]
[null,null,null,null,null,"Поле для ввода степени изменения показателя от реализации риска"]
[]
[null,null,null,null,"5.1.8","Оцените критичность риска, в случае его реализации, выбрав её из списка"]
[]
[]
[null,null,null,null,"5.1.9","Оцените вероятность реализации риска, выбрав её из списка"]
[]
[]
[]
[null,null,null,null,"5.1.10","Укажите антирисковые инициативы, которые могут быть направлены на нейтрализацию данного риска. Для добавления инициативы нажмите кнопку \"Добавить инициативу\""]

{"sheet":"Спр_Показатели компонентов","index":2,"n_rows":639,"n_cols":6,"rows_kept":639,"cut":false,"hidden":true,"merged":[]}
["Научное знание","    Показатели продукта"]
["Научное знание","         Наличие отторгаемых от автора подтвержденных новых знаний (публикация в признанных источниках)"]
["Научное знание","         Уровень востребованности (цитируемость) в пределах РФ"]
["Научное знание","         Уровень востребованности (цитируемость) за  пределами РФ"]
["Научное знание","    Стоимость создания инновационного продукта"]
["Технология","    Общая производительность технологии (количество продукта в ед. времени)"]
["Технология","         Производительность в ед. производительного врмени"]
["Технология","         Доля производительного времени"]
["Технология","         Доля бракованной продукции (потери продукции)"]
["Технология","    Эффективность технологии по ресурсам"]
["Технология","         Количество ресурса на ед. продукции"]
["Технология","         Стоимость единицы ресурса (цена)"]
["Технология","         Доля бракованного ресурса (потери ресурса)"]
["Технология","    Эффективность технологии по фондам"]
["Технология","         Ресурс фонда (общий объем производства)"]
["Технология","         Стоимость фонда"]
["Технология","    Стоимость продукции данной технологии"]
["Технология","         Переменные затраты на ед. продукции"]
["Технология","         Постоянные затраты за ед. времени"]
["Технология","    Качество продукции"]
["Технология","         Соответствие стандартам (взаимозаменяемость, совместимость)"]
["Технология","         Соответствие требованиям сертификации"]
["Технология","         Соответствие среде выполнения, совместимость"]
["Технология","         Конкурентоспособность (потенциал изменения доли рынка за период, %)"]
["Технология","    Стоимость"]
["Технология","         Полная себестоимость создания технологической линии"]
["Технология","         Рыночная стоимость (цена) лицензии на технологию"]
["Технология","    Стоимость владения (дополнительные затраты: ремонт, обязательные регламентируемые доп. затраты и др.)"]
["Технология","    Стоимость создания инновационного продукта"]
["Технология","    Экологическая безопасность (вероятность работы без опасности для окружающей среды)"]
["Технология","    Эксплуатационная безопасность (вероятность работы без опасности для жизни и здоровья эксплуатирующих людей)"]
["Технология","    Наличие ограничений на применяемые материалы и комплектующие"]
["Оборудование","    Мощность"]
["Оборудование","         Производительность в ед. производительного времени"]
["Оборудование","         Доля бракованной продукции (потери продукции)"]
["Оборудование","    Эксплуатационные параметры"]
["Оборудование","         Межремонтный период"]
["Оборудование","         Срок полезного использования"]
["Оборудование","         Общий ресурс безотказной работы"]
["Оборудование","         Отказоустойчивость (вероятность безотказной работы с заданными параметрами производительности в течение СПИ)"]
["Оборудование","         Модульность (возможность замены комплектующих)"]
["Оборудование","         Коэффициент резервирования (доля резервных агрегатов от общего количества)"]
["Оборудование","    Показатели"]
["Оборудование","         Габаритные размеры (длина, ширина, высота, диаметр и т.п.)"]
["Оборудование","         Вес"]
["Оборудование","         Наличие ограничений на применяемые материалы и комплектующие"]
["Оборудование","         Условия среды (нагрузки, агрессивность и др.)"]
["Оборудование","         Совместимость с прочим оборудованием"]
["Оборудование","         Форма и др. параметры для целей логистики"]
["Оборудование","    Качество"]
["Оборудование","         Соответствие стандартам (взаимозаменяемость, совместимость)"]
["Оборудование","         Соответствие требованиям сертификации"]
["Оборудование","         Соответствие среде выполнения, совместимость"]
["Оборудование","         Конкурентоспособность (потенциал изменения доли рынка за период, %)"]
["Оборудование","    Стоимость создания"]
["Оборудование","         Стоимость покупки и установки фонда"]
["Оборудование","         Сумма амортизации фонда в ед. времени"]
["Оборудование","    Стоимость владения (дополнительные затраты: ремонт, обязательные регламентируемые доп. затраты и др.)"]
["Оборудование","         Стоимость монтажа (инсталляции)/демонтажа"]
["Оборудование","         Стоимость ТОиР"]
["Оборудование","         Стоимость аренды/ лизинга"]
["Оборудование","         Стоимость расходных материалов"]
["Оборудование","    Стоимость создания инновационного продукта"]
["Оборудование","    Наличие ограничений на применяемые материалы и комплектующие"]
["Материал","    Показатели"]
["Материал","        Физико-химические показатели"]
["Материал","         Габаритные размеры (длина, ширина, высота, диаметр и т.п.)"]
["Материал","         Вес"]
["Материал","         Наличие ограничений на применяемые материалы и комплектующие"]
["Материал","         Условия среды (нагрузки, агрессивность и др.)"]
["Материал","         Совместимость с прочим оборудованием"]
["Материал","         Форма и др. параметры для целей логистики"]
["Материал","    Качество"]
["Материал","         Соответствие стандартам (взаимозаменяемость, совместимость)"]
["Материал","         Соответствие требованиям сертификации"]
["Материал","         Соответствие среде выполнения, совместимость"]
["Материал","         Конкурентоспособность (потенциал изменения доли рынка за период, %)"]
["Материал","    Стоимость"]
["Материал","         Полная себестоимость"]
["Материал","         Производственная себестоимость"]
["Материал","         Рыночная стоимость (цена)"]
["Материал","    Стоимость владения (дополнительные затраты: ремонт, обязательные регламентируемые доп. затраты и др.)"]
["Материал","    Стоимость создания инновационного продукта"]
["Программное обеспечение","    Показатели"]
["Программное обеспечение","         Степень автоматизации процесса"]
["Программное обеспечение","         Информационная насыщенность"]
["Программное обеспечение","         Степень соответствия потребностям пользователей"]
["Программное обеспечение","         Наличие ограничений на аппаратное обеспечение"]
["Программное обеспечение","         Совместимость с прочим программным обеспечением"]
["Программное обеспечение","         Информационная безопасность"]
["Программное обеспечение","    Качество"]
["Программное обеспечение","         Соответствие стандартам (взаимозаменяемость, совместимость)"]
["Программное обеспечение","         Соответствие требованиям сертификации"]
["Программное обеспечение","         Конкурентоспособность (потенциал изменения доли рынка за период, %)"]
["Программное обеспечение","    Стоимость"]
["Программное обеспечение","         Полная себестоимость"]
["Программное обеспечение","         Производственная себестоимость"]
["Программное обеспечение","         Рыночная стоимость (цена) лицензии на ПО"]
["Программное обеспечение","    Стоимость владения (дополнительные затраты: ремонт, обязательные регламентируемые доп. затраты и др.)"]
["Программное обеспечение","    Стоимость создания инновационного продукта"]
["Технологическая система","    Общая производительность системы (количество продукта в ед. времени)"]
["Технологическая система","         Производительность в ед. производительного врмени"]
["Технологическая система","         Доля производительного времени"]
["Технологическая система","         Доля бракованной продукции (потери продукции)"]
["Технологическая система","    Эксплуатационные параметры"]
["Технологическая система","         Межремонтный период"]
["Технологическая система","         Срок полезного использования"]
["Технологическая система","         Общий ресурс безотказной работы"]
["Технологическая система","         Отказоустойчивость (вероятность безотказной работы с заданными параметрами производительности в течение СПИ)"]
["Технологическая система","         Модульность (возможность замены комплектующих)"]
["Технологическая система","         Коэффициент резервирования (доля резервных агрегатов от общего количества)"]
["Технологическая система","    Показатели"]
["Технологическая система","        Физико-химические показатели"]
["Технологическая система","         Габаритные размеры (длина, ширина, высота, диаметр и т.п.)"]
["Технологическая система","         Вес"]
["Технологическая система","         Наличие ограничений на применяемые материалы и комплектующие"]
["Технологическая система","         Условия среды (нагрузки, агрессивность и др.)"]
["Технологическая система","         Совместимость с прочим оборудованием"]
["Технологическая система","         Форма и др. параметры для целей логистики"]
["Технологическая система","    Эффективность системы по ресурсам"]
["Технологическая система","         Количество ресурса на ед. продукции"]
["Технологическая система","         Стоимость единицы ресурса (цена)"]
["Технологическая система","         Доля бракованного ресурса (потери ресурса)"]
["Технологическая система","    Эффективность системы по фондам"]
["Технологическая система","         Ресурс фонда (общий объем производства)"]
["Технологическая система","         Стоимость фонда"]
["Технологическая система","    Стоимость продукции системы"]
["Технологическая система","         Переменные затраты на ед. продукции"]
["Технологическая система","         Постоянные затраты за ед. времени"]
["Технологическая система","    Качество продукции"]
["Технологическая система","         Соответствие стандартам (взаимозаменяемость, совместимость)"]
["Технологическая система","         Соответствие требованиям сертификации"]
["Технологическая система","         Соответствие среде выполнения, совместимость"]
["Технологическая система","         Конкурентоспособность (потенциал изменения доли рынка за период, %)"]
["Технологическая система","    Стоимость"]
["Технологическая система","         Полная себестоимость создания технологической линии"]
["Технологическая система","         Рыночная стоимость (цена) лицензии на технологию"]
["Технологическая система","    Стоимость владения (дополнительные затраты: ремонт, обязательные регламентируемые доп. затраты и др.)"]
["Технологическая система","    Стоимость создания инновационного продукта"]
["Технологическая система","    Экологическая безопасность (вероятность работы без опасности для окружающей среды)"]
["Технологическая система","    Эксплуатационная безопасность (вероятность работы без опасности для жизни и здоровья эксплуатирующих людей)"]
["Технологическая система","    Наличие ограничений на применяемые материалы и комплектующие"]
["АСУ","    Эксплуатационные параметры"]
["АСУ","         Межремонтный период"]
["АСУ","         Срок полезного использования"]
["АСУ","         Общий ресурс безотказной работы"]
["АСУ","         Отказоустойчивость (вероятность безотказной работы с заданными параметрами производительности в течение СПИ)"]
["АСУ","         Модульность (возможность замены комплектующих)"]
["АСУ","         Коэффициент резервирования (доля резервных агрегатов от общего количества)"]
["АСУ","    Показатели"]
["АСУ","         Степень автоматизации процесса"]
["АСУ","         Информационная насыщенность"]
["АСУ","         Степень соответствия потребностям пользователей"]
["АСУ","         Наличие ограничений на аппаратное обеспечение"]
["АСУ","         Совместимость с прочим программным обеспечением"]
["АСУ","         Информационная безопасность"]
["АСУ","         Габаритные размеры (длина, ширина, высота, диаметр и т.п.)"]
["АСУ","         Вес"]
["АСУ","         Наличие ограничений на применяемые материалы и комплектующие"]
["АСУ","         Условия среды (нагрузки, агрессивность и др.)"]
["АСУ","         Совместимость с прочим оборудованием"]
["АСУ","         Форма и др. параметры для целей логистики"]
["АСУ","    Эффективность системы по ресурсам"]
["АСУ","         Количество ресурса на ед. продукции"]
["АСУ","         Стоимость единицы ресурса (цена)"]
["АСУ","         Доля бракованного ресурса (потери ресурса)"]
["АСУ","    Эффективность системы по фондам"]
["АСУ","         Ресурс фонда (общий объем производства)"]
["АСУ","         Стоимость фонда"]
["АСУ","    Стоимость"]
["АСУ","         Полная себестоимость создания системы"]
["АСУ","         Рыночная стоимость (цена) лицензии на систему"]
["АСУ","    Стоимость владения (дополнительные затраты: ремонт, обязательные регламентируемые доп. затраты и др.)"]
["АСУ","    Стоимость создания инновационного продукта"]
["АСУ","    Экологическая безопасность (вероятность работы без опасности для окружающей среды)"]
["АСУ","    Эксплуатационная безопасность (вероятность работы без опасности для жизни и здоровья эксплуатирующих людей)"]
["БИЗНЕС-ПРОЦЕСС","    Общая производительность процесса (количество продукта в ед. времени)"]
["БИЗНЕС-ПРОЦЕСС","         Производительность в ед. производительного врмени"]
["БИЗНЕС-ПРОЦЕСС","         Доля производительного времени"]
["БИЗНЕС-ПРОЦЕСС","         Доля бракованной продукции (потери продукции)"]
["БИЗНЕС-ПРОЦЕСС","    Длительность обеспечивающего процесса"]
["БИЗНЕС-ПРОЦЕСС","         Длительность процесса (ед. услуги/ продукции)"]
["БИЗНЕС-ПРОЦЕСС","         Частота выполнения процесса за период"]
["БИЗНЕС-ПРОЦЕСС","    Эффективность процесса по ресурсам"]
["БИЗНЕС-ПРОЦЕСС","         Количество ресурса на ед. продукции"]
["БИЗНЕС-ПРОЦЕСС","         Стоимость единицы ресурса (цена)"]
["БИЗНЕС-ПРОЦЕСС","         Доля бракованного ресурса (потери ресурса)"]
["БИЗНЕС-ПРОЦЕСС","    Эффективность процесса по фондам"]
["БИЗНЕС-ПРОЦЕСС","         Ресурс фонда (общий объем производства)"]
["БИЗНЕС-ПРОЦЕСС","         Стоимость фонда"]
["БИЗНЕС-ПРОЦЕСС","    Показатели процесса"]
["БИЗНЕС-ПРОЦЕСС","         Наличие ограничений на применяемые материалы и комплектующие"]
["БИЗНЕС-ПРОЦЕСС","         Информационная безопасность"]
["БИЗНЕС-ПРОЦЕСС","    Стоимость создания процесса"]
["БИЗНЕС-ПРОЦЕСС","    Стоимость работы процесса"]
["БИЗНЕС-ПРОЦЕСС","         Переменные затраты на ед. продукции"]
["БИЗНЕС-ПРОЦЕСС","         Постоянные затраты за ед. времени"]
["БИЗНЕС-ПРОЦЕСС","    Стоимость создания инновационного продукта"]
["БИЗНЕС-ПРОЦЕСС","    Экологическая безопасность (вероятность работы без опасности для окружающей среды)"]
["БИЗНЕС-ПРОЦЕСС","    Эксплуатационная безопасность (вероятность работы без опасности для жизни и здоровья эксплуатирующих людей)"]
["Сырье и материалы (кроме энергии)","    Количество ресурса",null,null,{"$f":"\"   \" & F201","v":"   Сырая нефть"},"Сырая нефть"]
["Сырье и материалы (кроме энергии)","    Физико-химические показатели ресурса",null,null,{"$f":"\"   \" & F202","v":"   Попутный нефтяной газ"},"Попутный нефтяной газ"]
["Сырье и материалы (кроме энергии)","    Качество ресурса",null,null,"   Продукты нефтепереработки","Продукты нефтепереработки"]
["Сырье и материалы (кроме энергии)","         Соответствие стандартам (взаимозаменяемость, совместимость)",null,null,"   Продукты нефтехимии","Продукты нефтехимии"]
["Сырье и материалы (кроме энергии)","         Соответствие требованиям сертификации",null,null,"   Прочие сырье и материалы","Прочие сырье и материалы"]
["Сырье и материалы (кроме энергии)","         Соответствие среде выполнения, совместимость"]
["Сырье и материалы (кроме энергии)","         Конкурентоспособность (потенциал изменения доли рынка за период, %)"]
["   Сырая нефть","    Количество ресурса"]
["   Сырая нефть","    Физико-химические показатели ресурса"]
["   Сырая нефть","    Качество ресурса"]
["   Сырая нефть","         Соответствие стандартам (взаимозаменяемость, совместимость)"]
["   Сырая нефть","         Соответствие требованиям сертификации"]
["   Сырая нефть","         Соответствие среде выполнения, совместимость"]
["   Сырая нефть","         Конкурентоспособность (потенциал изменения доли рынка за период, %)"]
["   Попутный нефтяной газ","    Количество ресурса"]
["   Попутный нефтяной газ","    Физико-химические показатели ресурса"]
["   Попутный нефтяной газ","    Качество ресурса"]
["   Попутный нефтяной газ","         Соответствие стандартам (взаимозаменяемость, совместимость)"]
["   Попутный нефтяной газ","         Соответствие требованиям сертификации"]
["   Попутный нефтяной газ","         Соответствие среде выполнения, совместимость"]
["   Попутный нефтяной газ","         Конкурентоспособность (потенциал изменения доли рынка за период, %)"]
["   Продукты нефтепереработки","    Количество ресурса"]
["   Продукты нефтепереработки","    Физико-химические показатели ресурса"]
["   Продукты нефтепереработки","    Качество ресурса"]
["   Продукты нефтепереработки","         Соответствие стандартам (взаимозаменяемость, совместимость)"]
["   Продукты нефтепереработки","         Соответствие требованиям сертификации"]
["   Продукты нефтепереработки","         Соответствие среде выполнения, совместимость"]
["   Продукты нефтепереработки","         Конкурентоспособность (потенциал изменения доли рынка за период, %)"]
["   Продукты нефтехимии","    Количество ресурса"]
["   Продукты нефтехимии","    Физико-химические показатели ресурса"]
["   Продукты нефтехимии","    Качество ресурса"]
["   Продукты нефтехимии","         Соответствие стандартам (взаимозаменяемость, совместимость)"]
["   Продукты нефтехимии","         Соответствие требованиям сертификации"]
["   Продукты нефтехимии","         Соответствие среде выполнения, совместимость"]
["   Продукты нефтехимии","         Конкурентоспособность (потенциал изменения доли рынка за период, %)"]
["   Прочие сырье и материалы","    Количество ресурса"]
["   Прочие сырье и материалы","    Физико-химические показатели ресурса"]
["   Прочие сырье и материалы","    Качество ресурса"]
["   Прочие сырье и материалы","         Соответствие стандартам (взаимозаменяемость, совместимость)"]
["   Прочие сырье и материалы","         Соответствие требованиям сертификации"]
["   Прочие сырье и материалы","         Соответствие среде выполнения, совместимость"]
["   Прочие сырье и материалы","         Конкурентоспособность (потенциал изменения доли рынка за период, %)"]
["Энергия","    Количество энергии",null,null,{"$f":"\"   \" & F243","v":"   Электроэнергия"},"Электроэнергия"]
["Энергия","          Объем энергии",null,null,{"$f":"\"   \" & F244","v":"   Тепловая энергия"},"Тепловая энергия"]
["Энергия","          Мощность",null,null,"   Топливо","Топливо"]
["Энергия","    Качество обеспечения энергей",null,null,"   Другое ","Другое "]
["Энергия","          Стабильность показателей"]
["Энергия","          Бесперебойность снабжения"]
["   Электроэнергия","    Количество энергии"]
["   Электроэнергия","          Объем энергии"]
["   Электроэнергия","          Мощность"]
["   Электроэнергия","    Качество обеспечения энергей"]
["   Электроэнергия","          Стабильность показателей"]
["   Электроэнергия","          Бесперебойность снабжения"]
["   Тепловая энергия","    Количество энергии"]
["   Тепловая энергия","          Объем энергии"]
["   Тепловая энергия","          Мощность"]
["   Тепловая энергия","    Качество обеспечения энергей"]
["   Тепловая энергия","          Стабильность показателей"]
["   Тепловая энергия","          Бесперебойность снабжения"]
["   Топливо","    Количество энергии"]
["   Топливо","          Объем энергии"]
["   Топливо","          Мощность"]
["   Топливо","    Качество обеспечения энергей"]
["   Топливо","          Стабильность показателей"]
["   Топливо","          Бесперебойность снабжения"]
["   Другое ","    Количество энергии"]
["   Другое ","          Объем энергии"]
["   Другое ","          Мощность"]
["   Другое ","    Качество обеспечения энергей"]
["   Другое ","          Стабильность показателей"]
["   Другое ","          Бесперебойность снабжения"]
["Трудовые ресурсы (по категории персонала)","    Объем рабочего времени"]
["Трудовые ресурсы (по категории персонала)","          Число сотрудников"]
["Трудовые ресурсы (по категории персонала)","          Занятость"]
["Трудовые ресурсы (по категории персонала)","    Качество персонала"]
["Трудовые ресурсы (по категории персонала)","          Квалификация"]
["Трудовые ресурсы (по категории персонала)","          Сертификация"]
["Трудовые ресурсы (по категории персонала)","          Мотивированность"]
["Трудовые ресурсы (по категории персонала)","          Опыт работы"]
["Трудовые ресурсы (по категории персонала)","    Показатели"]
["Трудовые ресурсы (по категории персонала)","          Текучесть кадров"]
["Трудовые ресурсы (по категории персонала)","          Средний возраст"]
["   Руководящий","    Объем рабочего времени"]
["   Руководящий","          Число сотрудников"]
["   Руководящий","          Занятость"]
["   Руководящий","    Качество персонала"]
["   Руководящий","          Квалификация"]
["   Руководящий","          Сертификация"]
["   Руководящий","          Мотивированность"]
["   Руководящий","          Опыт работы"]
["   Руководящий","    Показатели"]
["   Руководящий","          Текучесть кадров"]
["   Руководящий","          Средний возраст"]
["   Инженерно-технический","    Объем рабочего времени"]
["   Инженерно-технический","          Число сотрудников"]
["   Инженерно-технический","          Занятость"]
["   Инженерно-технический","    Качество персонала"]
["   Инженерно-технический","          Квалификация"]
["   Инженерно-технический","          Сертификация"]
["   Инженерно-технический","          Мотивированность"]
["   Инженерно-технический","          Опыт работы"]
["   Инженерно-технический","    Показатели"]
["   Инженерно-технический","          Текучесть кадров"]
["   Инженерно-технический","          Средний возраст"]
["   Научный ","    Объем рабочего времени"]
["   Научный ","          Число сотрудников"]
["   Научный ","          Занятость"]
["   Научный ","    Качество персонала"]
["   Научный ","          Квалификация"]
["   Научный ","          Сертификация"]
["   Научный ","          Мотивированность"]
["   Научный ","          Опыт работы"]
["   Научный ","    Показатели"]
["   Научный ","          Текучесть кадров"]
["   Научный ","          Средний возраст"]
["   Рабочий","    Объем рабочего времени"]
["   Рабочий","          Число сотрудников"]
["   Рабочий","          Занятость"]
["   Рабочий","    Качество персонала"]
["   Рабочий","          Квалификация"]
["   Рабочий","          Сертификация"]
["   Рабочий","          Мотивированность"]
["   Рабочий","          Опыт работы"]
["   Рабочий","    Показатели"]
["   Рабочий","          Текучесть кадров"]
["   Рабочий","          Средний возраст"]
["   Прочие категории персонала","    Объем рабочего времени"]
["   Прочие категории персонала","          Число сотрудников"]
["   Прочие категории персонала","          Занятость"]
["   Прочие категории персонала","    Качество персонала"]
["   Прочие категории персонала","          Квалификация"]
["   Прочие категории персонала","          Сертификация"]
["   Прочие категории персонала","          Мотивированность"]
["   Прочие категории персонала","          Опыт работы"]
["   Прочие категории персонала","    Показатели"]
["   Прочие категории персонала","          Текучесть кадров"]
["   Прочие категории персонала","          Средний возраст"]
["Основные средства","    Мощность"]
["Основные средства","         Производительность в ед. производительного времени"]
["Основные средства","         Доля бракованной продукции (потери продукции)"]
["Основные средства","    Эксплуатационные параметры"]
["Основные средства","         Межремонтный период"]
["Основные средства","         Срок полезного использования"]
["Основные средства","         Общий ресурс безотказной работы"]
["Основные средства","         Отказоустойчивость (вероятность безотказной работы с заданными параметрами производительности в течение СПИ)"]
["Основные средства","         Модульность (возможность замены комплектующих)"]
["Основные средства","         Коэффициент резервирования (доля резервных агрегатов от общего количества)"]
["Основные средства","    Показатели"]
["Основные средства","        Физико-химические показатели"]
["Основные средства","         Габаритные размеры (длина, ширина, высота, диаметр и т.п.)"]
["Основные средства","         Вес"]
["Основные средства","         Наличие ограничений на применяемые материалы и комплектующие"]
["Основные средства","         Условия среды (нагрузки, агрессивность и др.)"]
["Основные средства","         Совместимость с прочим оборудованием"]
["Основные средства","         Форма и др. параметры для целей логистики"]
["Основные средства","    Качество"]
["Основные средства","         Соответствие стандартам (взаимозаменяемость, совместимость)"]
["Основные средства","         Соответствие требованиям сертификации"]
["Основные средства","         Соответствие среде выполнения, совместимость"]
["Основные средства","         Конкурентоспособность (потенциал изменения доли рынка за период, %)"]
["Основные средства","    Стоимость создания"]
["Основные средства","         Стоимость покупки и установки фонда"]
["Основные средства","         Сумма аммортизации фонда в ед. времени"]
["Основные средства","    Стоимость владения (дополнительные затраты: ремонт, обязательные регламентируемые доп. затраты и др.)"]
["Основные средства","         Стоимость монтажа (инсталляции)/демонтажа"]
["Основные средства","         Стоимость ТОиР"]
["Основные средства","         Стоимость аренды/ лизинга"]
["Основные средства","         Стоимость расходных материалов"]
["   Природные ресурсы (земельные участки, недра, водоемы)","    Мощность"]
["   Природные ресурсы (земельные участки, недра, водоемы)","         Производительность в ед. производительного времени"]
["   Природные ресурсы (земельные участки, недра, водоемы)","         Доля бракованной продукции (потери продукции)"]
["   Природные ресурсы (земельные участки, недра, водоемы)","    Эксплуатационные параметры"]
["   Природные ресурсы (земельные участки, недра, водоемы)","         Межремонтный период"]
["   Природные ресурсы (земельные участки, недра, водоемы)","         Срок полезного использования"]
["   Природные ресурсы (земельные участки, недра, водоемы)","         Общий ресурс безотказной работы"]
["   Природные ресурсы (земельные участки, недра, водоемы)","         Отказоустойчивость (вероятность безотказной работы с заданными параметрами производительности в течение СПИ)"]
["   Природные ресурсы (земельные участки, недра, водоемы)","         Модульность (возможность замены комплектующих)"]
["   Природные ресурсы (земельные участки, недра, водоемы)","         Коэффициент резервирования (доля резервных агрегатов от общего количества)"]
["   Природные ресурсы (земельные участки, недра, водоемы)","    Показатели"]
["   Природные ресурсы (земельные участки, недра, водоемы)","        Физико-химические показатели"]
["   Природные ресурсы (земельные участки, недра, водоемы)","         Габаритные размеры (длина, ширина, высота, диаметр и т.п.)"]
["   Природные ресурсы (земельные участки, недра, водоемы)","         Вес"]
["   Природные ресурсы (земельные участки, недра, водоемы)","         Наличие ограничений на применяемые материалы и комплектующие"]
["   Природные ресурсы (земельные участки, недра, водоемы)","         Условия среды (нагрузки, агрессивность и др.)"]
["   Природные ресурсы (земельные участки, недра, водоемы)","         Совместимость с прочим оборудованием"]
["   Природные ресурсы (земельные участки, недра, водоемы)","         Форма и др. параметры для целей логистики"]
["   Природные ресурсы (земельные участки, недра, водоемы)","    Качество"]
["   Природные ресурсы (земельные участки, недра, водоемы)","         Соответствие стандартам (взаимозаменяемость, совместимость)"]
["   Природные ресурсы (земельные участки, недра, водоемы)","         Соответствие требованиям сертификации"]
["   Природные ресурсы (земельные участки, недра, водоемы)","         Соответствие среде выполнения, совместимость"]
["   Природные ресурсы (земельные участки, недра, водоемы)","         Конкурентоспособность (потенциал изменения доли рынка за период, %)"]
["   Природные ресурсы (земельные участки, недра, водоемы)","    Стоимость создания"]
["   Природные ресурсы (земельные участки, недра, водоемы)","         Стоимость покупки и установки фонда"]
["   Природные ресурсы (земельные участки, недра, водоемы)","         Сумма аммортизации фонда в ед. времени"]
["   Природные ресурсы (земельные участки, недра, водоемы)","    Стоимость владения (дополнительные затраты: ремонт, обязательные регламентируемые доп. затраты и др.)"]
["   Природные ресурсы (земельные участки, недра, водоемы)","         Стоимость монтажа (инсталляции)/демонтажа"]
["   Природные ресурсы (земельные участки, недра, водоемы)","         Стоимость ТОиР"]
["   Природные ресурсы (земельные участки, недра, водоемы)","         Стоимость аренды/ лизинга"]
["   Природные ресурсы (земельные участки, недра, водоемы)","         Стоимость расходных материалов"]
["   Здания и сооружения","    Мощность"]
["   Здания и сооружения","         Производительность в ед. производительного времени"]
["   Здания и сооружения","         Доля бракованной продукции (потери продукции)"]
["   Здания и сооружения","    Эксплуатационные параметры"]
["   Здания и сооружения","         Межремонтный период"]
["   Здания и сооружения","         Срок полезного использования"]
["   Здания и сооружения","         Общий ресурс безотказной работы"]
["   Здания и сооружения","         Отказоустойчивость (вероятность безотказной работы с заданными параметрами производительности в течение СПИ)"]
["   Здания и сооружения","         Модульность (возможность замены комплектующих)"]
["   Здания и сооружения","         Коэффициент резервирования (доля резервных агрегатов от общего количества)"]
["   Здания и сооружения","    Показатели"]
["   Здания и сооружения","        Физико-химические показатели"]
["   Здания и сооружения","         Габаритные размеры (длина, ширина, высота, диаметр и т.п.)"]
["   Здания и сооружения","         Вес"]
["   Здания и сооружения","         Наличие ограничений на применяемые материалы и комплектующие"]
["   Здания и сооружения","         Условия среды (нагрузки, агрессивность и др.)"]
["   Здания и сооружения","         Совместимость с прочим оборудованием"]
["   Здания и сооружения","         Форма и др. параметры для целей логистики"]
["   Здания и сооружения","    Качество"]
["   Здания и сооружения","         Соответствие стандартам (взаимозаменяемость, совместимость)"]
["   Здания и сооружения","         Соответствие требованиям сертификации"]
["   Здания и сооружения","         Соответствие среде выполнения, совместимость"]
["   Здания и сооружения","         Конкурентоспособность (потенциал изменения доли рынка за период, %)"]
["   Здания и сооружения","    Стоимость создания"]
["   Здания и сооружения","         Стоимость покупки и установки фонда"]
["   Здания и сооружения","         Сумма аммортизации фонда в ед. времени"]
["   Здания и сооружения","    Стоимость владения (дополнительные затраты: ремонт, обязательные регламентируемые доп. затраты и др.)"]
["   Здания и сооружения","         Стоимость монтажа (инсталляции)/демонтажа"]
["   Здания и сооружения","         Стоимость ТОиР"]
["   Здания и сооружения","         Стоимость аренды/ лизинга"]
["   Здания и сооружения","         Стоимость расходных материалов"]
["   Машины и механизмы","    Мощность"]
["   Машины и механизмы","         Производительность в ед. производительного времени"]
["   Машины и механизмы","         Доля бракованной продукции (потери продукции)"]
["   Машины и механизмы","    Эксплуатационные параметры"]
["   Машины и механизмы","         Межремонтный период"]
["   Машины и механизмы","         Срок полезного использования"]
["   Машины и механизмы","         Общий ресурс безотказной работы"]
["   Машины и механизмы","         Отказоустойчивость (вероятность безотказной работы с заданными параметрами производительности в течение СПИ)"]
["   Машины и механизмы","         Модульность (возможность замены комплектующих)"]
["   Машины и механизмы","         Коэффициент резервирования (доля резервных агрегатов от общего количества)"]
["   Машины и механизмы","    Показатели"]
["   Машины и механизмы","        Физико-химические показатели"]
["   Машины и механизмы","         Габаритные размеры (длина, ширина, высота, диаметр и т.п.)"]
["   Машины и механизмы","         Вес"]
["   Машины и механизмы","         Наличие ограничений на применяемые материалы и комплектующие"]
["   Машины и механизмы","         Условия среды (нагрузки, агрессивность и др.)"]
["   Машины и механизмы","         Совместимость с прочим оборудованием"]
["   Машины и механизмы","         Форма и др. параметры для целей логистики"]
["   Машины и механизмы","    Качество"]
["   Машины и механизмы","         Соответствие стандартам (взаимозаменяемость, совместимость)"]
["   Машины и механизмы","         Соответствие требованиям сертификации"]
["   Машины и механизмы","         Соответствие среде выполнения, совместимость"]
["   Машины и механизмы","         Конкурентоспособность (потенциал изменения доли рынка за период, %)"]
["   Машины и механизмы","    Стоимость создания"]
["   Машины и механизмы","         Стоимость покупки и установки фонда"]
["   Машины и механизмы","         Сумма аммортизации фонда в ед. времени"]
["   Машины и механизмы","    Стоимость владения (дополнительные затраты: ремонт, обязательные регламентируемые доп. затраты и др.)"]
["   Машины и механизмы","         Стоимость монтажа (инсталляции)/демонтажа"]
["   Машины и механизмы","         Стоимость ТОиР"]
["   Машины и механизмы","         Стоимость аренды/ лизинга"]
["   Машины и механизмы","         Стоимость расходных материалов"]
["   Транспортные средства","    Мощность"]
["   Транспортные средства","         Производительность в ед. производительного времени"]
["   Транспортные средства","         Доля бракованной продукции (потери продукции)"]
["   Транспортные средства","    Эксплуатационные параметры"]
["   Транспортные средства","         Межремонтный период"]
["   Транспортные средства","         Срок полезного использования"]
["   Транспортные средства","         Общий ресурс безотказной работы"]
["   Транспортные средства","         Отказоустойчивость (вероятность безотказной работы с заданными параметрами производительности в течение СПИ)"]
["   Транспортные средства","         Модульность (возможность замены комплектующих)"]
["   Транспортные средства","         Коэффициент резервирования (доля резервных агрегатов от общего количества)"]
["   Транспортные средства","    Показатели"]
["   Транспортные средства","        Физико-химические показатели"]
["   Транспортные средства","         Габаритные размеры (длина, ширина, высота, диаметр и т.п.)"]
["   Транспортные средства","         Вес"]
["   Транспортные средства","         Наличие ограничений на применяемые материалы и комплектующие"]
["   Транспортные средства","         Условия среды (нагрузки, агрессивность и др.)"]
["   Транспортные средства","         Совместимость с прочим оборудованием"]
["   Транспортные средства","         Форма и др. параметры для целей логистики"]
["   Транспортные средства","    Качество"]
["   Транспортные средства","         Соответствие стандартам (взаимозаменяемость, совместимость)"]
["   Транспортные средства","         Соответствие требованиям сертификации"]
["   Транспортные средства","         Соответствие среде выполнения, совместимость"]
["   Транспортные средства","         Конкурентоспособность (потенциал изменения доли рынка за период, %)"]
["   Транспортные средства","    Стоимость создания"]
["   Транспортные средства","         Стоимость покупки и установки фонда"]
["   Транспортные средства","         Сумма аммортизации фонда в ед. времени"]
["   Транспортные средства","    Стоимость владения (дополнительные затраты: ремонт, обязательные регламентируемые доп. затраты и др.)"]
["   Транспортные средства","         Стоимость монтажа (инсталляции)/демонтажа"]
["   Транспортные средства","         Стоимость ТОиР"]
["   Транспортные средства","         Стоимость аренды/ лизинга"]
["   Транспортные средства","         Стоимость расходных материалов"]
["   Оборудование (основные средства)","    Мощность"]
["   Оборудование (основные средства)","         Производительность в ед. производительного времени"]
["   Оборудование (основные средства)","         Доля бракованной продукции (потери продукции)"]
["   Оборудование (основные средства)","    Эксплуатационные параметры"]
["   Оборудование (основные средства)","         Межремонтный период"]
["   Оборудование (основные средства)","         Срок полезного использования"]
["   Оборудование (основные средства)","         Общий ресурс безотказной работы"]
["   Оборудование (основные средства)","         Отказоустойчивость (вероятность безотказной работы с заданными параметрами производительности в течение СПИ)"]
["   Оборудование (основные средства)","         Модульность (возможность замены комплектующих)"]
["   Оборудование (основные средства)","         Коэффициент резервирования (доля резервных агрегатов от общего количества)"]
["   Оборудование (основные средства)","    Показатели"]
["   Оборудование (основные средства)","        Физико-химические показатели"]
["   Оборудование (основные средства)","         Габаритные размеры (длина, ширина, высота, диаметр и т.п.)"]
["   Оборудование (основные средства)","         Вес"]
["   Оборудование (основные средства)","         Наличие ограничений на применяемые материалы и комплектующие"]
["   Оборудование (основные средства)","         Условия среды (нагрузки, агрессивность и др.)"]
["   Оборудование (основные средства)","         Совместимость с прочим оборудованием"]
["   Оборудование (основные средства)","         Форма и др. параметры для целей логистики"]
["   Оборудование (основные средства)","    Качество"]
["   Оборудование (основные средства)","         Соответствие стандартам (взаимозаменяемость, совместимость)"]
["   Оборудование (основные средства)","         Соответствие требованиям сертификации"]
["   Оборудование (основные средства)","         Соответствие среде выполнения, совместимость"]
["   Оборудование (основные средства)","         Конкурентоспособность (потенциал изменения доли рынка за период, %)"]
["   Оборудование (основные средства)","    Стоимость создания"]
["   Оборудование (основные средства)","         Стоимость покупки и установки фонда"]
["   Оборудование (основные средства)","         Сумма аммортизации фонда в ед. времени"]
["   Оборудование (основные средства)","    Стоимость владения (дополнительные затраты: ремонт, обязательные регламентируемые доп. затраты и др.)"]
["   Оборудование (основные средства)","         Стоимость монтажа (инсталляции)/демонтажа"]
["   Оборудование (основные средства)","         Стоимость ТОиР"]
["   Оборудование (основные средства)","         Стоимость аренды/ лизинга"]
["   Оборудование (основные средства)","         Стоимость расходных материалов"]
["Нематериальные активы (лиценции на использование технологии, базы данных, ПО и др)","    Качество НМА"]
["Нематериальные активы (лиценции на использование технологии, базы данных, ПО и др)","         Соответствие стандартам (взаимозаменяемость, совместимость)"]
["Нематериальные активы (лиценции на использование технологии, базы данных, ПО и др)","         Соответствие требованиям сертификации"]
["Нематериальные активы (лиценции на использование технологии, базы данных, ПО и др)","         Соответствие среде выполнения, совместимость"]
["Нематериальные активы (лиценции на использование технологии, базы данных, ПО и др)","         Конкурентоспособность (потенциал изменения доли рынка за период, %)"]
["Нематериальные активы (лиценции на использование технологии, базы данных, ПО и др)","    Стоимость"]
["Нематериальные активы (лиценции на использование технологии, базы данных, ПО и др)","         Себестоимость создания НМА"]
["Нематериальные активы (лиценции на использование технологии, базы данных, ПО и др)","         Рыночная стоимость (цена) лицензии на НМА"]
["   Товарные знаки","    Качество НМА"]
["   Товарные знаки","         Соответствие стандартам (взаимозаменяемость, совместимость)"]
["   Товарные знаки","         Соответствие требованиям сертификации"]
["   Товарные знаки","         Соответствие среде выполнения, совместимость"]
["   Товарные знаки","         Конкурентоспособность (потенциал изменения доли рынка за период,%)"]
["   Товарные знаки","    Стоимость"]
["   Товарные знаки","         Себестоимость создания НМА"]
["   Товарные знаки","         Рыночная стоимость (цена) лицензии на НМА"]
["   Патенты ","    Качество НМА"]
["   Патенты ","         Соответствие стандартам (взаимозаменяемость, совместимость)"]
["   Патенты ","         Соответствие требованиям сертификации"]
["   Патенты ","         Соответствие среде выполнения, совместимость"]
["   Патенты ","         Конкурентоспособность (потенциал изменения доли рынка за период, %)"]
["   Патенты ","    Стоимость"]
["   Патенты ","         Себестоимость создания НМА"]
["   Патенты ","         Рыночная стоимость (цена) лицензии на НМА"]
["   Исключительные права на программы ЭВМ и базы данных","    Качество НМА"]
["   Исключительные права на программы ЭВМ и базы данных","         Соответствие стандартам (взаимозаменяемость, совместимость)"]
["   Исключительные права на программы ЭВМ и базы данных","         Соответствие требованиям сертификации"]
["   Исключительные права на программы ЭВМ и базы данных","         Соответствие среде выполнения, совместимость"]
["   Исключительные права на программы ЭВМ и базы данных","         Конкурентоспособность (потенциал изменения доли рынка за период, %)"]
["   Исключительные права на программы ЭВМ и базы данных","    Стоимость"]
["   Исключительные права на программы ЭВМ и базы данных","         Себестоимость создания НМА"]
["   Исключительные права на программы ЭВМ и базы данных","         Рыночная стоимость (цена) лицензии на НМА"]
["   Лицензии на добычу нефти и газа","    Качество НМА"]
["   Лицензии на добычу нефти и газа","         Соответствие стандартам (взаимозаменяемость, совместимость)"]
["   Лицензии на добычу нефти и газа","         Соответствие требованиям сертификации"]
["   Лицензии на добычу нефти и газа","         Соответствие среде выполнения, совместимость"]
["   Лицензии на добычу нефти и газа","         Конкурентоспособность (потенциал изменения доли рынка за период, %)"]
["   Лицензии на добычу нефти и газа","    Стоимость"]
["   Лицензии на добычу нефти и газа","         Себестоимость создания НМА"]
["   Лицензии на добычу нефти и газа","         Рыночная стоимость (цена) лицензии на НМА"]
["   Лицензии на геологическое изучение и добычу полезных ископаемых (смешанная лицензия)","    Качество НМА"]
["   Лицензии на геологическое изучение и добычу полезных ископаемых (смешанная лицензия)","         Соответствие стандартам (взаимозаменяемость, совместимость)"]
["   Лицензии на геологическое изучение и добычу полезных ископаемых (смешанная лицензия)","         Соответствие требованиям сертификации"]
["   Лицензии на геологическое изучение и добычу полезных ископаемых (смешанная лицензия)","         Соответствие среде выполнения, совместимость"]
["   Лицензии на геологическое изучение и добычу полезных ископаемых (смешанная лицензия)","         Конкурентоспособность (потенциал изменения доли рынка за период, %)"]
["   Лицензии на геологическое изучение и добычу полезных ископаемых (смешанная лицензия)","    Стоимость"]
["   Лицензии на геологическое изучение и добычу полезных ископаемых (смешанная лицензия)","         Себестоимость создания НМА"]
["   Лицензии на геологическое изучение и добычу полезных ископаемых (смешанная лицензия)","         Рыночная стоимость (цена) лицензии на НМА"]
["Прочие ресурсы (напр. услуги, потребляемые в процессе оказания, без создания новых активов)","    Количество ресурса"]
["Прочие ресурсы (напр. услуги, потребляемые в процессе оказания, без создания новых активов)","    Качество ресурса"]
["Прочие ресурсы (напр. услуги, потребляемые в процессе оказания, без создания новых активов)","    Стоимость ресурса"]
["Ресурсы/ продукты (новые, затронутые)","    Количество ресурса/ продукта"]
["Ресурсы/ продукты (новые, затронутые)","         Количество продукта на начало периода"]
["Ресурсы/ продукты (новые, затронутые)","         Количество продукта на конец периода"]
["Ресурсы/ продукты (новые, затронутые)","         Прирост продукта за период"]
["Ресурсы/ продукты (новые, затронутые)","         Расход продукта за период"]
["Ресурсы/ продукты (новые, затронутые)","         Прирост продукта всего (накопительно)"]
["Ресурсы/ продукты (новые, затронутые)","    Качество ресурса/ продукта"]
["Ресурсы/ продукты (новые, затронутые)","         Соответствие стандартам (взаимозаменяемость, совместимость)"]
["Ресурсы/ продукты (новые, затронутые)","         Соответствие требованиям сертификации"]
["Ресурсы/ продукты (новые, затронутые)","         Соответствие среде выполнения, совместимость"]
["Ресурсы/ продукты (новые, затронутые)","         Конкурентоспособность (потенциал изменения доли рынка за период, %)"]
["Ресурсы/ продукты (новые, затронутые)","    Стоимость ресурса/ продукта"]
["Ресурсы/ продукты (новые, затронутые)","         Полная себестоимость"]
["Ресурсы/ продукты (новые, затронутые)","         Производственная себестоимость"]
["Ресурсы/ продукты (новые, затронутые)","         Рыночная стоимость (цена)"]
["Процессы (новые, затронутые)","    Общая производительность процесса (количество продукта в ед. времени)"]
["Процессы (новые, затронутые)","         Производительность в ед. производительного врмени"]
["Процессы (новые, затронутые)","         Доля производительного времени"]
["Процессы (новые, затронутые)","         Доля бракованной продукции (потери продукции)"]
["Процессы (новые, затронутые)","    Длительность обеспечивающего процесса"]
["Процессы (новые, затронутые)","         Длительность процесса (ед. услуги/ продукции)"]
["Процессы (новые, затронутые)","         Частота выполнения процесса за период"]
["Процессы (новые, затронутые)","    Эффективность процесса по ресурсам"]
["Процессы (новые, затронутые)","         Количество ресурса на ед. продукции"]
["Процессы (новые, затронутые)","         Стоимость единицы ресурса (цена)"]
["Процессы (новые, затронутые)","         Доля бракованного ресурса (потери ресурса)"]
["Процессы (новые, затронутые)","    Эффективность процесса по фондам"]
["Процессы (новые, затронутые)","         Ресурс фонда (общий объем производства)"]
["Процессы (новые, затронутые)","         Стоимость фонда"]
["Процессы (новые, затронутые)","    Стоимость процесса"]
["Процессы (новые, затронутые)","         Переменные затраты на ед. продукции"]
["Процессы (новые, затронутые)","         Постоянные затраты за ед. времени"]
["Процессы (новые, затронутые)","    Экологическая безопасность (вероятность работы без опасности для окружающей среды)"]
["Процессы (новые, затронутые)","    Эксплуатационная безопасность (вероятность работы без опасности для жизни и здоровья эксплуатирующих людей)"]
["Комплексы, в составе которых работает инновация (агрегаты, технологии)","    Мощность"]
["Комплексы, в составе которых работает инновация (агрегаты, технологии)","         Производительность в ед. производительного времени"]
["Комплексы, в составе которых работает инновация (агрегаты, технологии)","         Доля бракованной продукции (потери продукции)"]
["Комплексы, в составе которых работает инновация (агрегаты, технологии)","    Эксплуатационные параметры"]
["Комплексы, в составе которых работает инновация (агрегаты, технологии)","         Межремонтный период"]
["Комплексы, в составе которых работает инновация (агрегаты, технологии)","         Срок полезного использования"]
["Комплексы, в составе которых работает инновация (агрегаты, технологии)","         Общий ресурс безотказной работы"]
["Комплексы, в составе которых работает инновация (агрегаты, технологии)","         Отказоустойчивость (вероятность безотказной работы с заданными параметрами производительности в течение СПИ)"]
["Комплексы, в составе которых работает инновация (агрегаты, технологии)","         Модульность (возможность замены комплектующих)"]
["Комплексы, в составе которых работает инновация (агрегаты, технологии)","         Коэффициент резервирования (доля резервных агрегатов от общего количества)"]
["Комплексы, в составе которых работает инновация (агрегаты, технологии)","    Показатели"]
["Комплексы, в составе которых работает инновация (агрегаты, технологии)","         Габаритные размеры (длина, ширина, высота, диаметр и т.п.)"]
["Комплексы, в составе которых работает инновация (агрегаты, технологии)","         Вес"]
["Комплексы, в составе которых работает инновация (агрегаты, технологии)","         Наличие ограничений на применяемые материалы и комплектующие"]
["Комплексы, в составе которых работает инновация (агрегаты, технологии)","         Условия среды (нагрузки, агрессивность и др.)"]
["Комплексы, в составе которых работает инновация (агрегаты, технологии)","         Совместимость с прочим оборудованием"]
["Комплексы, в составе которых работает инновация (агрегаты, технологии)","         Форма и др. параметры для целей логистики"]
["Комплексы, в составе которых работает инновация (агрегаты, технологии)","    Качество"]
["Комплексы, в составе которых работает инновация (агрегаты, технологии)","         Соответствие стандартам (взаимозаменяемость, совместимость)"]
["Комплексы, в составе которых работает инновация (агрегаты, технологии)","         Соответствие требованиям сертификации"]
["Комплексы, в составе которых работает инновация (агрегаты, технологии)","         Соответствие среде выполнения, совместимость"]
["Комплексы, в составе которых работает инновация (агрегаты, технологии)","         Конкурентоспособность (потенциал изменения доли рынка за период, %)"]
["Комплексы, в составе которых работает инновация (агрегаты, технологии)","    Стоимость создания"]
["Комплексы, в составе которых работает инновация (агрегаты, технологии)","         Стоимость покупки и установки фонда"]
["Комплексы, в составе которых работает инновация (агрегаты, технологии)","         Сумма аммортизации фонда в ед. времени"]
["Комплексы, в составе которых работает инновация (агрегаты, технологии)","    Стоимость владения (дополнительные затраты: ремонт, обязательные регламентируемые доп. затраты и др.)"]
["Комплексы, в составе которых работает инновация (агрегаты, технологии)","         Стоимость монтажа (инсталляции)/демонтажа"]
["Комплексы, в составе которых работает инновация (агрегаты, технологии)","         Стоимость ТОиР"]
["Комплексы, в составе которых работает инновация (агрегаты, технологии)","         Стоимость аренды/ лизинга"]
["Комплексы, в составе которых работает инновация (агрегаты, технологии)","         Стоимость расходных материалов"]

{"sheet":"МСП","index":3,"n_rows":30,"n_cols":10,"rows_kept":30,"cut":false,"hidden":true,"merged":[[3,2,3,4],[16,5,17,5],[21,1,21,5],[22,1,22,5],[23,1,23,5],[5,3,6,3],[8,1,9,1],[8,4,9,4],[8,5,9,5],[13,1,14,1],[13,4,14,4],[13,5,14,5],[26,1,26,5],[27,1,27,5],[28,1,28,5],[29,1,29,5],[7,2,7,3],[24,1,24,5],[25,1,25,5],[18,2,18,3]]}
[{"$f":"MID(CELL(\"имяфайла\"),SEARCH(\"[\",CELL(\"имяфайла\")),SEARCH(\"]\",CELL(\"имяфайла\"))-SEARCH(\"[\",CELL(\"имяфайла\"))+1)","v":"[Форма заявки_20150406_2_Excel2007.xlsm]"},"<< Назад"]
[]
[]
[null,"Критерии","Для субъектов МСП",null,null,"Не субъект МСП 8"]
[null,"1. Собственность","Юридические лица ","Индивидуальные предприниматели и фермерские хозяйства","Допустимый диапазон","Юридические лица"]
[null,"1.1.     Доля участия 1 2","Не более 25%","Не применимо","От 0 до 25%","Более 25%",null,true,false]
[null,"1.2.     Доля участия 2 3","Не более 25%",null,"От 0 до 25%","Более 25%",null,true,false]
[null,"2.  Экономические критерии","Юридические лица, индивидуальные предприниматели и фермерские хозяйства",null,"Допустимый диапазон","Иное  значение 9"]
[null,"2.1. Численность, предельное значение 5:","201__год","201__год","-","-"]
[null,null,"(указать год, предшествующий предшествующему году подачи документов)","(указать год, предшествующий году подачи документов)"]
[null,"‒  Микропредприятие","Не более 15 человек","Не более 15 человек","От 0 до 15","Более 250 человек ",null,true,true,false]
[null,"‒  Малое предприятие","Не более 100 человек","Не более 100 человек","От 0 до 100","(в течение указанных (двух) календарных лет, следующих один за другим)",null,false,false]
[null,"‒  Среднее предприятие","Не более 250 человек","Не более 250 человек","От 101 до 250",null,null,false,false]
[null,"2.2. Выручка от реализации (без НДС), предельное значение6:","201__год","201__год","-","-"]
[null,null,"(указать год, предшествующий предшествующему году подачи документов)","(указать год, предшествующий году подачи документов)"]
[null,"‒  Микропредприятие","60 млн. рублей","60 млн. рублей","От 0 до 60 млн. руб.","Свыше 1000 млн. руб. ",null,true,true,false]
[null,"‒  Малое предприятие","400 млн. рублей","400 млн. рублей","От 60 до 400 млн. руб.","(в течение указанных (двух) календарных лет, следующих один за другим)",null,false,false]
[null,"‒  Среднее предприятие","1000 млн. рублей","1000 млн. рублей","От 400 до 1000 млн. руб.",null,null,false,false]
[null,"2.3. Балансовая стоимость активов 7",null,null,"-"]
[]
[null,"Инструкция по заполнению"]
["1.","Поставщик несет ответственность за полноту и корректность представленной информации в части принадлежности к субъектам малого и среднего предпринимательства (МСП)"]
["2.","Доля участия 1 - суммарная доля участия РФ, субъектов РФ, муниципальных образований, иностранных юридических лиц, общественных и религиозных организаций, благотворительных и иных фондов"]
["3.","Доля участия 2 - доля участия одного или нескольких юридических лиц, не являющихся субъектами МСП (не распространяется на хозяйственные общества/партнерства, деятельность которых заключается в практическом применении/внедрении результатов интеллектуальной деятельности, исключительные права на которые принадлежат учредителям (участникам) соответственно таких хозяйственных обществ/партнерств - бюджетным, автономным научным учреждениям либо являющимися бюджетными учреждениями, автономными учреждениями, образовательными организациями высшего образования, а также на юридические лица, учредителями (участниками) которых являются юридические лица, включенные в утвержденный Правительством РФ перечень юридических лиц, предоставляющих государственную поддержку инновационной деятельности"]
["4.","Категория субъекта МСП определяется по наибольшему значению критерия численности/выручки. Изменяется только в случае, если предельные значения выше норматива в течение двух последовательных календарных лет."]
["5.","Средняя численность определяется с учетом всех работников, в т.ч. работающих по договорам гражданско-правового характера, по совместительству, работников представительств/филиалов и других обособленных подразделений."]
["6.","Выручка от реализации определяется в порядке, установленном Налоговым кодексом РФ, балансовая стоимость активов – в порядке, установленном законодательством РФ о бухгалтерском учете. Действующие значения по выручке от реализации утверждены Постановлением Правительства РФ от 09.02.2013 №101."]
["7.","Балансовая стоимость активов определяется в соответствии с законодательством РФ о бухгалтерском учете. В настоящее время предельные значения балансовой стоимости активов не утверждены"]
["8.","Если хотя бы один критерий столбца «Не субъект МСП» исполняется по отношению к организации, то она не является субъектом малого и среднего предпринимательства"]
["9.","Под «иным значением» следует понимать предельное значение показателя, превышающее нормативное значение, предусмотренное для субъектов МСП, и возникающее в течение двух календарных лет, следующих один за другим."]

{"sheet":"Стартовая страница","index":4,"n_rows":19,"n_cols":4,"rows_kept":19,"cut":false,"hidden":false,"merged":[[18,3,19,49]]}
[]
[]
[null,null,"Для корректной работы формы необходимо включить макросы"]
[]
[]
[null,null,null,"Для Excel 2013/2010: На панели сообщений нажмите кнопку \"Включить содержимое\""]
[]
[]
[]
[]
[]
[]
[]
[]
[]
[]
[]
[]
[null,null,null,"Для Excel 2007: На панели сообщений нажмите кнопку \"Параметры…\". \nВ открывшемся меню выберите пункт \"Включить это содержимое\" и нажмите \"Ок\""]

{"sheet":"Справочники","index":5,"n_rows":466,"n_cols":33,"rows_kept":466,"cut":false,"hidden":true,"merged":[]}
[]
[null,null,"Справочники"]
[]
[null,null,"Типы проектов"]
[null,null,"Заявка на целевой инновационный проект (включает стадии НИР, ОКР, ОПР, Внедрение)"]
[null,null,"Заявка на адаптацию и внедрение новых технологий (включает стадии ОПР, Внедрение)"]
[null,null,"Заявка на приобретение инновационной продукции (включает стадию Внедрение)"]
[]
[null,null,"Направления инновационного развития Компани (из актуальной Политики компании в области Инновационной деятельности)"]
[null,null,"Геологоразведка и исследование пластов"]
[null,null,"Геология и разработка месторождений"]
[null,null,"Строительство скважин"]
[null,null,"Технологии добычи нефти и газа"]
[null,null,"Строительство и эксплуатация объектов наземной инфраструктуры"]
[null,null,"Нетрадиционные источники углеводородов (вязкие нефти, бажен, газогидраты, нефть из угля)"]
[null,null,"Неуглеводородное сырье"]
[null,null,"Шельфы"]
[null,null,"Информационные технологии UPSTREAM"]
[null,null,"Технологии нефтепереработки"]
[null,null,"Технологии нефтегазохимии, GTL"]
[null,null,"Разработка собственных катализаторов"]
[null,null,"Разработка новых продуктов нефтепереработки"]
[null,null,"Переработка тяжелых нефтяных остатков"]
[null,null,"Информационные технологии DOWNSTREAM"]
[null,null,"Инжиниринговая поддержка внедрения новых технологий КНИПИ"]
[null,null,"Энергосбережение"]
[null,null,"Экология"]
[null,null,"Альтернативная энергетика"]
[null,null,"Системы распространения знаний и общекорпоративные информационные технологии"]
[]
[null,"НОВЫЙ СПРАВОЧНИК","Текущая стадия проработки"]
[null,null,"Идея (не подтвержденная ни теоретическими, ни физическими исследованиями)"]
[null,null,"Идея, подтвержденная теоретическими исследованиями"]
[null,null,"Идея, подтвержденная физическими исследованиями"]
[null,null,"Прототип"]
[null,null,"Продукт, готовый к реализации на рынке"]
[null,null,"Продукт, реализуемый на рынке"]
[]
[null,null,"Направление инновации"]
[null,null,"Бурение и заканчивание скважин"]
[null,null,"Гидроразрыв пласта и стимуляция скважин"]
[null,null,"Механизированная добыча"]
[null,null,"Наземная инфраструктура и трубопроводный транспорт"]
[null,null,"Новые скважинные технологии"]
[null,null,"Технологии разработки месторождений"]
[]
[null,null,"Тип организации-инициатора предложения"]
[null,null,"ОАО «НК «Роснефть»"]
[null,null,"Корпоративный научно-исследовательский институт ОАО «НК «Роснефть»"]
[null,null,"Научный центр ОАО «НК «Роснефть»"]
[null,null,"Дочернее общество ОАО «НК «Роснефть»"]
[null,null,"ВУЗ"]
[null,null,"НИИ"]
[null,null,"Учреждение РАН"]
[null,null,"Субъект малого и среднего предпринимательства"]
[null,null,"Консалтинговая компания"]
[]
[null,null,"Дочерние предприятия"]
[null,null,"ОАО «Оренбургнефть»"]
[null,null,"ОАО «Самотлорнефтегаз»"]
[null,null,"ОАО «Тюменнефтегаз»"]
[null,null,"ПАО «Верхнечонскнефтегаз»"]
[null,null,"ЗАО «Ванкорнефть»"]
[null,null,"ООО «РН-Юганскнефтегаз»"]
[null,null,"ЗАО «Рязанская нефтеперерабатывающая компания»"]
[null,null,"ОАО «Ангарская нефтехимическая компания»"]
[null,null,"ОАО «Новокуйбышевский НПЗ»"]
[null,null,"ООО «РН-Комсомольский НПЗ»"]
[null,null,"ОАО «Сызранский НПЗ»"]
[null,null,"ОАО «Ачинский НПЗ»"]
[null,null,"ОАО «Куйбышевский НПЗ»"]
[null,null,"ОАО «Саратовский нефтеперерабатывающий завод»"]
[null,null,"ЗАО «Петрол Комплекс Эквипмент Кампани»"]
[null,null,"ОАО «РН-Столица»"]
[null,null,"Rosneft Trading S.A. Швейцария"]
[null,null,"Rosneft Trade Limited Кипр"]
[null,null,"Прочие ОАО «РН Холдинг» Россия Холдинговая компания"]
[null,null,"ООО «Нефть-Актив»"]
[null,null,"Rosneft Finance S.A. Люксембург Финансовые услуги"]
[null,null,"ОАО «Всероссийский банк развития регионов»"]
[]
[null,null,"Эффекты инновации"]
[null,null,"Сокращение затрат на сырье и материалы, энергию за счет снижения требований к качеству потребляемых материалов"]
[null,null,"Сокращение затрат на сырье и материалы, энергию за счет снижения объема потребляемого материала на единицу выпускаемой продукции"]
[null,null,"Сокращение затрат на персонал за счет упрощения выполняемых персоналом операций (снижение требований к квалификации персонала, снижение нагрузки на персонал)"]
[null,null,"Сокращение затрат на персонал за счет снижения объема выполняемых персоналом операций"]
[null,null,"Сокращение затрат на оборудование, машины, механизмы (и другие основные средства) за счет снижения стоимости основных средств"]
[null,null,"Сокращение затрат на оборудование, машины, механизмы (и другие основные средства) за счет увеличения их срока полезного использования"]
[null,null,"Сокращение затрат на оборудование, машины, механизмы (и другие основные средства) за счет снижения затрат на ремонт (увеличение длительности межремонтных периодов, сокращение длительности ремонтов, сокращение стоимости ремонтов)"]
[null,null,"Сокращение накладных затрат на единицу продукции за счет снижения сроков производства единицы продукции"]
[null,null,"Прирост дохода от вида деятельности за счет повышения цены в связи с повышением конкурентоспособности продукции по качеству (улучшение потребительских свойств продукции)"]
[null,null,"Повышение степени промышленной безопасности (экология, безопасность жизни и здоровью, вероятность аварий, несчастных случаев)"]
[null,null,"Повышение степени технологической независимости от иностранных поставщиков"]
[null,null,"Повышение степени технологической независимости от единственного поставщика"]
[null,null,"Повышение уровня освоения технологий, критичных для будущей конкурентоспособности"]
[]
[null,null,"Показатели процессов"]
[]
[null,null,"Производительность"]
[null,null,"Коэффициент потерь"]
[null,null,"Аварийность"]
[]
[null,null,"Причины, по которым показатели процессов должны улучшаться"]
[]
[null,null,"Бенчмаркинг"]
[null,null,"Показатель является критическим и его улучшение даёт значимый эффект"]
[null,null,"Показатель улучшается в рамках общего направления повышения эффективности"]
[]
[null,null,"Функционально-экономические показатели инновационной продукции"]
[]
[null,null," =ПРОЦЕССЫ="]
[null,null,"    Общая производительность процесса (количество продукта в ед. времени)"]
[null,null,"         Производительность в ед. производительного времени"]
[null,null,"         Доля производительного времени"]
[null,null,"         Доля бракованной продукции (потери продукции)"]
[null,null,"    Длительность обеспечивающего процесса"]
[null,null,"         Длительность процесса (ед. услуги/ продукции)"]
[null,null,"         Частота выполнения процесса за период"]
[null,null,"    Эффективность процесса по ресурсам"]
[null,null,"         Количество ресурса на ед. продукции"]
[null,null,"         Стоимость единицы ресурса (цена)"]
[null,null,"         Доля бракованного ресурса (потери ресурса)"]
[null,null,"    Эффективность процесса по фондам"]
[null,null,"         Ресурс фонда (общий объем производства)"]
[null,null,"         Стоимость фонда"]
[null,null,"    Показатели процесса"]
[null,null,"         Наличие ограничений на применяемые материалы и комплектующие"]
[null,null,"         Информационная безопасность"]
[null,null,"    Стоимость создания процесса"]
[null,null,"    Стоимость работы процесса"]
[null,null,"         Переменные затраты на ед. продукции"]
[null,null,"         Постоянные затраты за ед. времени"]
[null,null,"    Экологическая безопасность (вероятность работы без опасности для окружающей среды)"]
[null,null,"    Эксплуатационная безопасность (вероятность работы без опасности для жизни и здоровья эксплуатирующих людей)"]
[null,null," =ПРОДУКТ ПРОЦЕССА="]
[null,null,"    Количество продукта"]
[null,null,"         Количество продукта на начало периода"]
[null,null,"         Количество продукта на конец периода"]
[null,null,"         Прирост продукта за период"]
[null,null,"         Расход продукта за период"]
[null,null,"         Прирост продукта всего (накопительно)"]
[null,null,"    Качество продукта"]
[null,null,"         Соответствие стандартам (взаимозаменяемость, совместимость)"]
[null,null,"         Соответствие требованиям сертификации"]
[null,null,"         Соответствие среде выполнения, совместимость"]
[null,null,"         Конкурентоспособность (потенциал изменения доли рынка за период, %)"]
[null,null,"    Стоимость продукта"]
[null,null,"         Полная себестоимость"]
[null,null,"         Производственная себестоимость"]
[null,null,"         Рыночная стоимость (цена)"]
[null,null," =ПРОИЗВОДСТВЕННЫЙ ФОНД="]
[null,null,"    Мощность"]
[null,null,"         Производительность в ед.производительного времени"]
[null,null,"         Доля бракованной продукции (потери продукции)"]
[null,null,"    Ресурс производственного фонда"]
[null,null,"         Общий ресурс фонда"]
[null,null,"         Накопленный износ фонда"]
[null,null,"         Оставшийся ресурс фонда"]
[null,null,"    Эксплуатационные параметры"]
[null,null,"         Межремонтный период"]
[null,null,"         Срок полезного использования"]
[null,null,"         Общий ресурс безотказной работы"]
[null,null,"         Отказоустойчивость (вероятность безотказной работы с заданными параметрами производительности в течение СПИ)"]
[null,null,"         Модульность (возможность замены комплектующих)"]
[null,null,"         Коэффициент резервирования (доля резервных агрегатов от общего количества)"]
[null,null,"    Стоимость создания производственного фонда"]
[null,null,"         Стоимость покупки и установки производственного фонда"]
[null,null,"         Сумма амортизации производственного фонда в ед. времени"]
[null,null,"    Стоимость владения (дополнительные затраты: ремонт, обязательные регламентируемые доп. затраты и др.)"]
[null,null,"         Стоимость монтажа (инсталляции)/демонтажа"]
[null,null,"         Стоимость ТОиР"]
[null,null,"         Стоимость аренды/ лизинга"]
[null,null,"         Стоимость расходных материалов"]
[null,null," =ПРОЧИЕ ПОКАЗАТЕЛИ ПРОДУКТА, РЕСУРСА, ФОНДА, СВЯЗАННОГО С ПРОЦЕССОМ="]
[null,null,"        Физико-химические показатели"]
[null,null,"         Габаритные размеры (длина, ширина, высота, диаметр и т.п.)"]
[null,null,"         Вес"]
[null,null,"         Наличие ограничений на применяемые материалы и комплектующие"]
[null,null,"         Условия среды (нагрузки, агрессивность и др.)"]
[null,null,"         Совместимость с прочим оборудованием"]
[null,null,"         Форма и др. параметры для целей логистики"]
[null,null,"         Степень автоматизации процесса"]
[null,null,"         Информационная насыщенность"]
[null,null,"         Степень соответствия потребностям пользователей"]
[null,null,"         Наличие ограничений на аппаратное обеспечение"]
[null,null,"         Совместимость с прочим программным обеспечением"]
[null,null,"         Информационная безопасность"]
[]
[null,null,"Тип влияния (для описания взаимосвязи между показателями инновационного продукта и покзателями бизнес-процесса и его ресурсов)"]
[null,null,"Прямая (увеличение влияющего показателя приводит к увеличению зависимого)"]
[null,null,"Обратная (увеличение влияющего показателя приводит к уменьшению зависимого)"]
[null,null,"Другое"]
[]
[null,null,"Типы зависимости (для описания влияния риска на показатель, или влияния инновации на какие-либо первичные показатели)"]
[null,null,"Увеличивает значение показателя"]
[null,null,"Уменьшает значение показателя"]
[null,null,"Другое"]
[]
[null,null,"Типы оборудования"]
[]
[null,null,"Оборудование для ГРР"]
[null,null,"Буровое оборудование"]
[null,null,"Оборудование для НПЗ"]
[]
[null,null,"Категории инновационных продуктов","Типы инновационных продуктов (построчно к каждой из категорий)"]
[null,null,"Инновационный продукт","Научное знание","Технология","Оборудование","Материал","Программное обеспечение","Технологическая система","АСУ","БИЗНЕС-ПРОЦЕСС"]
[null,null,"Компоненты процесса создания и внедрения инновации","Сырье и материалы (кроме энергии)","   Сырая нефть","   Попутный нефтяной газ","   Продукты нефтепереработки","   Продукты нефтехимии","   Прочие сырье и материалы","Энергия","   Электроэнергия","   Тепловая энергия","   Топливо","   Другое ","Трудовые ресурсы (по категории персонала)","   Руководящий","   Инженерно-технический","   Научный ","   Рабочий","   Прочие категории персонала","Основные средства","   Природные ресурсы (земельные участки, недра, водоемы)","   Здания и сооружения","   Машины и механизмы","   Транспортные средства","   Оборудование (основные средства)","Нематериальные активы (лицензии на использование технологии, базы данных, ПО и др)","   Товарные знаки","   Патенты ","   Исключительные права на программы ЭВМ и базы данных","   Лицензии на добычу нефти и газа","   Лицензии на геологическое изучение и добычу полезных ископаемых (смешанная лицензия)","Прочие ресурсы (напр. услуги, потребляемые в процессе оказания, без создания новых активов)"]
[null,null,"Компоненты процесса эксплуатации инновации","Ресурсы/ продукты (новые, затронутые)","Процессы (новые, затронутые)","Комплексы, в составе которых работает инновация (агрегаты, технологии)"]
[]
[null,null,"Границы использования инновационной продукции (маркетинговое обоснование масштаба коммерциализации)"]
[null,null,"Изменение бизнес-процессов / продуктов ОАО \"НК \"Роснефть\""]
[null,null,"Внешняя (по отношению к ОАО \"НК \"Роснефть\") коммерциализация"]
[null,null,"Отрасли применения инновационной продукции"]
[null,null,"Добывающие отрасли"]
[null,null,"Топливно-энергетический комплекс"]
[null,null,"Перерабатывающие отрасли"]
[null,null,"Химические отрасли (кроме перерабатывающих)"]
[null,null,"Машиностроительный комплекс"]
[null,null,"Драгоценные камни и металлы"]
[null,null,"АПК"]
[null,null,"Инфраструктурные отрасли"]
[null,null,"Кредитно-финансовая сфера"]
[null,null,"Транспорт"]
[null,null,"Строительный рынок"]
[null,null,"Жилищно-коммунальное хозяйство"]
[null,null,"Потребительский рынок"]
[null,null,"Другое"]
[null,null,"Географические сегменты"]
[null,null,"Россия"]
[null,null,"Таможенный союз"]
[null,null,"Евросоюз"]
[null,null,"Страны Азии"]
[null,null,"Страны Африки"]
[null,null,"Океания (Австралия, Новая Зеландия, Меланезия, Микронезия, Полинезия)"]
[null,null,"Страны Карибского бассейна"]
[null,null,"Страны Северной Америки (кроме США)"]
[null,null,"Страны Центральной Америки "]
[null,null,"Страны Южной Америки"]
[null,null,"США"]
[]
[null,null,"Назначения инновационных продуктов"]
[]
[null,null,"Внедрение новых бизнес-процессов"]
[null,null,"Совершенствование существующих бизнес-процессов Компании"]
[null,null,"Создание нового вида товарной продукции"]
[null,null,"Совершенствование существующей товарной продукции"]
[]
[null,null,"Этапы Проекта"]
[]
[null,null,"Научно-исследовательские работы"]
[null,null,"Опытно-конструкторские работы"]
[null,null,"Опытно-промышленные работы"]
[null,null,"Внедрение"]
[]
[null,null,"Результаты работ"]
[]
[null,null,"Конструкторская документация"]
[null,null,"Научно-техническая документация"]
[null,null,"Нематериальные активы (лицензии на использование технологии, базы данных, ПО и др)"]
[null,null,"Опытная серия"]
[null,null,"Опытный образец, модель"]
[null,null,"Отчет о результатах НИР"]
[null,null,"Проектно-сметная документация"]
[null,null,"Промышленное производство - ведется серийное производство"]
[null,null,"Промышленное производство - дооснащение"]
[null,null,"Промышленное производство - налажено"]
[null,null,"Промышленное производство - оснащение"]
[null,null,"Требования к результатам проекта (функциональные требования, техническое задание)"]
[null,null,"Установочная серия (готовность изготовителя к производству промышленных образцов)"]
[null,null,"Экспериментальный образец"]
[null,null,"Экспертное заключение"]
[]
[null,null,"Типы работ"]
[null,null,"НИР"]
[null,"НИР Исследования поисковые (теоретическое подтверждение идеи)","Выбор направления исследований (определение концепции поиска)"]
[null,null,"Проведение исследований"]
[null,null,"Создание научно-методических отчетов о проведенных исследованиях (обобщение, анализ и оценка результатов, подготовка выводов)"]
[null,null,"Публикации (при наличии соответствующих решений), закрепление авторских приоритетов"]
[null,"НИР Исследования прикладные (физическое потверждение идеи)","Разработка документации на создание материально-технической базы для проведения прикладных исследований (испытательного оборудования, инструментов для проведения исследований, стендов)"]
[null,null,"Разработка документации на создание материально-технической базы для проведения прикладных исследований (макета, опытного образца)"]
[null,null,"Создание материально-технической базы для проведения прикладных исследований (испытательного оборудования, инструментов для проведения исследований, стендов)"]
[null,null,"Создание материально-технической базы для проведения прикладных исследований (макета, опытного образца)"]
[null,null,"Проведение исследований, в т.ч. лабораторных экспериментов"]
[null,null,"Создание научно-методических отчетов о проведенных исследованиях (обобщение, анализ и оценка результатов исследований, в т.ч. экспериментов)"]
[null,null,"Создание научно-методических отчетов о проведенных исследованиях (выбор методов, подходов, в т.ч. ЛНД)"]
[null,null,"Создание научно-методических отчетов о проведенных исследованиях (формирование требований к новой продукции, технологии)"]
[null,null,"Создание научно-методических отчетов о проведенных исследованиях (разработка ТЗ на разработку новой продукции, технологии)"]
[null,null,"Публикации (при наличии соответствующих решений), закрепление авторских приоритетов"]
[null,"ОКР Опытно-конструкторские работы и опытно-технические работы","Разработка проектно-сметной и конструкторской документации на создание материально-технической базы для проведения ОКР (испытательного оборудования, инструментов для проведения исследований, стендов)"]
[null,null,"Разработка проектно-сметной и конструкторской документации на создание материально-технической базы для проведения ОКР (макета, опытного образца)"]
[null,null,"Создание материально-технической базы для проведения ОКР (испытательного оборудования, инструментов для проведения исследований, стендов)"]
[null,null,"Создание материально-технической базы для проведения ОКР (макета, опытного образца)"]
[null,null,"Разработка технической документации к испытательному оборудованию и образцам"]
[null,null,"Разработка эксплуатационной документации к испытательному оборудованию и образцам"]
[null,null,"Подготовка и проведение испытаний (Составление программ испытаний)"]
[null,null,"Подготовка и проведение испытаний (Проведение подготовительных строительно-монтажных работ (при необходимости)"]
[null,null,"Подготовка и проведение испытаний (Проведение испытаний (предварительные, приемочные)"]
[null,null,"Создание научно-методических отчетов по результатам проведенных испытаний (обобщение, анализ и оценка результатов испытаний)"]
[null,null,"Создание научно-методических отчетов по результатам проведенных испытаний (внесение корректировок в проектно-сметную и конструкторскую документацию на изготовление новой продукции, технологии)"]
[null,null,"Доработка опытного образца. Проведение дополнительных испытаний"]
[null,null,"Разработка эксплуатационной документации к новой продукции, технологии"]
[null,null,"Сертификация продукции"]
[null,null,"Подготовка документов для защиты объектов интеллектуальной собственности"]
[null,"ОПР Опытно-промышленные работы","Создание материально-технической производственной базы.\nНалаживание технологии промышленного производства продукции (для опытно-промышленных образцов)"]
[null,null,"Ввод производственной системы в промышленную эксплуатацию (для опытно-промышленных образцов)"]
[null,null,"Обучение, проведение семинаров. Внедрение и коммерциализация (для опытно-промышленных образцов)"]
[null,"Внедрение","Создание материально-технической производственной базы.\nНалаживание технологии промышленного производства продукции"]
[null,null,"Ввод производственной системы в промышленную эксплуатацию"]
[null,null,"Обучение, проведение семинаров. Внедрение и коммерциализация"]
[]
[null,null,"Объекты интеллектуальной деятельности и их режим правовой защиты (при наличии)"]
[null,null,"Авторское право (Публикации по теме) "]
[null,null,"Патент на изобретение"]
[null,null,"Патент на полезную модель"]
[null,null,"Зарегистрированная программа для ЭВМ, база данных"]
[null,null,"Зарегистрированная топология интегральных микросхем"]
[null,null,"Зарегистрированный промышленный образец"]
[null,null,"Зарегистрированный товарный знак"]
[null,null,"Ноу-хау "]
[]
[null,null,"Территория правовой защиты ОИС"]
[null,null,"Российская федерация (Роспатент)"]
[null,null,"Евросоюз (Европейское патентное ведомство EPO)"]
[null,null,"Японское патентное ведомство (JPO)"]
[null,null,"Офис патентов и товарных знаков США (USPTO)"]
[]
[null,null,"Тип инновационной продукции"]
[]
[null,null,"Автоматизированная система управления","АСУ = технология +оборудование +материал +ПО"]
[null,null,"Материал"]
[null,null,"Новое научное знание"]
[null,null,"Нормативно-методические материалы"]
[null,null,"Оборудование"]
[null,null,"Программное обеспечение"]
[null,null,"Технологическая система"," ТС = Технология +оборудование"]
[null,null,"Технология"]
[null,null,"Товарная продукция"]
[]
[]
[null,null,"Способы коммерциализации"]
[]
[null,null,"Внедрение в РН"]
[null,null,"Внедрение в ДО РН"]
[null,null,"Внешнее внедрение с привлечением ДО РН"]
[null,null,"Внешнее внедрение с привлечением подрядчика"]
[null,null,"Внешнее внедрение в некоммерческих целях"]
[null,null,"Заявитель не располагает нужной информацией"]
[]
[null,null,"Типы объекта внедрения"]
[]
[null,null,"Лицензионный участок"]
[null,null,"Месторождение /участок месторождения"]
[null,null,"Куст скважин"]
[null,null,"Скважина"]
[null,null,"Элемент системы разработки"]
[null,null,"Эксплуатационный объект (залежь, группа залежей)"]
[null,null,"Производственный объект - промысел (нефтяной, газовый)"]
[null,null,"Производственный объект - добычная платформа/ подводный комплекс"]
[null,null,"Производственный объект - завод (НПЗ, ГПЗ, объекты нефтехимического производства, др.)"]
[null,null,"Производственные объекты - объекты энергетики "]
[null,null,"Технологическая линия (на производственном объекте)"]
[null,null,"Установка (в составе технологической линии)"]
[null,null,"Агрегат (в составе установки)"]
[]
[null,null,"Уровни превосходства над аналогами"]
[]
[null,null,"Инновационный продукт существенно превосходит аналог"]
[null,null,"Инновационный продукт превосходит аналог"]
[null,null,"Инновационный продукт идентичен аналогу"]
[null,null,"Инновационный продукт уступает аналогу"]
[null,null,"Инновационный продукт существенно уступает аналогу"]
[]
[null,null,"Название риска"]
[]
[null,null,"Создание за время реализации Проекта продукта, соизмеримого или превосходящего по параметрам продукт, разрабатываемый в Проекте"]
[null,null,"Изменение норм по сбору и использованию отходов."]
[null,null,"Повышение штрафов за сжигание / рассеивание ПНГ"]
[null,null,"Возникновение судебных разбирательств в связи с выявлением нарушений прав Компании в области интеллектуальной собственности"]
[null,null,"Возникновение судебных разбирательств в связи с выявлением нарушений Компанией прав третьих лиц в области интеллектуальной собственности"]
[null,null,"Изменение погодных условий, затрудняющих строительство и эксплуатацию объектов."]
[null,null,"Сложная ледовая обстановка."]
[null,null,"Отсутствие дороги"]
[null,null,"Неточное перемасштабирования ."]
[null,null,"Недостаточный объем/ качество/ глубина охвата исследований."]
[null,null,"Ошибочная интерпретация полученных при исследованиях данных"]
[null,null,"Неподтверждение основной рабочей гипотезы"]
[null,null,"Необходимость проведения дополнительных уточняющих экспериментов"]
[null,null,"Некачественное проведение экспресс-анализа инновационного проекта"]
[null,null,"Приостановка работ исполнителем из-за нарушений условий расчетов"]
[null,null,"Отсутствие необходимых исследовательских лабораторий"]
[null,null,"Неполная комплектация штата"]
[null,null,"Уход работников с ключевыми компетенциями."]
[null,null,"Недостаток компетенции персонала"]
[null,null,"Задержки поставок сырья и оборудования."]
[null,null,"Увеличение длительности выполнения работ."]
[null,null,"Невыполнение условий договора"]
[null,null,"Наличие устаревшего оборудования с низкой производительностью."]
[null,null,"Несоответствие оборудования текущим стандартам безопасности."]
[null,null,"Отсутствие запчастей к оборудованию"]
[null,null,"Возгорание продуктов нефтепереработки."]
[null,null,"Взрыв на блоке переработки НПЗ."]
[null,null,"Взрыв на участке газо-/нефтепровода."]
[null,null,"Выбросы в окружающую среду"]
[null,null,"Ошибки в планировании закупок."]
[null,null,"Работа оборудования на неоптимальных режимах"]
[]
[null,null,"Тип риска"]
[]
[null,null,"Внешние. Конкурентные риски, связанные с выходом на рынок конкурентного продукта"]
[null,null,"Внешние. Правовые. Риски, связанные с изменением в области охраны окружающей среды и промышленной безопасности"]
[null,null,"Внешние. Правовые. Риски, связанные с нарушением прав Компании в области интеллектуальной собственности"]
[null,null,"Внешние. Правовые. Риски, связанные с нарушением Компанией прав третьих лиц в области интеллектуальной собственности"]
[null,null,"Внутренние. Природные. Риски, связанные с географическими и климатическими условиями"]
[null,null,"Внутренние. Геологические.Риски, связанные с несовершенством технологий определения фактических размеров запасов"]
[null,null,"Внутренние. Научно-технологические. Риски, связанные со степенью новизны реализации проекта"]
[null,null,"Внутренние. Научно-технологические. Риски, связанные со сложностью реализации проекта"]
[null,null,"Внутренние. Научно-технологические. Риски, связанные с выбором объекта исследовании"]
[null,null,"Внутренние. Финансовые. Риски, связанные с недостаточным уровнем финансирования проекта"]
[null,null,"Внутренние. Материально-технические. Риски, связанные с уровнем технологической оснащенности компании"]
[null,null,"Внутренние. Организационные. Риски, связанные с объемом кадрового состава"]
[null,null,"Внутренние. Организационные. Риски, связанные с квалификацией кадрового состава"]
[null,null,"Внутренние. Организационные. Риски, связанные с исполнением работ подрядными организациями и иными контрагентами"]
[null,null,"Внутренние. Производственно-технологические. Риски, связанные с моральным износом оборудования"]
[null,null,"Внутренние. Производственно-технологические. Риски, связанные с физическим износом оборудования"]
[null,null,"Внутренние. Производственно-технологические. Риски, связанные с человеческим фактором"]
[]
[null,null,"Тип ущерба от риска"]
[null,null,"Экономический ущерб"]
[null,null,"Экологический ущерб"]
[null,null,"Социальный ущерб"]
[null,null,"Репутационный ущерб"]
[null,null,"Ущерб в виде причинения вреда жизни и/или здоровью"]
[]
[null,null,"Критичность риска"]
[]
[null,null,"Ущерб от риска критичен для проекта"]
[null,null,"Ущерб от риска значим для проекта"]
[null,null,"Ущерб от риска не существенен для проекта "]
[]
[null,null,"Вероятность риска"]
[]
[null,null,"Высокая вероятность"]
[null,null,"Средняя вероятность"]
[null,null,"Низкая вероятность"]
[]
[null,null,"Антирисковые инициативы"]
[]
[null,null,"Включение в план доп мероприятий (доп. Исследований, испытаний и др.)"]
[null,null,"Смена исполнителя"]
[null,null,"Усиление исполнителя (обучение, тестирование, расширение команды, экспертиза)"]
[null,null,"Заключение соответствующих соглашений"]
[]
[null,null,"Тип антирисковых инициатив"]
[]
[null,null,"Принятие"]
[null,null,"Предотвращение"]
[null,null,"Устранение источника"]
[null,null,"Изменение вероятности возникновения рискового события"]
[null,null,"Уменьшение воздействия (последствий)"]
[null,null,"Передача (страхование, включение в контракты гарантий, поручительств и др)"]
[]
[null,null,"Способы обеспечения объёма внедрения"]
[]
[null,null,"Замещение аналогов за счёт лучших технических показателей и сопоставимой стоимости"]
[null,null,"Замещение аналогов за счёт более низкой стоимости"]
[null,null,"Создание новых бизнес-процессов, не имеющих аналогов"]

{"sheet":"Справочник процессов","index":6,"n_rows":180,"n_cols":17,"rows_kept":180,"cut":false,"hidden":true,"merged":[]}
["БП1 ГРУППА ОСНОВНЫХ ПРОЦЕССОВ ","БП1-1 ПОДГРУППА - РАЗВЕДКА И ДОБЫЧА УГЛЕВОДОРОДОВ","Лицензирование и недропользование",null,null,null,null,null,{"$f":"IFERROR(INDEX(_bp1,SMALL(IF(IFERROR(MATCH(_bp1,_bp1,0),\"\")=ROW(_bp1),MATCH(_bp1,_bp1,0),\"\"),ROW()),1),\"\")","v":"БП1 ГРУППА ОСНОВНЫХ ПРОЦЕССОВ "},null,{"$f":"IFERROR(INDEX(_bp2a,SMALL(IF(IFERROR(MATCH(_bp2a,_bp2a,0),\"\")=ROW(INDIRECT(\"$a$1:$A$\"&COUNTA(_bp2a))),MATCH(_bp2a,_bp2a,0),\"\"),ROW()),1),\"\")","v":"БП1-1 ПОДГРУППА - РАЗВЕДКА И ДОБЫЧА УГЛЕВОДОРОДОВ"},null,{"$f":"IFERROR(INDEX(_bp3a,SMALL(IF(IFERROR(MATCH(_bp3a,_bp3a,0),\"\")=ROW(INDIRECT(\"$a$1:$A$\"&COUNTA(_bp3a))),MATCH(_bp3a,_bp3a,0),\"\"),ROW()),1),\"\")","v":""},null,{"$f":"IFERROR(INDEX(_bp4a,SMALL(IF(IFERROR(MATCH(_bp4a,_bp4a,0),\"\")=ROW(INDIRECT(\"$a$1:$A$\"&COUNTA(_bp4a))),MATCH(_bp4a,_bp4a,0),\"\"),ROW()),1),\"\")","v":""},null,{"$f":"IFERROR(INDEX(_bp5a,SMALL(IF(IFERROR(MATCH(_bp5a,_bp5a,0),\"\")=ROW(INDIRECT(\"$a$1:$A$\"&COUNTA(_bp5a))),MATCH(_bp5a,_bp5a,0),\"\"),ROW()),1),\"\")","v":""}]
["БП1 ГРУППА ОСНОВНЫХ ПРОЦЕССОВ ","БП1-1 ПОДГРУППА - РАЗВЕДКА И ДОБЫЧА УГЛЕВОДОРОДОВ","Разведка и добыча нефти на суше","Организация, управление и повышение эффективности процессов Разведки и добычи нефти на суше","Управление проектами  и программами РиД на суше",null,null,null,"",null,"БП1-2 ПОДГРУППА - ПРОИЗВОДСТВО ПРОДУКТОВ ПЕРЕРАБОТКИ УГЛЕВОДОРОДОВ И СПЕЦ. ПРОДУКЦИИ",null,"",null,"",null,""]
["БП1 ГРУППА ОСНОВНЫХ ПРОЦЕССОВ ","БП1-1 ПОДГРУППА - РАЗВЕДКА И ДОБЫЧА УГЛЕВОДОРОДОВ","Разведка и добыча нефти на суше","Организация, управление и повышение эффективности процессов Разведки и добычи нефти на суше","Разработка планов развития РиД на суше",null,null,null,"",null,"БП1-3 ПОДГРУППА - КОММЕРЦИЯ И ЛОГИСТИКА",null,"",null,"",null,""]
["БП1 ГРУППА ОСНОВНЫХ ПРОЦЕССОВ ","БП1-1 ПОДГРУППА - РАЗВЕДКА И ДОБЫЧА УГЛЕВОДОРОДОВ","Разведка и добыча нефти на суше","Организация, управление и повышение эффективности процессов Разведки и добычи нефти на суше","Планирование (вкл. производственное) и бюджетирование РиД на суше",null,null,null,"",null,"",null,"",null,"",null,""]
["БП1 ГРУППА ОСНОВНЫХ ПРОЦЕССОВ ","БП1-1 ПОДГРУППА - РАЗВЕДКА И ДОБЫЧА УГЛЕВОДОРОДОВ","Разведка и добыча нефти на суше","Организация, управление и повышение эффективности процессов Разведки и добычи нефти на суше","Определение потребности в ресурсах (кадры, энергетика и пр.) для разработки нефтяных месторождений на суше",null,null,null,"",null,"",null,"",null,"",null,""]
["БП1 ГРУППА ОСНОВНЫХ ПРОЦЕССОВ ","БП1-1 ПОДГРУППА - РАЗВЕДКА И ДОБЫЧА УГЛЕВОДОРОДОВ","Разведка и добыча нефти на суше","Организация, управление и повышение эффективности процессов Разведки и добычи нефти на суше","Контрактование и закупки РиД на суше",null,null,null,"",null,"",null,"",null,"",null,""]
["БП1 ГРУППА ОСНОВНЫХ ПРОЦЕССОВ ","БП1-1 ПОДГРУППА - РАЗВЕДКА И ДОБЫЧА УГЛЕВОДОРОДОВ","Разведка и добыча нефти на суше","Организация, управление и повышение эффективности процессов Разведки и добычи нефти на суше","Разработка/актуализация ЛНД, описание бизнес-процессов РиД на суше",null,null,null,"",null,"",null,"",null,"",null,""]
["БП1 ГРУППА ОСНОВНЫХ ПРОЦЕССОВ ","БП1-1 ПОДГРУППА - РАЗВЕДКА И ДОБЫЧА УГЛЕВОДОРОДОВ","Разведка и добыча нефти на суше","Организация, управление и повышение эффективности процессов Разведки и добычи нефти на суше","Определение потребности и  требований к автоматизации РиД на суше",null,null,null,"",null,"",null,"",null,"",null,""]
["БП1 ГРУППА ОСНОВНЫХ ПРОЦЕССОВ ","БП1-1 ПОДГРУППА - РАЗВЕДКА И ДОБЫЧА УГЛЕВОДОРОДОВ","Разведка и добыча нефти на суше","Организация, управление и повышение эффективности процессов Разведки и добычи нефти на суше","Развитие международного сотрудничества по блоку РиД на суше",null,null,null,"",null,"",null,"",null,"",null,""]
["БП1 ГРУППА ОСНОВНЫХ ПРОЦЕССОВ ","БП1-1 ПОДГРУППА - РАЗВЕДКА И ДОБЫЧА УГЛЕВОДОРОДОВ","Разведка и добыча нефти на суше","Организация, управление и повышение эффективности процессов Разведки и добычи нефти на суше","Мониторинг, учет и отчетность РиД на суше",null,null,null,"",null,"",null,"",null,"",null,""]
["БП1 ГРУППА ОСНОВНЫХ ПРОЦЕССОВ ","БП1-1 ПОДГРУППА - РАЗВЕДКА И ДОБЫЧА УГЛЕВОДОРОДОВ","Разведка и добыча нефти на суше","Организация, управление и повышение эффективности процессов Разведки и добычи нефти на суше","Контроль, анализ  и управление рисками РиД на суше",null,null,null,"",null,"",null,"",null,"",null,""]
["БП1 ГРУППА ОСНОВНЫХ ПРОЦЕССОВ ","БП1-1 ПОДГРУППА - РАЗВЕДКА И ДОБЫЧА УГЛЕВОДОРОДОВ","Разведка и добыча нефти на суше","Организация, управление и повышение эффективности процессов Разведки и добычи нефти на суше","Управление эффективностью в РиД на суше",null,null,null,"",null,"",null,"",null,"",null,""]
["БП1 ГРУППА ОСНОВНЫХ ПРОЦЕССОВ ","БП1-1 ПОДГРУППА - РАЗВЕДКА И ДОБЫЧА УГЛЕВОДОРОДОВ","Разведка и добыча нефти на суше","Организация, управление и повышение эффективности процессов Разведки и добычи нефти на суше","Внедрение новых технологий РиД на суше",null,null,null,"",null,"",null,"",null,"",null,""]
["БП1 ГРУППА ОСНОВНЫХ ПРОЦЕССОВ ","БП1-1 ПОДГРУППА - РАЗВЕДКА И ДОБЫЧА УГЛЕВОДОРОДОВ","Разведка и добыча нефти на суше","Поиск и геологоразведка месторождений нефти на суше","Развитие ресурсной базы нефти на суше",null,null,null,"",null,"",null,"",null,"",null,""]
["БП1 ГРУППА ОСНОВНЫХ ПРОЦЕССОВ ","БП1-1 ПОДГРУППА - РАЗВЕДКА И ДОБЫЧА УГЛЕВОДОРОДОВ","Разведка и добыча нефти на суше","Поиск и геологоразведка месторождений нефти на суше","ГРР на суше, включая сейсморазведку и  геофизику на суше",null,null,null,"",null,"",null,"",null,"",null,""]
["БП1 ГРУППА ОСНОВНЫХ ПРОЦЕССОВ ","БП1-1 ПОДГРУППА - РАЗВЕДКА И ДОБЫЧА УГЛЕВОДОРОДОВ","Разведка и добыча нефти на суше","Поиск и геологоразведка месторождений нефти на суше","Подсчет и ведение баланса запасов и ресурсов нефти на суше",null,null,null,"",null,"",null,"",null,"",null,""]
["БП1 ГРУППА ОСНОВНЫХ ПРОЦЕССОВ ","БП1-1 ПОДГРУППА - РАЗВЕДКА И ДОБЫЧА УГЛЕВОДОРОДОВ","Разведка и добыча нефти на суше","Поиск и геологоразведка месторождений нефти на суше","Аудит запасов и ресурсов нефти на суше",null,null,null,"",null,"",null,"",null,"",null,""]
["БП1 ГРУППА ОСНОВНЫХ ПРОЦЕССОВ ","БП1-1 ПОДГРУППА - РАЗВЕДКА И ДОБЫЧА УГЛЕВОДОРОДОВ","Разведка и добыча нефти на суше","Поиск и геологоразведка месторождений нефти на суше","Маркшейдерские работы",null,null,null,"",null,"",null,"",null,"",null,""]
["БП1 ГРУППА ОСНОВНЫХ ПРОЦЕССОВ ","БП1-1 ПОДГРУППА - РАЗВЕДКА И ДОБЫЧА УГЛЕВОДОРОДОВ","Разведка и добыча нефти на суше","Разработка нефтяных месторождений на суше","Проектирование и организация разработки нефтяных месторождений на суше",null,null,null,"",null,"",null,"",null,"",null,""]
["БП1 ГРУППА ОСНОВНЫХ ПРОЦЕССОВ ","БП1-1 ПОДГРУППА - РАЗВЕДКА И ДОБЫЧА УГЛЕВОДОРОДОВ","Разведка и добыча нефти на суше","Разработка нефтяных месторождений на суше","Повышение производительности резервуаров и ГТМ",null,null,null,"",null,"",null,"",null,"",null,""]
["БП1 ГРУППА ОСНОВНЫХ ПРОЦЕССОВ ","БП1-1 ПОДГРУППА - РАЗВЕДКА И ДОБЫЧА УГЛЕВОДОРОДОВ","Разведка и добыча нефти на суше","Разработка нефтяных месторождений на суше","Управление повышения эффективности разработки и КИН ",null,null,null,"",null,"",null,"",null,"",null,""]
["БП1 ГРУППА ОСНОВНЫХ ПРОЦЕССОВ ","БП1-1 ПОДГРУППА - РАЗВЕДКА И ДОБЫЧА УГЛЕВОДОРОДОВ","Разведка и добыча нефти на суше","Разработка нефтяных месторождений на суше","Контроль разработки нефтяных месторождений на суше",null,null,null,"",null,"",null,"",null,"",null,""]
["БП1 ГРУППА ОСНОВНЫХ ПРОЦЕССОВ ","БП1-1 ПОДГРУППА - РАЗВЕДКА И ДОБЫЧА УГЛЕВОДОРОДОВ","Разведка и добыча нефти на суше","Разработка нефтяных месторождений на суше","Геологическое и инженерно-технологическое сопровождение разработки и бурения",null,null,null,"",null,"",null,"",null,"",null,""]
["БП1 ГРУППА ОСНОВНЫХ ПРОЦЕССОВ ","БП1-1 ПОДГРУППА - РАЗВЕДКА И ДОБЫЧА УГЛЕВОДОРОДОВ","Разведка и добыча нефти на суше","Разработка нефтяных месторождений на суше","Управление фондом скважин (в т.ч. тех. режимы работы и отчетность) нефтяных месторождений на суше",null,null,null,"",null,"",null,"",null,"",null,""]
["БП1 ГРУППА ОСНОВНЫХ ПРОЦЕССОВ ","БП1-1 ПОДГРУППА - РАЗВЕДКА И ДОБЫЧА УГЛЕВОДОРОДОВ","Разведка и добыча нефти на суше","Разработка нефтяных месторождений на суше","Водопользование на нефтяных месторождениях на суше",null,null,null,"",null,"",null,"",null,"",null,""]
["БП1 ГРУППА ОСНОВНЫХ ПРОЦЕССОВ ","БП1-1 ПОДГРУППА - РАЗВЕДКА И ДОБЫЧА УГЛЕВОДОРОДОВ","Разведка и добыча нефти на суше","Добыча нефти на суше","Подъем нефтегазоносной смеси на суше (вкл. механизированную добычу)"]
["БП1 ГРУППА ОСНОВНЫХ ПРОЦЕССОВ ","БП1-1 ПОДГРУППА - РАЗВЕДКА И ДОБЫЧА УГЛЕВОДОРОДОВ","Разведка и добыча нефти на суше","Добыча нефти на суше","Эксплуатация инфраструктурных объектов (включая трубопроводы и площадные объекты) нефтяных месторождений на суше"]
["БП1 ГРУППА ОСНОВНЫХ ПРОЦЕССОВ ","БП1-1 ПОДГРУППА - РАЗВЕДКА И ДОБЫЧА УГЛЕВОДОРОДОВ","Разведка и добыча нефти на суше","Добыча нефти на суше","Подготовка, сдача и учет нефти на суше"]
["БП1 ГРУППА ОСНОВНЫХ ПРОЦЕССОВ ","БП1-1 ПОДГРУППА - РАЗВЕДКА И ДОБЫЧА УГЛЕВОДОРОДОВ","Разведка и добыча нефти на суше","Добыча нефти на суше","Утилизация газа на нефтяных месторождениях на суше"]
["БП1 ГРУППА ОСНОВНЫХ ПРОЦЕССОВ ","БП1-1 ПОДГРУППА - РАЗВЕДКА И ДОБЫЧА УГЛЕВОДОРОДОВ","Разведка и добыча нефти на суше","Управление проектами разведки и добычи нефти на суше"]
["БП1 ГРУППА ОСНОВНЫХ ПРОЦЕССОВ ","БП1-1 ПОДГРУППА - РАЗВЕДКА И ДОБЫЧА УГЛЕВОДОРОДОВ","Разведка и добыча нефти на шельфе","Организация, управление и повышение эффективности процессов Разведки и добычи нефти на шельфе","Управление проектами  и программами РиД на шельфе"]
["БП1 ГРУППА ОСНОВНЫХ ПРОЦЕССОВ ","БП1-1 ПОДГРУППА - РАЗВЕДКА И ДОБЫЧА УГЛЕВОДОРОДОВ","Разведка и добыча нефти на шельфе","Организация, управление и повышение эффективности процессов Разведки и добычи нефти на шельфе","Разработка планов развития  РиД на шельфе"]
["БП1 ГРУППА ОСНОВНЫХ ПРОЦЕССОВ ","БП1-1 ПОДГРУППА - РАЗВЕДКА И ДОБЫЧА УГЛЕВОДОРОДОВ","Разведка и добыча нефти на шельфе","Организация, управление и повышение эффективности процессов Разведки и добычи нефти на шельфе","Планирование (вкл. производственное) и бюджетирование РиД на шельфе"]
["БП1 ГРУППА ОСНОВНЫХ ПРОЦЕССОВ ","БП1-1 ПОДГРУППА - РАЗВЕДКА И ДОБЫЧА УГЛЕВОДОРОДОВ","Разведка и добыча нефти на шельфе","Организация, управление и повышение эффективности процессов Разведки и добычи нефти на шельфе","Определение потребности в ресурсах (кадры, энергетика и пр.) для разработки нефтяных месторождений на шельфе"]
["БП1 ГРУППА ОСНОВНЫХ ПРОЦЕССОВ ","БП1-1 ПОДГРУППА - РАЗВЕДКА И ДОБЫЧА УГЛЕВОДОРОДОВ","Разведка и добыча нефти на шельфе","Организация, управление и повышение эффективности процессов Разведки и добычи нефти на шельфе","Контрактование и закупки РиД на шельфе"]
["БП1 ГРУППА ОСНОВНЫХ ПРОЦЕССОВ ","БП1-1 ПОДГРУППА - РАЗВЕДКА И ДОБЫЧА УГЛЕВОДОРОДОВ","Разведка и добыча нефти на шельфе","Организация, управление и повышение эффективности процессов Разведки и добычи нефти на шельфе","Разработка/актуализация ЛНД, описание бизнес-процессов РиД на шельфе"]
["БП1 ГРУППА ОСНОВНЫХ ПРОЦЕССОВ ","БП1-1 ПОДГРУППА - РАЗВЕДКА И ДОБЫЧА УГЛЕВОДОРОДОВ","Разведка и добыча нефти на шельфе","Организация, управление и повышение эффективности процессов Разведки и добычи нефти на шельфе","Определение потребности и  требований к автоматизации РиД на шельфе"]
["БП1 ГРУППА ОСНОВНЫХ ПРОЦЕССОВ ","БП1-1 ПОДГРУППА - РАЗВЕДКА И ДОБЫЧА УГЛЕВОДОРОДОВ","Разведка и добыча нефти на шельфе","Организация, управление и повышение эффективности процессов Разведки и добычи нефти на шельфе","Развитие международного сотрудничества по блоку РиД на шельфе"]
["БП1 ГРУППА ОСНОВНЫХ ПРОЦЕССОВ ","БП1-1 ПОДГРУППА - РАЗВЕДКА И ДОБЫЧА УГЛЕВОДОРОДОВ","Разведка и добыча нефти на шельфе","Организация, управление и повышение эффективности процессов Разведки и добычи нефти на шельфе","Мониторинг, учет и отчетность РиД на шельфе"]
["БП1 ГРУППА ОСНОВНЫХ ПРОЦЕССОВ ","БП1-1 ПОДГРУППА - РАЗВЕДКА И ДОБЫЧА УГЛЕВОДОРОДОВ","Разведка и добыча нефти на шельфе","Организация, управление и повышение эффективности процессов Разведки и добычи нефти на шельфе","Контроль, анализ  и управление рисками РиД на шельфе"]
["БП1 ГРУППА ОСНОВНЫХ ПРОЦЕССОВ ","БП1-1 ПОДГРУППА - РАЗВЕДКА И ДОБЫЧА УГЛЕВОДОРОДОВ","Разведка и добыча нефти на шельфе","Организация, управление и повышение эффективности процессов Разведки и добычи нефти на шельфе","Управление эффективностью в РиД на шельфе"]
["БП1 ГРУППА ОСНОВНЫХ ПРОЦЕССОВ ","БП1-1 ПОДГРУППА - РАЗВЕДКА И ДОБЫЧА УГЛЕВОДОРОДОВ","Разведка и добыча нефти на шельфе","Организация, управление и повышение эффективности процессов Разведки и добычи нефти на шельфе","Внедрение новых технологий РиД на шельфе"]
["БП1 ГРУППА ОСНОВНЫХ ПРОЦЕССОВ ","БП1-1 ПОДГРУППА - РАЗВЕДКА И ДОБЫЧА УГЛЕВОДОРОДОВ","Разведка и добыча нефти на шельфе","Поиск и геологоразведка месторождений нефти на шельфе","Развитие ресурсной базы нефти на шельфе"]
["БП1 ГРУППА ОСНОВНЫХ ПРОЦЕССОВ ","БП1-1 ПОДГРУППА - РАЗВЕДКА И ДОБЫЧА УГЛЕВОДОРОДОВ","Разведка и добыча нефти на шельфе","Поиск и геологоразведка месторождений нефти на шельфе","ГРР на суше, включая сейсморазведку и  геофизику на шельфе"]
["БП1 ГРУППА ОСНОВНЫХ ПРОЦЕССОВ ","БП1-1 ПОДГРУППА - РАЗВЕДКА И ДОБЫЧА УГЛЕВОДОРОДОВ","Разведка и добыча нефти на шельфе","Поиск и геологоразведка месторождений нефти на шельфе","Подсчет и ведение баланса запасов и ресурсов нефти на шельфе"]
["БП1 ГРУППА ОСНОВНЫХ ПРОЦЕССОВ ","БП1-1 ПОДГРУППА - РАЗВЕДКА И ДОБЫЧА УГЛЕВОДОРОДОВ","Разведка и добыча нефти на шельфе","Поиск и геологоразведка месторождений нефти на шельфе","Аудит запасов и ресурсов нефти на шельфе"]
["БП1 ГРУППА ОСНОВНЫХ ПРОЦЕССОВ ","БП1-1 ПОДГРУППА - РАЗВЕДКА И ДОБЫЧА УГЛЕВОДОРОДОВ","Разведка и добыча нефти на шельфе","Поиск и геологоразведка месторождений нефти на шельфе","Маркшейдерские работы"]
["БП1 ГРУППА ОСНОВНЫХ ПРОЦЕССОВ ","БП1-1 ПОДГРУППА - РАЗВЕДКА И ДОБЫЧА УГЛЕВОДОРОДОВ","Разведка и добыча нефти на шельфе","Разработка нефтяных месторождений на шельфе","Проектирование и организация разработки нефтяных месторождений на шельфе"]
["БП1 ГРУППА ОСНОВНЫХ ПРОЦЕССОВ ","БП1-1 ПОДГРУППА - РАЗВЕДКА И ДОБЫЧА УГЛЕВОДОРОДОВ","Разведка и добыча нефти на шельфе","Разработка нефтяных месторождений на шельфе","Повышение производительности резервуаров и ГТМ"]
["БП1 ГРУППА ОСНОВНЫХ ПРОЦЕССОВ ","БП1-1 ПОДГРУППА - РАЗВЕДКА И ДОБЫЧА УГЛЕВОДОРОДОВ","Разведка и добыча нефти на шельфе","Разработка нефтяных месторождений на шельфе","Управление повышения эффективности разработки и КИН "]
["БП1 ГРУППА ОСНОВНЫХ ПРОЦЕССОВ ","БП1-1 ПОДГРУППА - РАЗВЕДКА И ДОБЫЧА УГЛЕВОДОРОДОВ","Разведка и добыча нефти на шельфе","Разработка нефтяных месторождений на шельфе","Контроль разработки газовых месторождений на суше"]
["БП1 ГРУППА ОСНОВНЫХ ПРОЦЕССОВ ","БП1-1 ПОДГРУППА - РАЗВЕДКА И ДОБЫЧА УГЛЕВОДОРОДОВ","Разведка и добыча нефти на шельфе","Разработка нефтяных месторождений на шельфе","Геологическое и инженерно-технологическое сопровождение разработки и бурения"]
["БП1 ГРУППА ОСНОВНЫХ ПРОЦЕССОВ ","БП1-1 ПОДГРУППА - РАЗВЕДКА И ДОБЫЧА УГЛЕВОДОРОДОВ","Разведка и добыча нефти на шельфе","Разработка нефтяных месторождений на шельфе","Управление фондом скважин (в т.ч. тех. режимы работы и отчетность) нефтяных месторождений на шельфе"]
["БП1 ГРУППА ОСНОВНЫХ ПРОЦЕССОВ ","БП1-1 ПОДГРУППА - РАЗВЕДКА И ДОБЫЧА УГЛЕВОДОРОДОВ","Разведка и добыча нефти на шельфе","Разработка нефтяных месторождений на шельфе","Водопользование на нефтяных месторождениях на шельфе"]
["БП1 ГРУППА ОСНОВНЫХ ПРОЦЕССОВ ","БП1-1 ПОДГРУППА - РАЗВЕДКА И ДОБЫЧА УГЛЕВОДОРОДОВ","Разведка и добыча нефти на шельфе","Бурение и освоение нефтяных скважин  на шельфе","Строительство нефтяных скважин на шельфе"]
["БП1 ГРУППА ОСНОВНЫХ ПРОЦЕССОВ ","БП1-1 ПОДГРУППА - РАЗВЕДКА И ДОБЫЧА УГЛЕВОДОРОДОВ","Разведка и добыча нефти на шельфе","Бурение и освоение нефтяных скважин  на шельфе","Реконструкция нефтяных скважин на шельфе"]
["БП1 ГРУППА ОСНОВНЫХ ПРОЦЕССОВ ","БП1-1 ПОДГРУППА - РАЗВЕДКА И ДОБЫЧА УГЛЕВОДОРОДОВ","Разведка и добыча нефти на шельфе","Бурение и освоение нефтяных скважин  на шельфе","Текущий и капитальный ремонт нефтяных скважин на шельфе"]
["БП1 ГРУППА ОСНОВНЫХ ПРОЦЕССОВ ","БП1-1 ПОДГРУППА - РАЗВЕДКА И ДОБЫЧА УГЛЕВОДОРОДОВ","Разведка и добыча нефти на шельфе","Бурение и освоение нефтяных скважин  на шельфе","Буровая логистика на шельфе"]
["БП1 ГРУППА ОСНОВНЫХ ПРОЦЕССОВ ","БП1-1 ПОДГРУППА - РАЗВЕДКА И ДОБЫЧА УГЛЕВОДОРОДОВ","Разведка и добыча нефти на шельфе","Бурение и освоение нефтяных скважин  на шельфе","Супервайзинг бурения нефтяных скважин на шельфе"]
["БП1 ГРУППА ОСНОВНЫХ ПРОЦЕССОВ ","БП1-1 ПОДГРУППА - РАЗВЕДКА И ДОБЫЧА УГЛЕВОДОРОДОВ","Разведка и добыча нефти на шельфе","Бурение и освоение нефтяных скважин  на шельфе","Буровые технологии инженерное сопровождение нефтяных скважин на шельфе"]
["БП1 ГРУППА ОСНОВНЫХ ПРОЦЕССОВ ","БП1-1 ПОДГРУППА - РАЗВЕДКА И ДОБЫЧА УГЛЕВОДОРОДОВ","Разведка и добыча нефти на шельфе","Добыча нефти на шельфе","Подъем нефтегазоносной смеси на шельфе (вкл. механизированную добычу)"]
["БП1 ГРУППА ОСНОВНЫХ ПРОЦЕССОВ ","БП1-1 ПОДГРУППА - РАЗВЕДКА И ДОБЫЧА УГЛЕВОДОРОДОВ","Разведка и добыча нефти на шельфе","Добыча нефти на шельфе","Эксплуатация инфраструктурных объектов (включая трубопроводы и платформы) нефтяных месторождений на шельфе"]
["БП1 ГРУППА ОСНОВНЫХ ПРОЦЕССОВ ","БП1-1 ПОДГРУППА - РАЗВЕДКА И ДОБЫЧА УГЛЕВОДОРОДОВ","Разведка и добыча нефти на шельфе","Добыча нефти на шельфе","Подготовка, сдача и учет нефти на шельфе"]
["БП1 ГРУППА ОСНОВНЫХ ПРОЦЕССОВ ","БП1-1 ПОДГРУППА - РАЗВЕДКА И ДОБЫЧА УГЛЕВОДОРОДОВ","Разведка и добыча нефти на шельфе","Добыча нефти на шельфе","Утилизация газа на нефтяных месторождениях на шельфе"]
["БП1 ГРУППА ОСНОВНЫХ ПРОЦЕССОВ ","БП1-1 ПОДГРУППА - РАЗВЕДКА И ДОБЫЧА УГЛЕВОДОРОДОВ","Разведка и добыча нефти на шельфе","Управление проектами разведки и добычи нефти на шельфе"]
["БП1 ГРУППА ОСНОВНЫХ ПРОЦЕССОВ ","БП1-1 ПОДГРУППА - РАЗВЕДКА И ДОБЫЧА УГЛЕВОДОРОДОВ","Разведка и добыча газа ","Организация, управление и повышение эффективности процессов Разведки и добычи газа","Управление проектами  и программами Разведки и добычи газа"]
["БП1 ГРУППА ОСНОВНЫХ ПРОЦЕССОВ ","БП1-1 ПОДГРУППА - РАЗВЕДКА И ДОБЫЧА УГЛЕВОДОРОДОВ","Разведка и добыча газа ","Организация, управление и повышение эффективности процессов Разведки и добычи газа","Разработка планов развития Разведки и добычи газа"]
["БП1 ГРУППА ОСНОВНЫХ ПРОЦЕССОВ ","БП1-1 ПОДГРУППА - РАЗВЕДКА И ДОБЫЧА УГЛЕВОДОРОДОВ","Разведка и добыча газа ","Организация, управление и повышение эффективности процессов Разведки и добычи газа","Планирование (вкл. производственное) и бюджетирование Разведки и добычи газа"]
["БП1 ГРУППА ОСНОВНЫХ ПРОЦЕССОВ ","БП1-1 ПОДГРУППА - РАЗВЕДКА И ДОБЫЧА УГЛЕВОДОРОДОВ","Разведка и добыча газа ","Организация, управление и повышение эффективности процессов Разведки и добычи газа","Определение потребности в ресурсах (кадры, энергетика и пр.) для разработки газовых месторождений"]
["БП1 ГРУППА ОСНОВНЫХ ПРОЦЕССОВ ","БП1-1 ПОДГРУППА - РАЗВЕДКА И ДОБЫЧА УГЛЕВОДОРОДОВ","Разведка и добыча газа ","Организация, управление и повышение эффективности процессов Разведки и добычи газа","Контрактование и закупки Разведки и добычи газа"]
["БП1 ГРУППА ОСНОВНЫХ ПРОЦЕССОВ ","БП1-1 ПОДГРУППА - РАЗВЕДКА И ДОБЫЧА УГЛЕВОДОРОДОВ","Разведка и добыча газа ","Организация, управление и повышение эффективности процессов Разведки и добычи газа","Разработка/актуализация ЛНД, описание бизнес-процессов Разведки и добычи газа"]
["БП1 ГРУППА ОСНОВНЫХ ПРОЦЕССОВ ","БП1-1 ПОДГРУППА - РАЗВЕДКА И ДОБЫЧА УГЛЕВОДОРОДОВ","Разведка и добыча газа ","Организация, управление и повышение эффективности процессов Разведки и добычи газа","Определение потребности и  требований к автоматизации Разведки и добычи газа"]
["БП1 ГРУППА ОСНОВНЫХ ПРОЦЕССОВ ","БП1-1 ПОДГРУППА - РАЗВЕДКА И ДОБЫЧА УГЛЕВОДОРОДОВ","Разведка и добыча газа ","Организация, управление и повышение эффективности процессов Разведки и добычи газа","Развитие международного сотрудничества по блоку Разведка и добыча газа"]
["БП1 ГРУППА ОСНОВНЫХ ПРОЦЕССОВ ","БП1-1 ПОДГРУППА - РАЗВЕДКА И ДОБЫЧА УГЛЕВОДОРОДОВ","Разведка и добыча газа ","Организация, управление и повышение эффективности процессов Разведки и добычи газа","Мониторинг, учет и отчетность Разведки и добычи газа"]
["БП1 ГРУППА ОСНОВНЫХ ПРОЦЕССОВ ","БП1-1 ПОДГРУППА - РАЗВЕДКА И ДОБЫЧА УГЛЕВОДОРОДОВ","Разведка и добыча газа ","Организация, управление и повышение эффективности процессов Разведки и добычи газа","Контроль, анализ  и управление рисками Разведки и добычи газа"]
["БП1 ГРУППА ОСНОВНЫХ ПРОЦЕССОВ ","БП1-1 ПОДГРУППА - РАЗВЕДКА И ДОБЫЧА УГЛЕВОДОРОДОВ","Разведка и добыча газа ","Организация, управление и повышение эффективности процессов Разведки и добычи газа","Управление эффективностью Разведки и добычи газа на шельфе"]
["БП1 ГРУППА ОСНОВНЫХ ПРОЦЕССОВ ","БП1-1 ПОДГРУППА - РАЗВЕДКА И ДОБЫЧА УГЛЕВОДОРОДОВ","Разведка и добыча газа ","Организация, управление и повышение эффективности процессов Разведки и добычи газа","Внедрение новых технологий Разведки и добычи газа на шельфе"]
["БП1 ГРУППА ОСНОВНЫХ ПРОЦЕССОВ ","БП1-1 ПОДГРУППА - РАЗВЕДКА И ДОБЫЧА УГЛЕВОДОРОДОВ","Разведка и добыча газа ","Поиск и геологоразведка месторождений газа"]
["БП1 ГРУППА ОСНОВНЫХ ПРОЦЕССОВ ","БП1-1 ПОДГРУППА - РАЗВЕДКА И ДОБЫЧА УГЛЕВОДОРОДОВ","Разведка и добыча газа ","Разработка газовых месторождений"]
["БП1 ГРУППА ОСНОВНЫХ ПРОЦЕССОВ ","БП1-1 ПОДГРУППА - РАЗВЕДКА И ДОБЫЧА УГЛЕВОДОРОДОВ","Разведка и добыча газа ","Добыча газа"]
["БП1 ГРУППА ОСНОВНЫХ ПРОЦЕССОВ ","БП1-1 ПОДГРУППА - РАЗВЕДКА И ДОБЫЧА УГЛЕВОДОРОДОВ","Разведка и добыча газа ","Управление проектами разведки и добычи газа"]
["БП1 ГРУППА ОСНОВНЫХ ПРОЦЕССОВ ","БП1-2 ПОДГРУППА - ПРОИЗВОДСТВО ПРОДУКТОВ ПЕРЕРАБОТКИ УГЛЕВОДОРОДОВ И СПЕЦ. ПРОДУКЦИИ","Нефтепереработка и нефтехимия","Организация, управление и повышение эффективности процессов Нефтепереработки и Нефтехимии","Управление проектами и программами Нефтепереработки и Нефтехимии"]
["БП1 ГРУППА ОСНОВНЫХ ПРОЦЕССОВ ","БП1-2 ПОДГРУППА - ПРОИЗВОДСТВО ПРОДУКТОВ ПЕРЕРАБОТКИ УГЛЕВОДОРОДОВ И СПЕЦ. ПРОДУКЦИИ","Нефтепереработка и нефтехимия","Организация, управление и повышение эффективности процессов Нефтепереработки и Нефтехимии","Разработка планов развития Нефтепереработки и Нефтехимии"]
["БП1 ГРУППА ОСНОВНЫХ ПРОЦЕССОВ ","БП1-2 ПОДГРУППА - ПРОИЗВОДСТВО ПРОДУКТОВ ПЕРЕРАБОТКИ УГЛЕВОДОРОДОВ И СПЕЦ. ПРОДУКЦИИ","Нефтепереработка и нефтехимия","Организация, управление и повышение эффективности процессов Нефтепереработки и Нефтехимии","Планирование (вкл. производственное) и бюджетирование Нефтепереработки и Нефтехимии"]
["БП1 ГРУППА ОСНОВНЫХ ПРОЦЕССОВ ","БП1-2 ПОДГРУППА - ПРОИЗВОДСТВО ПРОДУКТОВ ПЕРЕРАБОТКИ УГЛЕВОДОРОДОВ И СПЕЦ. ПРОДУКЦИИ","Нефтепереработка и нефтехимия","Организация, управление и повышение эффективности процессов Нефтепереработки и Нефтехимии","Определение потребности в ресурсах (кадры, энергетика и пр.) для Нефтепереработки и нефтехимии"]
["БП1 ГРУППА ОСНОВНЫХ ПРОЦЕССОВ ","БП1-2 ПОДГРУППА - ПРОИЗВОДСТВО ПРОДУКТОВ ПЕРЕРАБОТКИ УГЛЕВОДОРОДОВ И СПЕЦ. ПРОДУКЦИИ","Нефтепереработка и нефтехимия","Организация, управление и повышение эффективности процессов Нефтепереработки и Нефтехимии","Контрактование и закупки Нефтепереработки и Нефтехимии"]
["БП1 ГРУППА ОСНОВНЫХ ПРОЦЕССОВ ","БП1-2 ПОДГРУППА - ПРОИЗВОДСТВО ПРОДУКТОВ ПЕРЕРАБОТКИ УГЛЕВОДОРОДОВ И СПЕЦ. ПРОДУКЦИИ","Нефтепереработка и нефтехимия","Организация, управление и повышение эффективности процессов Нефтепереработки и Нефтехимии","Разработка/актуализация ЛНД, описание бизнес-процессов Нефтепереработки и Нефтехимии"]
["БП1 ГРУППА ОСНОВНЫХ ПРОЦЕССОВ ","БП1-2 ПОДГРУППА - ПРОИЗВОДСТВО ПРОДУКТОВ ПЕРЕРАБОТКИ УГЛЕВОДОРОДОВ И СПЕЦ. ПРОДУКЦИИ","Нефтепереработка и нефтехимия","Организация, управление и повышение эффективности процессов Нефтепереработки и Нефтехимии","Определение потребности и  требований к автоматизации Нефтепереработки и Нефтехимии"]
["БП1 ГРУППА ОСНОВНЫХ ПРОЦЕССОВ ","БП1-2 ПОДГРУППА - ПРОИЗВОДСТВО ПРОДУКТОВ ПЕРЕРАБОТКИ УГЛЕВОДОРОДОВ И СПЕЦ. ПРОДУКЦИИ","Нефтепереработка и нефтехимия","Организация, управление и повышение эффективности процессов Нефтепереработки и Нефтехимии","Мониторинг, учет и отчетность Нефтепереработки и Нефтехимии"]
["БП1 ГРУППА ОСНОВНЫХ ПРОЦЕССОВ ","БП1-2 ПОДГРУППА - ПРОИЗВОДСТВО ПРОДУКТОВ ПЕРЕРАБОТКИ УГЛЕВОДОРОДОВ И СПЕЦ. ПРОДУКЦИИ","Нефтепереработка и нефтехимия","Организация, управление и повышение эффективности процессов Нефтепереработки и Нефтехимии","Развитие международного сотрудничества по блоку Нефтепереработка и Нефтехимия"]
["БП1 ГРУППА ОСНОВНЫХ ПРОЦЕССОВ ","БП1-2 ПОДГРУППА - ПРОИЗВОДСТВО ПРОДУКТОВ ПЕРЕРАБОТКИ УГЛЕВОДОРОДОВ И СПЕЦ. ПРОДУКЦИИ","Нефтепереработка и нефтехимия","Организация, управление и повышение эффективности процессов Нефтепереработки и Нефтехимии","Контроль, анализ  и управление рисками Нефтепереработки и Нефтехимии"]
["БП1 ГРУППА ОСНОВНЫХ ПРОЦЕССОВ ","БП1-2 ПОДГРУППА - ПРОИЗВОДСТВО ПРОДУКТОВ ПЕРЕРАБОТКИ УГЛЕВОДОРОДОВ И СПЕЦ. ПРОДУКЦИИ","Нефтепереработка и нефтехимия","Организация, управление и повышение эффективности процессов Нефтепереработки и Нефтехимии","Управление эффективностью Нефтепереработки и Нефтехимии"]
["БП1 ГРУППА ОСНОВНЫХ ПРОЦЕССОВ ","БП1-2 ПОДГРУППА - ПРОИЗВОДСТВО ПРОДУКТОВ ПЕРЕРАБОТКИ УГЛЕВОДОРОДОВ И СПЕЦ. ПРОДУКЦИИ","Нефтепереработка и нефтехимия","Организация, управление и повышение эффективности процессов Нефтепереработки и Нефтехимии","Внедрение новых технологий Нефтепереработки и Нефтехимии"]
["БП1 ГРУППА ОСНОВНЫХ ПРОЦЕССОВ ","БП1-2 ПОДГРУППА - ПРОИЗВОДСТВО ПРОДУКТОВ ПЕРЕРАБОТКИ УГЛЕВОДОРОДОВ И СПЕЦ. ПРОДУКЦИИ","Нефтепереработка и нефтехимия","Нефтепереработка","Оперативное планирование производства Нефтепеработки"]
["БП1 ГРУППА ОСНОВНЫХ ПРОЦЕССОВ ","БП1-2 ПОДГРУППА - ПРОИЗВОДСТВО ПРОДУКТОВ ПЕРЕРАБОТКИ УГЛЕВОДОРОДОВ И СПЕЦ. ПРОДУКЦИИ","Нефтепереработка и нефтехимия","Нефтепереработка","Подготовка  производства Нефтепереработки"]
["БП1 ГРУППА ОСНОВНЫХ ПРОЦЕССОВ ","БП1-2 ПОДГРУППА - ПРОИЗВОДСТВО ПРОДУКТОВ ПЕРЕРАБОТКИ УГЛЕВОДОРОДОВ И СПЕЦ. ПРОДУКЦИИ","Нефтепереработка и нефтехимия","Нефтепереработка","Управление сырьем нефтепереработки"]
["БП1 ГРУППА ОСНОВНЫХ ПРОЦЕССОВ ","БП1-2 ПОДГРУППА - ПРОИЗВОДСТВО ПРОДУКТОВ ПЕРЕРАБОТКИ УГЛЕВОДОРОДОВ И СПЕЦ. ПРОДУКЦИИ","Нефтепереработка и нефтехимия","Нефтепереработка","Технологические процессы Нефтепереработки"]
["БП1 ГРУППА ОСНОВНЫХ ПРОЦЕССОВ ","БП1-2 ПОДГРУППА - ПРОИЗВОДСТВО ПРОДУКТОВ ПЕРЕРАБОТКИ УГЛЕВОДОРОДОВ И СПЕЦ. ПРОДУКЦИИ","Нефтепереработка и нефтехимия","Нефтепереработка","Эксплуатация и ремонт технологического оборудование нефтепереработки"]
["БП1 ГРУППА ОСНОВНЫХ ПРОЦЕССОВ ","БП1-2 ПОДГРУППА - ПРОИЗВОДСТВО ПРОДУКТОВ ПЕРЕРАБОТКИ УГЛЕВОДОРОДОВ И СПЕЦ. ПРОДУКЦИИ","Нефтепереработка и нефтехимия","Нефтепереработка","Диспетчеризация производства нефтепродуктов"]
["БП1 ГРУППА ОСНОВНЫХ ПРОЦЕССОВ ","БП1-2 ПОДГРУППА - ПРОИЗВОДСТВО ПРОДУКТОВ ПЕРЕРАБОТКИ УГЛЕВОДОРОДОВ И СПЕЦ. ПРОДУКЦИИ","Нефтепереработка и нефтехимия","Нефтепереработка","Управление полуфабрикатами и продукцией нефтепереработки"]
["БП1 ГРУППА ОСНОВНЫХ ПРОЦЕССОВ ","БП1-2 ПОДГРУППА - ПРОИЗВОДСТВО ПРОДУКТОВ ПЕРЕРАБОТКИ УГЛЕВОДОРОДОВ И СПЕЦ. ПРОДУКЦИИ","Нефтепереработка и нефтехимия","Нефтехимия","Оперативное планирование производства Нефтехимии"]
["БП1 ГРУППА ОСНОВНЫХ ПРОЦЕССОВ ","БП1-2 ПОДГРУППА - ПРОИЗВОДСТВО ПРОДУКТОВ ПЕРЕРАБОТКИ УГЛЕВОДОРОДОВ И СПЕЦ. ПРОДУКЦИИ","Нефтепереработка и нефтехимия","Нефтехимия","Подготовка  производства Нефтехимии"]
["БП1 ГРУППА ОСНОВНЫХ ПРОЦЕССОВ ","БП1-2 ПОДГРУППА - ПРОИЗВОДСТВО ПРОДУКТОВ ПЕРЕРАБОТКИ УГЛЕВОДОРОДОВ И СПЕЦ. ПРОДУКЦИИ","Нефтепереработка и нефтехимия","Нефтехимия","Управление сырьем нефтехимии"]
["БП1 ГРУППА ОСНОВНЫХ ПРОЦЕССОВ ","БП1-2 ПОДГРУППА - ПРОИЗВОДСТВО ПРОДУКТОВ ПЕРЕРАБОТКИ УГЛЕВОДОРОДОВ И СПЕЦ. ПРОДУКЦИИ","Нефтепереработка и нефтехимия","Нефтехимия","Технологические процессы Нефтехимии"]
["БП1 ГРУППА ОСНОВНЫХ ПРОЦЕССОВ ","БП1-2 ПОДГРУППА - ПРОИЗВОДСТВО ПРОДУКТОВ ПЕРЕРАБОТКИ УГЛЕВОДОРОДОВ И СПЕЦ. ПРОДУКЦИИ","Нефтепереработка и нефтехимия","Нефтехимия","Эксплуатация и ремонт технологического оборудование нефтехимии"]
["БП1 ГРУППА ОСНОВНЫХ ПРОЦЕССОВ ","БП1-2 ПОДГРУППА - ПРОИЗВОДСТВО ПРОДУКТОВ ПЕРЕРАБОТКИ УГЛЕВОДОРОДОВ И СПЕЦ. ПРОДУКЦИИ","Нефтепереработка и нефтехимия","Нефтехимия","Диспетчеризация производства нефтехимии"]
["БП1 ГРУППА ОСНОВНЫХ ПРОЦЕССОВ ","БП1-2 ПОДГРУППА - ПРОИЗВОДСТВО ПРОДУКТОВ ПЕРЕРАБОТКИ УГЛЕВОДОРОДОВ И СПЕЦ. ПРОДУКЦИИ","Нефтепереработка и нефтехимия","Нефтехимия","Управление полуфабрикатами и продукцией нефтехимии"]
["БП1 ГРУППА ОСНОВНЫХ ПРОЦЕССОВ ","БП1-2 ПОДГРУППА - ПРОИЗВОДСТВО ПРОДУКТОВ ПЕРЕРАБОТКИ УГЛЕВОДОРОДОВ И СПЕЦ. ПРОДУКЦИИ","Нефтепереработка и нефтехимия","Производство масел, смазок, присадок","Оперативное планирование Производства масел, смазок, присадок"]
["БП1 ГРУППА ОСНОВНЫХ ПРОЦЕССОВ ","БП1-2 ПОДГРУППА - ПРОИЗВОДСТВО ПРОДУКТОВ ПЕРЕРАБОТКИ УГЛЕВОДОРОДОВ И СПЕЦ. ПРОДУКЦИИ","Нефтепереработка и нефтехимия","Производство масел, смазок, присадок","Подготовка  производства Производства масел, смазок, присадок"]
["БП1 ГРУППА ОСНОВНЫХ ПРОЦЕССОВ ","БП1-2 ПОДГРУППА - ПРОИЗВОДСТВО ПРОДУКТОВ ПЕРЕРАБОТКИ УГЛЕВОДОРОДОВ И СПЕЦ. ПРОДУКЦИИ","Нефтепереработка и нефтехимия","Производство масел, смазок, присадок","Управление сырьем Производства масел, смазок, присадок"]
["БП1 ГРУППА ОСНОВНЫХ ПРОЦЕССОВ ","БП1-2 ПОДГРУППА - ПРОИЗВОДСТВО ПРОДУКТОВ ПЕРЕРАБОТКИ УГЛЕВОДОРОДОВ И СПЕЦ. ПРОДУКЦИИ","Нефтепереработка и нефтехимия","Производство масел, смазок, присадок","Технологические процессы Производства масел, смазок, присадок"]
["БП1 ГРУППА ОСНОВНЫХ ПРОЦЕССОВ ","БП1-2 ПОДГРУППА - ПРОИЗВОДСТВО ПРОДУКТОВ ПЕРЕРАБОТКИ УГЛЕВОДОРОДОВ И СПЕЦ. ПРОДУКЦИИ","Нефтепереработка и нефтехимия","Производство масел, смазок, присадок","Эксплуатация и ремонт технологического оборудование Производство масел, смазок, присадок"]
["БП1 ГРУППА ОСНОВНЫХ ПРОЦЕССОВ ","БП1-2 ПОДГРУППА - ПРОИЗВОДСТВО ПРОДУКТОВ ПЕРЕРАБОТКИ УГЛЕВОДОРОДОВ И СПЕЦ. ПРОДУКЦИИ","Нефтепереработка и нефтехимия","Производство масел, смазок, присадок","Диспетчеризация Производства масел, смазок, присадок"]
["БП1 ГРУППА ОСНОВНЫХ ПРОЦЕССОВ ","БП1-2 ПОДГРУППА - ПРОИЗВОДСТВО ПРОДУКТОВ ПЕРЕРАБОТКИ УГЛЕВОДОРОДОВ И СПЕЦ. ПРОДУКЦИИ","Нефтепереработка и нефтехимия","Производство масел, смазок, присадок","Управление полуфабрикатами и продукцией Производства масел, смазок, присадок"]
["БП1 ГРУППА ОСНОВНЫХ ПРОЦЕССОВ ","БП1-2 ПОДГРУППА - ПРОИЗВОДСТВО ПРОДУКТОВ ПЕРЕРАБОТКИ УГЛЕВОДОРОДОВ И СПЕЦ. ПРОДУКЦИИ","Нефтепереработка и нефтехимия","Производство катализаторов","Оперативное планирование Производство катализаторов"]
["БП1 ГРУППА ОСНОВНЫХ ПРОЦЕССОВ ","БП1-2 ПОДГРУППА - ПРОИЗВОДСТВО ПРОДУКТОВ ПЕРЕРАБОТКИ УГЛЕВОДОРОДОВ И СПЕЦ. ПРОДУКЦИИ","Нефтепереработка и нефтехимия","Производство катализаторов","Подготовка  производства Производство катализаторов"]
["БП1 ГРУППА ОСНОВНЫХ ПРОЦЕССОВ ","БП1-2 ПОДГРУППА - ПРОИЗВОДСТВО ПРОДУКТОВ ПЕРЕРАБОТКИ УГЛЕВОДОРОДОВ И СПЕЦ. ПРОДУКЦИИ","Нефтепереработка и нефтехимия","Производство катализаторов","Управление сырьем Производство катализаторов"]
["БП1 ГРУППА ОСНОВНЫХ ПРОЦЕССОВ ","БП1-2 ПОДГРУППА - ПРОИЗВОДСТВО ПРОДУКТОВ ПЕРЕРАБОТКИ УГЛЕВОДОРОДОВ И СПЕЦ. ПРОДУКЦИИ","Нефтепереработка и нефтехимия","Производство катализаторов","Технологические процессы Производство катализаторов"]
["БП1 ГРУППА ОСНОВНЫХ ПРОЦЕССОВ ","БП1-2 ПОДГРУППА - ПРОИЗВОДСТВО ПРОДУКТОВ ПЕРЕРАБОТКИ УГЛЕВОДОРОДОВ И СПЕЦ. ПРОДУКЦИИ","Нефтепереработка и нефтехимия","Производство катализаторов","Эксплуатация и ремонт технологического оборудование Производство катализаторов"]
["БП1 ГРУППА ОСНОВНЫХ ПРОЦЕССОВ ","БП1-2 ПОДГРУППА - ПРОИЗВОДСТВО ПРОДУКТОВ ПЕРЕРАБОТКИ УГЛЕВОДОРОДОВ И СПЕЦ. ПРОДУКЦИИ","Нефтепереработка и нефтехимия","Производство катализаторов","Диспетчеризация Производство катализаторов"]
["БП1 ГРУППА ОСНОВНЫХ ПРОЦЕССОВ ","БП1-2 ПОДГРУППА - ПРОИЗВОДСТВО ПРОДУКТОВ ПЕРЕРАБОТКИ УГЛЕВОДОРОДОВ И СПЕЦ. ПРОДУКЦИИ","Нефтепереработка и нефтехимия","Производство катализаторов","Управление полуфабрикатами и продукцией Производство катализаторов"]
["БП1 ГРУППА ОСНОВНЫХ ПРОЦЕССОВ ","БП1-2 ПОДГРУППА - ПРОИЗВОДСТВО ПРОДУКТОВ ПЕРЕРАБОТКИ УГЛЕВОДОРОДОВ И СПЕЦ. ПРОДУКЦИИ","Нефтепереработка и нефтехимия","Производство катализаторов","Управление международными проектами в нефтепереработке и нефтехимии"]
["БП1 ГРУППА ОСНОВНЫХ ПРОЦЕССОВ ","БП1-2 ПОДГРУППА - ПРОИЗВОДСТВО ПРОДУКТОВ ПЕРЕРАБОТКИ УГЛЕВОДОРОДОВ И СПЕЦ. ПРОДУКЦИИ","Нефтепереработка и нефтехимия","Производство катализаторов","Управление проектами в нефтепереработке и нефтехимии "]
["БП1 ГРУППА ОСНОВНЫХ ПРОЦЕССОВ ","БП1-2 ПОДГРУППА - ПРОИЗВОДСТВО ПРОДУКТОВ ПЕРЕРАБОТКИ УГЛЕВОДОРОДОВ И СПЕЦ. ПРОДУКЦИИ","Газопереработка","Организация, управление и повышение эффективности процессов Газопереработка"]
["БП1 ГРУППА ОСНОВНЫХ ПРОЦЕССОВ ","БП1-2 ПОДГРУППА - ПРОИЗВОДСТВО ПРОДУКТОВ ПЕРЕРАБОТКИ УГЛЕВОДОРОДОВ И СПЕЦ. ПРОДУКЦИИ","Газопереработка","Оперативное планирование производства Переработки газа"]
["БП1 ГРУППА ОСНОВНЫХ ПРОЦЕССОВ ","БП1-2 ПОДГРУППА - ПРОИЗВОДСТВО ПРОДУКТОВ ПЕРЕРАБОТКИ УГЛЕВОДОРОДОВ И СПЕЦ. ПРОДУКЦИИ","Газопереработка","Подготовка  производства Переработки газа"]
["БП1 ГРУППА ОСНОВНЫХ ПРОЦЕССОВ ","БП1-2 ПОДГРУППА - ПРОИЗВОДСТВО ПРОДУКТОВ ПЕРЕРАБОТКИ УГЛЕВОДОРОДОВ И СПЕЦ. ПРОДУКЦИИ","Газопереработка","Управление сырьем Переработки газа"]
["БП1 ГРУППА ОСНОВНЫХ ПРОЦЕССОВ ","БП1-2 ПОДГРУППА - ПРОИЗВОДСТВО ПРОДУКТОВ ПЕРЕРАБОТКИ УГЛЕВОДОРОДОВ И СПЕЦ. ПРОДУКЦИИ","Газопереработка","Технологические процессы Переработки газа"]
["БП1 ГРУППА ОСНОВНЫХ ПРОЦЕССОВ ","БП1-2 ПОДГРУППА - ПРОИЗВОДСТВО ПРОДУКТОВ ПЕРЕРАБОТКИ УГЛЕВОДОРОДОВ И СПЕЦ. ПРОДУКЦИИ","Газопереработка","Эксплуатация и ремонт технологического оборудование Переработки газа"]
["БП1 ГРУППА ОСНОВНЫХ ПРОЦЕССОВ ","БП1-2 ПОДГРУППА - ПРОИЗВОДСТВО ПРОДУКТОВ ПЕРЕРАБОТКИ УГЛЕВОДОРОДОВ И СПЕЦ. ПРОДУКЦИИ","Газопереработка","Диспетчеризация производства Переработки газа"]
["БП1 ГРУППА ОСНОВНЫХ ПРОЦЕССОВ ","БП1-2 ПОДГРУППА - ПРОИЗВОДСТВО ПРОДУКТОВ ПЕРЕРАБОТКИ УГЛЕВОДОРОДОВ И СПЕЦ. ПРОДУКЦИИ","Газопереработка","Управление полуфабрикатами и продукцией Переработки газа"]
["БП1 ГРУППА ОСНОВНЫХ ПРОЦЕССОВ ","БП1-2 ПОДГРУППА - ПРОИЗВОДСТВО ПРОДУКТОВ ПЕРЕРАБОТКИ УГЛЕВОДОРОДОВ И СПЕЦ. ПРОДУКЦИИ","Газопереработка","Управление международными проектами в газопереработке и газохимии"]
["БП1 ГРУППА ОСНОВНЫХ ПРОЦЕССОВ ","БП1-3 ПОДГРУППА - КОММЕРЦИЯ И ЛОГИСТИКА","Распределение и оптимизация поставок  углеводородов и продуктов их переработки"]
["БП1 ГРУППА ОСНОВНЫХ ПРОЦЕССОВ ","БП1-3 ПОДГРУППА - КОММЕРЦИЯ И ЛОГИСТИКА","Транспортировка углеводородов и продуктов их переработки","Железнодорожные перевозки"]
["БП1 ГРУППА ОСНОВНЫХ ПРОЦЕССОВ ","БП1-3 ПОДГРУППА - КОММЕРЦИЯ И ЛОГИСТИКА","Транспортировка углеводородов и продуктов их переработки","Морские и речные перевозки"]
["БП1 ГРУППА ОСНОВНЫХ ПРОЦЕССОВ ","БП1-3 ПОДГРУППА - КОММЕРЦИЯ И ЛОГИСТИКА","Транспортировка углеводородов и продуктов их переработки","Трубопроводная транспортировка"]
["БП1 ГРУППА ОСНОВНЫХ ПРОЦЕССОВ ","БП1-3 ПОДГРУППА - КОММЕРЦИЯ И ЛОГИСТИКА","Перевалка и хранение нефти и нефтепродуктов через терминалы","Анализ рынка и реклама для перевалки и хранения углеводородов"]
["БП1 ГРУППА ОСНОВНЫХ ПРОЦЕССОВ ","БП1-3 ПОДГРУППА - КОММЕРЦИЯ И ЛОГИСТИКА","Перевалка и хранение нефти и нефтепродуктов через терминалы","Развитие перевалки и хранения углеводородов"]
["БП1 ГРУППА ОСНОВНЫХ ПРОЦЕССОВ ","БП1-3 ПОДГРУППА - КОММЕРЦИЯ И ЛОГИСТИКА","Перевалка и хранение нефти и нефтепродуктов через терминалы","Ценообразование для перевалки и хранения углеводородов"]
["БП1 ГРУППА ОСНОВНЫХ ПРОЦЕССОВ ","БП1-3 ПОДГРУППА - КОММЕРЦИЯ И ЛОГИСТИКА","Перевалка и хранение нефти и нефтепродуктов через терминалы","Организация и управление производством перевалки и хранения углеводородов"]
["БП1 ГРУППА ОСНОВНЫХ ПРОЦЕССОВ ","БП1-3 ПОДГРУППА - КОММЕРЦИЯ И ЛОГИСТИКА","Перевалка и хранение нефти и нефтепродуктов через терминалы","Эксплуатация нефтебазового хозяйства"]
["БП1 ГРУППА ОСНОВНЫХ ПРОЦЕССОВ ","БП1-3 ПОДГРУППА - КОММЕРЦИЯ И ЛОГИСТИКА","Реализация нефти, продуктов ее переработки и спец. продукции","Трейдинг и оптовая реализация нефти, нефтепродуктов","Анализ рынка реализации нефти, нефтепродуктов"]
["БП1 ГРУППА ОСНОВНЫХ ПРОЦЕССОВ ","БП1-3 ПОДГРУППА - КОММЕРЦИЯ И ЛОГИСТИКА","Реализация нефти, продуктов ее переработки и спец. продукции","Трейдинг и оптовая реализация нефти, нефтепродуктов","Организация и управление продажами нефти и нефтепродуктов"]
["БП1 ГРУППА ОСНОВНЫХ ПРОЦЕССОВ ","БП1-3 ПОДГРУППА - КОММЕРЦИЯ И ЛОГИСТИКА","Реализация нефти, продуктов ее переработки и спец. продукции","Трейдинг и оптовая реализация нефти, нефтепродуктов","Ценообразование для оптовых продаж нефти и нефтепродуктов"]
["БП1 ГРУППА ОСНОВНЫХ ПРОЦЕССОВ ","БП1-3 ПОДГРУППА - КОММЕРЦИЯ И ЛОГИСТИКА","Реализация нефти, продуктов ее переработки и спец. продукции","Трейдинг и оптовая реализация нефти, нефтепродуктов","Работа на бирже по продаже/закупке нефти и нефтепродуктов"]
["БП1 ГРУППА ОСНОВНЫХ ПРОЦЕССОВ ","БП1-3 ПОДГРУППА - КОММЕРЦИЯ И ЛОГИСТИКА","Реализация нефти, продуктов ее переработки и спец. продукции","Трейдинг и оптовая реализация нефти, нефтепродуктов","Оптовые продажи нефти и нефтепродуктов"]
["БП1 ГРУППА ОСНОВНЫХ ПРОЦЕССОВ ","БП1-3 ПОДГРУППА - КОММЕРЦИЯ И ЛОГИСТИКА","Реализация нефти, продуктов ее переработки и спец. продукции","Трейдинг и оптовая реализация нефти, нефтепродуктов","Закупка нефти и нефтепродуктов (не через биржу)"]
["БП1 ГРУППА ОСНОВНЫХ ПРОЦЕССОВ ","БП1-3 ПОДГРУППА - КОММЕРЦИЯ И ЛОГИСТИКА","Реализация нефти, продуктов ее переработки и спец. продукции","Трейдинг и оптовая реализация нефти, нефтепродуктов","Развитие продаж нефти и нефтепродуктов"]
["БП1 ГРУППА ОСНОВНЫХ ПРОЦЕССОВ ","БП1-3 ПОДГРУППА - КОММЕРЦИЯ И ЛОГИСТИКА","Реализация нефти, продуктов ее переработки и спец. продукции","Мелкооптовая реализация нефтепродуктов","Анализ рынка и реклама для мелкооптовых продаж нефтепродуктов"]
["БП1 ГРУППА ОСНОВНЫХ ПРОЦЕССОВ ","БП1-3 ПОДГРУППА - КОММЕРЦИЯ И ЛОГИСТИКА","Реализация нефти, продуктов ее переработки и спец. продукции","Мелкооптовая реализация нефтепродуктов","Развитие мелкооптовых продаж нефтепродуктов"]
["БП1 ГРУППА ОСНОВНЫХ ПРОЦЕССОВ ","БП1-3 ПОДГРУППА - КОММЕРЦИЯ И ЛОГИСТИКА","Реализация нефти, продуктов ее переработки и спец. продукции","Мелкооптовая реализация нефтепродуктов","Организация и управление мелкооптовыми продажами нефтепродуктов"]
["БП1 ГРУППА ОСНОВНЫХ ПРОЦЕССОВ ","БП1-3 ПОДГРУППА - КОММЕРЦИЯ И ЛОГИСТИКА","Реализация нефти, продуктов ее переработки и спец. продукции","Мелкооптовая реализация нефтепродуктов","Ценообразование для мелкооптовых продаж нефтепродуктов"]
["БП1 ГРУППА ОСНОВНЫХ ПРОЦЕССОВ ","БП1-3 ПОДГРУППА - КОММЕРЦИЯ И ЛОГИСТИКА","Реализация нефти, продуктов ее переработки и спец. продукции","Мелкооптовая реализация нефтепродуктов","Продажи нефтепродуктов"]
["БП1 ГРУППА ОСНОВНЫХ ПРОЦЕССОВ ","БП1-3 ПОДГРУППА - КОММЕРЦИЯ И ЛОГИСТИКА","Реализация нефти, продуктов ее переработки и спец. продукции","Мелкооптовая реализация нефтепродуктов","Система безналичных расчетов для мелкооптовых продаж нефтепродуктов"]
["БП1 ГРУППА ОСНОВНЫХ ПРОЦЕССОВ ","БП1-3 ПОДГРУППА - КОММЕРЦИЯ И ЛОГИСТИКА","Реализация нефти, продуктов ее переработки и спец. продукции","Мелкооптовая реализация нефтепродуктов","Эксплуатация нефтебазового хозяйства"]
["БП1 ГРУППА ОСНОВНЫХ ПРОЦЕССОВ ","БП1-3 ПОДГРУППА - КОММЕРЦИЯ И ЛОГИСТИКА","Реализация нефти, продуктов ее переработки и спец. продукции","Розничная реализация через АЗК/АЗС и сопутствующих товаров","Анализ рынка и реклама для реализации нефтепродуктов через АЗК/АЗС и сопутствующих товаров"]
["БП1 ГРУППА ОСНОВНЫХ ПРОЦЕССОВ ","БП1-3 ПОДГРУППА - КОММЕРЦИЯ И ЛОГИСТИКА","Реализация нефти, продуктов ее переработки и спец. продукции","Розничная реализация через АЗК/АЗС и сопутствующих товаров","Развитие продаж  нефтепродуктов через АЗК/АЗС и сопутствующих товаров"]
["БП1 ГРУППА ОСНОВНЫХ ПРОЦЕССОВ ","БП1-3 ПОДГРУППА - КОММЕРЦИЯ И ЛОГИСТИКА","Реализация нефти, продуктов ее переработки и спец. продукции","Розничная реализация через АЗК/АЗС и сопутствующих товаров","Организация и управление продажами нефтепродуктов через АЗК/АЗС и сопутствующих товаров"]
["БП1 ГРУППА ОСНОВНЫХ ПРОЦЕССОВ ","БП1-3 ПОДГРУППА - КОММЕРЦИЯ И ЛОГИСТИКА","Реализация нефти, продуктов ее переработки и спец. продукции","Розничная реализация через АЗК/АЗС и сопутствующих товаров","Ценообразование для реализации нефтепродуктов через АЗК/АЗС и сопутствующих товаров"]
["БП1 ГРУППА ОСНОВНЫХ ПРОЦЕССОВ ","БП1-3 ПОДГРУППА - КОММЕРЦИЯ И ЛОГИСТИКА","Реализация нефти, продуктов ее переработки и спец. продукции","Розничная реализация через АЗК/АЗС и сопутствующих товаров","Продажи нефтепродуктов через АЗК/АЗС "]
["БП1 ГРУППА ОСНОВНЫХ ПРОЦЕССОВ ","БП1-3 ПОДГРУППА - КОММЕРЦИЯ И ЛОГИСТИКА","Реализация нефти, продуктов ее переработки и спец. продукции","Розничная реализация через АЗК/АЗС и сопутствующих товаров","Продажи сопутствующей продукции"]
["БП1 ГРУППА ОСНОВНЫХ ПРОЦЕССОВ ","БП1-3 ПОДГРУППА - КОММЕРЦИЯ И ЛОГИСТИКА","Реализация нефти, продуктов ее переработки и спец. продукции","Розничная реализация через АЗК/АЗС и сопутствующих товаров","Закупка сопутствующих товаров"]
["БП1 ГРУППА ОСНОВНЫХ ПРОЦЕССОВ ","БП1-3 ПОДГРУППА - КОММЕРЦИЯ И ЛОГИСТИКА","Реализация нефти, продуктов ее переработки и спец. продукции","Розничная реализация через АЗК/АЗС и сопутствующих товаров","Эксплуатация АЗС/АЗК"]
["БП1 ГРУППА ОСНОВНЫХ ПРОЦЕССОВ ","БП1-3 ПОДГРУППА - КОММЕРЦИЯ И ЛОГИСТИКА","Реализация нефти, продуктов ее переработки и спец. продукции","Продажа специальных нефтепродуктов и услуг","Реализация СУГ и продукции нефтехимии"]
["БП1 ГРУППА ОСНОВНЫХ ПРОЦЕССОВ ","БП1-3 ПОДГРУППА - КОММЕРЦИЯ И ЛОГИСТИКА","Реализация нефти, продуктов ее переработки и спец. продукции","Продажа специальных нефтепродуктов и услуг","Реализация масел, смазок, присадок"]
["БП1 ГРУППА ОСНОВНЫХ ПРОЦЕССОВ ","БП1-3 ПОДГРУППА - КОММЕРЦИЯ И ЛОГИСТИКА","Реализация нефти, продуктов ее переработки и спец. продукции","Продажа специальных нефтепродуктов и услуг","Реализация битумов"]
["БП1 ГРУППА ОСНОВНЫХ ПРОЦЕССОВ ","БП1-3 ПОДГРУППА - КОММЕРЦИЯ И ЛОГИСТИКА","Реализация нефти, продуктов ее переработки и спец. продукции","Продажа специальных нефтепродуктов и услуг","Бункеровка"]
["БП1 ГРУППА ОСНОВНЫХ ПРОЦЕССОВ ","БП1-3 ПОДГРУППА - КОММЕРЦИЯ И ЛОГИСТИКА","Реализация нефти, продуктов ее переработки и спец. продукции","Продажа специальных нефтепродуктов и услуг","Авиазаправка"]
["БП1 ГРУППА ОСНОВНЫХ ПРОЦЕССОВ ","БП1-3 ПОДГРУППА - КОММЕРЦИЯ И ЛОГИСТИКА","Реализация нефти, продуктов ее переработки и спец. продукции","Организация, управление и повышение эффективности процессов Реализации нефти, продуктов её переработки и спецпродукции"]
["БП1 ГРУППА ОСНОВНЫХ ПРОЦЕССОВ ","БП1-3 ПОДГРУППА - КОММЕРЦИЯ И ЛОГИСТИКА","Реализация нефти, продуктов ее переработки и спец. продукции","Управление проектов в реализации нефти, нефтепродуктов и специальной продукции"]
["БП1 ГРУППА ОСНОВНЫХ ПРОЦЕССОВ ","БП1-3 ПОДГРУППА - КОММЕРЦИЯ И ЛОГИСТИКА","Реализация газа продуктов его переработки","Трейдинг и оптовая реализация газа и продуктов переработки газа","Анализ рынка реализации газа и продуктов переработки газа"]
["БП1 ГРУППА ОСНОВНЫХ ПРОЦЕССОВ ","БП1-3 ПОДГРУППА - КОММЕРЦИЯ И ЛОГИСТИКА","Реализация газа продуктов его переработки","Трейдинг и оптовая реализация газа и продуктов переработки газа","Организация и управление продажами газа и продуктов переработки газа"]
["БП1 ГРУППА ОСНОВНЫХ ПРОЦЕССОВ ","БП1-3 ПОДГРУППА - КОММЕРЦИЯ И ЛОГИСТИКА","Реализация газа продуктов его переработки","Трейдинг и оптовая реализация газа и продуктов переработки газа","Ценообразование для оптовых продаж газа и продуктов переработки газа"]
["БП1 ГРУППА ОСНОВНЫХ ПРОЦЕССОВ ","БП1-3 ПОДГРУППА - КОММЕРЦИЯ И ЛОГИСТИКА","Реализация газа продуктов его переработки","Трейдинг и оптовая реализация газа и продуктов переработки газа","Работа на бирже по продаже/закупке газа и продуктов переработки газа"]
["БП1 ГРУППА ОСНОВНЫХ ПРОЦЕССОВ ","БП1-3 ПОДГРУППА - КОММЕРЦИЯ И ЛОГИСТИКА","Реализация газа продуктов его переработки","Трейдинг и оптовая реализация газа и продуктов переработки газа","Оптовые продажи газа и продуктов переработки газа"]
["БП1 ГРУППА ОСНОВНЫХ ПРОЦЕССОВ ","БП1-3 ПОДГРУППА - КОММЕРЦИЯ И ЛОГИСТИКА","Реализация газа продуктов его переработки","Трейдинг и оптовая реализация газа и продуктов переработки газа","Закупка газа и продуктов переработки газа(не через биржу)"]
["БП1 ГРУППА ОСНОВНЫХ ПРОЦЕССОВ ","БП1-3 ПОДГРУППА - КОММЕРЦИЯ И ЛОГИСТИКА","Реализация газа продуктов его переработки","Трейдинг и оптовая реализация газа и продуктов переработки газа","Развитие продаж газа и продуктов переработки газа"]
["БП1 ГРУППА ОСНОВНЫХ ПРОЦЕССОВ ","БП1-3 ПОДГРУППА - КОММЕРЦИЯ И ЛОГИСТИКА","Реализация газа продуктов его переработки","Розничная реализация через АГЗС"]
["БП1 ГРУППА ОСНОВНЫХ ПРОЦЕССОВ ","БП1-3 ПОДГРУППА - КОММЕРЦИЯ И ЛОГИСТИКА","Реализация газа продуктов его переработки","Организация, управление и повышение эффективности процессов Реализации газа, продуктов его переработки и спецпродукции"]
["БП1 ГРУППА ОСНОВНЫХ ПРОЦЕССОВ ","БП1-3 ПОДГРУППА - КОММЕРЦИЯ И ЛОГИСТИКА","Реализация газа продуктов его переработки","Управление проектов в реализации газа, продуктов его переработки"]

{"sheet":"Процессы прочие","index":7,"n_rows":202,"n_cols":5,"rows_kept":202,"cut":false,"hidden":true,"merged":[]}
["БП2 ГРУППА ПРОЦЕССОВ УПРАВЛЕНИЯ","БП2-1 ПОДГРУППА - СТРАТЕГИЯ, БИЗНЕС-ПЛАНИРОВАНИЕ, ОТЧЕТНОСТЬ И ИНВЕСТИЦИИ","Стратегия и развитие бизнеса Компании","Организация, управление и повышение эффективности процессов Бизнес-планирования и отчетности"]
["БП2 ГРУППА ПРОЦЕССОВ УПРАВЛЕНИЯ","БП2-1 ПОДГРУППА - СТРАТЕГИЯ, БИЗНЕС-ПЛАНИРОВАНИЕ, ОТЧЕТНОСТЬ И ИНВЕСТИЦИИ","Стратегия и развитие бизнеса Компании","Анализ и экспертиза внешней и внутренней среды"]
["БП2 ГРУППА ПРОЦЕССОВ УПРАВЛЕНИЯ","БП2-1 ПОДГРУППА - СТРАТЕГИЯ, БИЗНЕС-ПЛАНИРОВАНИЕ, ОТЧЕТНОСТЬ И ИНВЕСТИЦИИ","Стратегия и развитие бизнеса Компании","Разработка стратегии"]
["БП2 ГРУППА ПРОЦЕССОВ УПРАВЛЕНИЯ","БП2-1 ПОДГРУППА - СТРАТЕГИЯ, БИЗНЕС-ПЛАНИРОВАНИЕ, ОТЧЕТНОСТЬ И ИНВЕСТИЦИИ","Стратегия и развитие бизнеса Компании","Приобретения, слияния и поглощения"]
["БП2 ГРУППА ПРОЦЕССОВ УПРАВЛЕНИЯ","БП2-1 ПОДГРУППА - СТРАТЕГИЯ, БИЗНЕС-ПЛАНИРОВАНИЕ, ОТЧЕТНОСТЬ И ИНВЕСТИЦИИ","Стратегия и развитие бизнеса Компании","Управление стратегическими инициативами и соглашениями"]
["БП2 ГРУППА ПРОЦЕССОВ УПРАВЛЕНИЯ","БП2-1 ПОДГРУППА - СТРАТЕГИЯ, БИЗНЕС-ПЛАНИРОВАНИЕ, ОТЧЕТНОСТЬ И ИНВЕСТИЦИИ","Бизнес-планирование, годовое бюджетирование и отчётность","Организация, управление и повышение эффективности процессов Бизнес-планирования и отчетности"]
["БП2 ГРУППА ПРОЦЕССОВ УПРАВЛЕНИЯ","БП2-1 ПОДГРУППА - СТРАТЕГИЯ, БИЗНЕС-ПЛАНИРОВАНИЕ, ОТЧЕТНОСТЬ И ИНВЕСТИЦИИ","Бизнес-планирование, годовое бюджетирование и отчётность","Определение целевых показателей эффективности бизнеса"]
["БП2 ГРУППА ПРОЦЕССОВ УПРАВЛЕНИЯ","БП2-1 ПОДГРУППА - СТРАТЕГИЯ, БИЗНЕС-ПЛАНИРОВАНИЕ, ОТЧЕТНОСТЬ И ИНВЕСТИЦИИ","Бизнес-планирование, годовое бюджетирование и отчётность","Формирование и контроль выполнения бизнес-плана Компании","Формирование, корректировка и контроль исполнение бизнес-плана"]
["БП2 ГРУППА ПРОЦЕССОВ УПРАВЛЕНИЯ","БП2-1 ПОДГРУППА - СТРАТЕГИЯ, БИЗНЕС-ПЛАНИРОВАНИЕ, ОТЧЕТНОСТЬ И ИНВЕСТИЦИИ","Бизнес-планирование, годовое бюджетирование и отчётность","Формирование и контроль выполнения бизнес-плана Компании","Долгосрочная финансовая модель "]
["БП2 ГРУППА ПРОЦЕССОВ УПРАВЛЕНИЯ","БП2-1 ПОДГРУППА - СТРАТЕГИЯ, БИЗНЕС-ПЛАНИРОВАНИЕ, ОТЧЕТНОСТЬ И ИНВЕСТИЦИИ","Бизнес-планирование, годовое бюджетирование и отчётность","Формирование и контроль выполнения бизнес-плана Компании","Управление эффективностью"]
["БП2 ГРУППА ПРОЦЕССОВ УПРАВЛЕНИЯ","БП2-1 ПОДГРУППА - СТРАТЕГИЯ, БИЗНЕС-ПЛАНИРОВАНИЕ, ОТЧЕТНОСТЬ И ИНВЕСТИЦИИ","Бизнес-планирование, годовое бюджетирование и отчётность","Формирование и контроль выполнения бизнес-плана Компании","Налоговое планирование и оптимизация"]
["БП2 ГРУППА ПРОЦЕССОВ УПРАВЛЕНИЯ","БП2-1 ПОДГРУППА - СТРАТЕГИЯ, БИЗНЕС-ПЛАНИРОВАНИЕ, ОТЧЕТНОСТЬ И ИНВЕСТИЦИИ","Бизнес-планирование, годовое бюджетирование и отчётность","Формирование годового бюджета Компании"]
["БП2 ГРУППА ПРОЦЕССОВ УПРАВЛЕНИЯ","БП2-1 ПОДГРУППА - СТРАТЕГИЯ, БИЗНЕС-ПЛАНИРОВАНИЕ, ОТЧЕТНОСТЬ И ИНВЕСТИЦИИ","Бизнес-планирование, годовое бюджетирование и отчётность","Формирование отчетности"]
["БП2 ГРУППА ПРОЦЕССОВ УПРАВЛЕНИЯ","БП2-1 ПОДГРУППА - СТРАТЕГИЯ, БИЗНЕС-ПЛАНИРОВАНИЕ, ОТЧЕТНОСТЬ И ИНВЕСТИЦИИ","Бизнес-планирование, годовое бюджетирование и отчётность","Формирование финансовой отчетности по РСБУ"]
["БП2 ГРУППА ПРОЦЕССОВ УПРАВЛЕНИЯ","БП2-1 ПОДГРУППА - СТРАТЕГИЯ, БИЗНЕС-ПЛАНИРОВАНИЕ, ОТЧЕТНОСТЬ И ИНВЕСТИЦИИ","Бизнес-планирование, годовое бюджетирование и отчётность","Формирование финансовой отчетности по МСФО"]
["БП2 ГРУППА ПРОЦЕССОВ УПРАВЛЕНИЯ","БП2-1 ПОДГРУППА - СТРАТЕГИЯ, БИЗНЕС-ПЛАНИРОВАНИЕ, ОТЧЕТНОСТЬ И ИНВЕСТИЦИИ","Бизнес-планирование, годовое бюджетирование и отчётность","Формирование управленческой отчетности"]
["БП2 ГРУППА ПРОЦЕССОВ УПРАВЛЕНИЯ","БП2-1 ПОДГРУППА - СТРАТЕГИЯ, БИЗНЕС-ПЛАНИРОВАНИЕ, ОТЧЕТНОСТЬ И ИНВЕСТИЦИИ","Управление инвестициями","Организация и совершенствование процессов управления инвестициями"]
["БП2 ГРУППА ПРОЦЕССОВ УПРАВЛЕНИЯ","БП2-1 ПОДГРУППА - СТРАТЕГИЯ, БИЗНЕС-ПЛАНИРОВАНИЕ, ОТЧЕТНОСТЬ И ИНВЕСТИЦИИ","Управление инвестициями","Разработка методологии проектного управления и контроля реализации крупных капитальных проектов"]
["БП2 ГРУППА ПРОЦЕССОВ УПРАВЛЕНИЯ","БП2-1 ПОДГРУППА - СТРАТЕГИЯ, БИЗНЕС-ПЛАНИРОВАНИЕ, ОТЧЕТНОСТЬ И ИНВЕСТИЦИИ","Управление инвестициями","Инициирование и утверждение инвестиционных проектов"]
["БП2 ГРУППА ПРОЦЕССОВ УПРАВЛЕНИЯ","БП2-1 ПОДГРУППА - СТРАТЕГИЯ, БИЗНЕС-ПЛАНИРОВАНИЕ, ОТЧЕТНОСТЬ И ИНВЕСТИЦИИ","Управление инвестициями","Мониторинг реализации утвержденных инвестиционных проектов"]
["БП2 ГРУППА ПРОЦЕССОВ УПРАВЛЕНИЯ","БП2-1 ПОДГРУППА - СТРАТЕГИЯ, БИЗНЕС-ПЛАНИРОВАНИЕ, ОТЧЕТНОСТЬ И ИНВЕСТИЦИИ","Управление инвестициями","Послепроектный мониторинг инвестиционных проектов"]
["БП2 ГРУППА ПРОЦЕССОВ УПРАВЛЕНИЯ","БП2-1 ПОДГРУППА - СТРАТЕГИЯ, БИЗНЕС-ПЛАНИРОВАНИЕ, ОТЧЕТНОСТЬ И ИНВЕСТИЦИИ","Управление инвестициями","Управление портфелем инвестиционных проектов"]
["БП2 ГРУППА ПРОЦЕССОВ УПРАВЛЕНИЯ","БП2-1 ПОДГРУППА - СТРАТЕГИЯ, БИЗНЕС-ПЛАНИРОВАНИЕ, ОТЧЕТНОСТЬ И ИНВЕСТИЦИИ","Управление инвестициями","Организация инвестиционных процессов и проведения заседаний инвестиционного комитета"]
["БП2 ГРУППА ПРОЦЕССОВ УПРАВЛЕНИЯ","БП2-2 ПОДГРУППА - ОРГАНИЗАЦИЯ И ОБЕСПЕЧЕНИЕ СИСТЕМЫ УПРАВЛЕНИЯ","Создание и развитие системы управления Компании","Организация, управление и повышение эффективности Системы управления"]
["БП2 ГРУППА ПРОЦЕССОВ УПРАВЛЕНИЯ","БП2-2 ПОДГРУППА - ОРГАНИЗАЦИЯ И ОБЕСПЕЧЕНИЕ СИСТЕМЫ УПРАВЛЕНИЯ","Создание и развитие системы управления Компании","Обеспечение работы с акционерами Компании"]
["БП2 ГРУППА ПРОЦЕССОВ УПРАВЛЕНИЯ","БП2-2 ПОДГРУППА - ОРГАНИЗАЦИЯ И ОБЕСПЕЧЕНИЕ СИСТЕМЫ УПРАВЛЕНИЯ","Создание и развитие системы управления Компании","Обеспечение работы органов управления (Совет директоров и Правление)"]
["БП2 ГРУППА ПРОЦЕССОВ УПРАВЛЕНИЯ","БП2-2 ПОДГРУППА - ОРГАНИЗАЦИЯ И ОБЕСПЕЧЕНИЕ СИСТЕМЫ УПРАВЛЕНИЯ","Создание и развитие системы управления Компании","Корпоративное управление Обществами Группы"]
["БП2 ГРУППА ПРОЦЕССОВ УПРАВЛЕНИЯ","БП2-2 ПОДГРУППА - ОРГАНИЗАЦИЯ И ОБЕСПЕЧЕНИЕ СИСТЕМЫ УПРАВЛЕНИЯ","Создание и развитие системы управления Компании","Управление долями и акциями в Обществах Группы и Совместных предприятиях","Приобретение долей и акций"]
["БП2 ГРУППА ПРОЦЕССОВ УПРАВЛЕНИЯ","БП2-2 ПОДГРУППА - ОРГАНИЗАЦИЯ И ОБЕСПЕЧЕНИЕ СИСТЕМЫ УПРАВЛЕНИЯ","Создание и развитие системы управления Компании","Управление долями и акциями в Обществах Группы и Совместных предприятиях","Реализация долей и акций"]
["БП2 ГРУППА ПРОЦЕССОВ УПРАВЛЕНИЯ","БП2-2 ПОДГРУППА - ОРГАНИЗАЦИЯ И ОБЕСПЕЧЕНИЕ СИСТЕМЫ УПРАВЛЕНИЯ","Создание и развитие системы управления Компании","Управление долями и акциями в Обществах Группы и Совместных предприятиях","Реструктуризация корпоративной структуры"]
["БП2 ГРУППА ПРОЦЕССОВ УПРАВЛЕНИЯ","БП2-2 ПОДГРУППА - ОРГАНИЗАЦИЯ И ОБЕСПЕЧЕНИЕ СИСТЕМЫ УПРАВЛЕНИЯ","Создание и развитие системы управления Компании","Управление долями и акциями в Обществах Группы и Совместных предприятиях","Учет и регистрация долей и акций"]
["БП2 ГРУППА ПРОЦЕССОВ УПРАВЛЕНИЯ","БП2-2 ПОДГРУППА - ОРГАНИЗАЦИЯ И ОБЕСПЕЧЕНИЕ СИСТЕМЫ УПРАВЛЕНИЯ","Создание и развитие системы управления Компании","Обеспечение работы Президента","Работа Приемной Президента"]
["БП2 ГРУППА ПРОЦЕССОВ УПРАВЛЕНИЯ","БП2-2 ПОДГРУППА - ОРГАНИЗАЦИЯ И ОБЕСПЕЧЕНИЕ СИСТЕМЫ УПРАВЛЕНИЯ","Создание и развитие системы управления Компании","Обеспечение работы Президента","Организация проведения мероприятий под руководством Президента Компании (визиты, встречи, совещания)"]
["БП2 ГРУППА ПРОЦЕССОВ УПРАВЛЕНИЯ","БП2-2 ПОДГРУППА - ОРГАНИЗАЦИЯ И ОБЕСПЕЧЕНИЕ СИСТЕМЫ УПРАВЛЕНИЯ","Создание и развитие системы управления Компании","Обеспечение работы Президента","Контроль исполнения поручений и распорядительных документов"]
["БП2 ГРУППА ПРОЦЕССОВ УПРАВЛЕНИЯ","БП2-2 ПОДГРУППА - ОРГАНИЗАЦИЯ И ОБЕСПЕЧЕНИЕ СИСТЕМЫ УПРАВЛЕНИЯ","Создание и развитие системы управления Компании","Обеспечение работы Президента","Развитие и координация информационного обеспечения работы Президента (ИС \"Президентский мониторинг\")"]
["БП2 ГРУППА ПРОЦЕССОВ УПРАВЛЕНИЯ","БП2-2 ПОДГРУППА - ОРГАНИЗАЦИЯ И ОБЕСПЕЧЕНИЕ СИСТЕМЫ УПРАВЛЕНИЯ","Создание и развитие системы управления Компании","Обеспечение работы Президента","Контроль исполнения договоров и стратегических соглашений"]
["БП2 ГРУППА ПРОЦЕССОВ УПРАВЛЕНИЯ","БП2-2 ПОДГРУППА - ОРГАНИЗАЦИЯ И ОБЕСПЕЧЕНИЕ СИСТЕМЫ УПРАВЛЕНИЯ","Создание и развитие системы управления Компании","Обеспечение работы Президента","Обеспечение подготовки и проведения протокольных мероприятий с участием Президента"]
["БП2 ГРУППА ПРОЦЕССОВ УПРАВЛЕНИЯ","БП2-2 ПОДГРУППА - ОРГАНИЗАЦИЯ И ОБЕСПЕЧЕНИЕ СИСТЕМЫ УПРАВЛЕНИЯ","Создание и развитие системы управления Компании","Обеспечение работы Президента","Подготовка экспертно-аналитических и информационно-справочных материалов для Президента"]
["БП2 ГРУППА ПРОЦЕССОВ УПРАВЛЕНИЯ","БП2-2 ПОДГРУППА - ОРГАНИЗАЦИЯ И ОБЕСПЕЧЕНИЕ СИСТЕМЫ УПРАВЛЕНИЯ","Создание и развитие системы управления Компании","Управление эффективностью системы управления (моделирование бизнеса, ЦОМ, бизнес-процессы)","Организация, управление и повышение эффективности процессов Управления эффективностью системы управления"]
["БП2 ГРУППА ПРОЦЕССОВ УПРАВЛЕНИЯ","БП2-2 ПОДГРУППА - ОРГАНИЗАЦИЯ И ОБЕСПЕЧЕНИЕ СИСТЕМЫ УПРАВЛЕНИЯ","Создание и развитие системы управления Компании","Управление эффективностью системы управления (моделирование бизнеса, ЦОМ, бизнес-процессы)","Модель управления бизнеса  (ЦОМ)"]
["БП2 ГРУППА ПРОЦЕССОВ УПРАВЛЕНИЯ","БП2-2 ПОДГРУППА - ОРГАНИЗАЦИЯ И ОБЕСПЕЧЕНИЕ СИСТЕМЫ УПРАВЛЕНИЯ","Создание и развитие системы управления Компании","Управление эффективностью системы управления (моделирование бизнеса, ЦОМ, бизнес-процессы)","Моделирование бизнес-процессов"]
["БП2 ГРУППА ПРОЦЕССОВ УПРАВЛЕНИЯ","БП2-2 ПОДГРУППА - ОРГАНИЗАЦИЯ И ОБЕСПЕЧЕНИЕ СИСТЕМЫ УПРАВЛЕНИЯ","Создание и развитие системы управления Компании","Управление эффективностью системы управления (моделирование бизнеса, ЦОМ, бизнес-процессы)","Анализ и внедрение практик повышения эффективности системы управления"]
["БП2 ГРУППА ПРОЦЕССОВ УПРАВЛЕНИЯ","БП2-2 ПОДГРУППА - ОРГАНИЗАЦИЯ И ОБЕСПЕЧЕНИЕ СИСТЕМЫ УПРАВЛЕНИЯ","Создание и развитие системы управления Компании","Документационное обеспечение управления","Работа с корреспонденцией"]
["БП2 ГРУППА ПРОЦЕССОВ УПРАВЛЕНИЯ","БП2-2 ПОДГРУППА - ОРГАНИЗАЦИЯ И ОБЕСПЕЧЕНИЕ СИСТЕМЫ УПРАВЛЕНИЯ","Создание и развитие системы управления Компании","Документационное обеспечение управления","Работа с резолюциями"]
["БП2 ГРУППА ПРОЦЕССОВ УПРАВЛЕНИЯ","БП2-2 ПОДГРУППА - ОРГАНИЗАЦИЯ И ОБЕСПЕЧЕНИЕ СИСТЕМЫ УПРАВЛЕНИЯ","Создание и развитие системы управления Компании","Документационное обеспечение управления","Управление архивом"]
["БП2 ГРУППА ПРОЦЕССОВ УПРАВЛЕНИЯ","БП2-2 ПОДГРУППА - ОРГАНИЗАЦИЯ И ОБЕСПЕЧЕНИЕ СИСТЕМЫ УПРАВЛЕНИЯ","Создание и развитие системы управления Компании","Документационное обеспечение управления","Делопроизводство договоров"]
["БП2 ГРУППА ПРОЦЕССОВ УПРАВЛЕНИЯ","БП2-2 ПОДГРУППА - ОРГАНИЗАЦИЯ И ОБЕСПЕЧЕНИЕ СИСТЕМЫ УПРАВЛЕНИЯ","Создание и развитие системы управления Компании","Документационное обеспечение управления","Работа с поручениями Президента"]
["БП2 ГРУППА ПРОЦЕССОВ УПРАВЛЕНИЯ","БП2-2 ПОДГРУППА - ОРГАНИЗАЦИЯ И ОБЕСПЕЧЕНИЕ СИСТЕМЫ УПРАВЛЕНИЯ","Создание и развитие системы управления Компании","Документационное обеспечение управления","Работа с обращениями на имя Президента"]
["БП2 ГРУППА ПРОЦЕССОВ УПРАВЛЕНИЯ","БП2-2 ПОДГРУППА - ОРГАНИЗАЦИЯ И ОБЕСПЕЧЕНИЕ СИСТЕМЫ УПРАВЛЕНИЯ","Создание и развитие системы управления Компании","Документационное обеспечение управления","Работа с распорядительной документацией"]
["БП2 ГРУППА ПРОЦЕССОВ УПРАВЛЕНИЯ","БП2-2 ПОДГРУППА - ОРГАНИЗАЦИЯ И ОБЕСПЕЧЕНИЕ СИСТЕМЫ УПРАВЛЕНИЯ","Создание и развитие системы управления Компании","Документационное обеспечение управления","Обращение печатей и штампов"]
["БП2 ГРУППА ПРОЦЕССОВ УПРАВЛЕНИЯ","БП2-2 ПОДГРУППА - ОРГАНИЗАЦИЯ И ОБЕСПЕЧЕНИЕ СИСТЕМЫ УПРАВЛЕНИЯ","Создание и развитие системы управления Компании","Управление Политиками, Стандартами и др. ЛНД","Разработка/актуализация ЛНД"]
["БП2 ГРУППА ПРОЦЕССОВ УПРАВЛЕНИЯ","БП2-2 ПОДГРУППА - ОРГАНИЗАЦИЯ И ОБЕСПЕЧЕНИЕ СИСТЕМЫ УПРАВЛЕНИЯ","Создание и развитие системы управления Компании","Управление Политиками, Стандартами и др. ЛНД","Работа с ЛНД"]
["БП2 ГРУППА ПРОЦЕССОВ УПРАВЛЕНИЯ","БП2-2 ПОДГРУППА - ОРГАНИЗАЦИЯ И ОБЕСПЕЧЕНИЕ СИСТЕМЫ УПРАВЛЕНИЯ","Создание и развитие системы управления Компании","Управление Политиками, Стандартами и др. ЛНД","Работа с международными и национальными стандартами"]
["БП2 ГРУППА ПРОЦЕССОВ УПРАВЛЕНИЯ","БП2-2 ПОДГРУППА - ОРГАНИЗАЦИЯ И ОБЕСПЕЧЕНИЕ СИСТЕМЫ УПРАВЛЕНИЯ","Создание и развитие системы управления Компании","Управление Политиками, Стандартами и др. ЛНД","Работа с информационно-справочными документами"]
["БП2 ГРУППА ПРОЦЕССОВ УПРАВЛЕНИЯ","БП2-2 ПОДГРУППА - ОРГАНИЗАЦИЯ И ОБЕСПЕЧЕНИЕ СИСТЕМЫ УПРАВЛЕНИЯ","Создание и развитие системы управления Компании","Управление Политиками, Стандартами и др. ЛНД","Организация, управление и повышение эффективности процессов системы Политик, Стандартов и др. ЛНД"]
["БП2 ГРУППА ПРОЦЕССОВ УПРАВЛЕНИЯ","БП2-2 ПОДГРУППА - ОРГАНИЗАЦИЯ И ОБЕСПЕЧЕНИЕ СИСТЕМЫ УПРАВЛЕНИЯ","Создание и развитие системы управления Компании","Управление Политиками, Стандартами и др. ЛНД","Раскрытие информации и работа инсайдерской информацией"]
["БП2 ГРУППА ПРОЦЕССОВ УПРАВЛЕНИЯ","БП2-2 ПОДГРУППА - ОРГАНИЗАЦИЯ И ОБЕСПЕЧЕНИЕ СИСТЕМЫ УПРАВЛЕНИЯ","Создание и развитие системы управления Компании","Обеспечение режима секретности, ведение секретного делопроизводства и организация защиты гос. Тайны"]
["БП2 ГРУППА ПРОЦЕССОВ УПРАВЛЕНИЯ","БП2-3 ПОДГРУППА - ВЗАИМОДЕЙСТВИЕ С ЗАИНТЕРЕСОВАННЫМИ СТОРОНАМИ","Взаимодействие с органами государственной власти","Организация, управление и повышение эффективности Взаимодействия с органами государственной власти"]
["БП2 ГРУППА ПРОЦЕССОВ УПРАВЛЕНИЯ","БП2-3 ПОДГРУППА - ВЗАИМОДЕЙСТВИЕ С ЗАИНТЕРЕСОВАННЫМИ СТОРОНАМИ","Взаимодействие с органами государственной власти","Организация и координация работ в области правовых инициатив"]
["БП2 ГРУППА ПРОЦЕССОВ УПРАВЛЕНИЯ","БП2-3 ПОДГРУППА - ВЗАИМОДЕЙСТВИЕ С ЗАИНТЕРЕСОВАННЫМИ СТОРОНАМИ","Взаимодействие с органами государственной власти","Взаимодействие с региональными органами государственной власти и территориальными органами федеральных органов исполнительной власти"]
["БП2 ГРУППА ПРОЦЕССОВ УПРАВЛЕНИЯ","БП2-3 ПОДГРУППА - ВЗАИМОДЕЙСТВИЕ С ЗАИНТЕРЕСОВАННЫМИ СТОРОНАМИ","Взаимодействие с органами государственной власти","Взаимодействие с федеральными органами государственной власти, профессиональными и общественными объединениями и ассоциациями"]
["БП2 ГРУППА ПРОЦЕССОВ УПРАВЛЕНИЯ","БП2-3 ПОДГРУППА - ВЗАИМОДЕЙСТВИЕ С ЗАИНТЕРЕСОВАННЫМИ СТОРОНАМИ","Взаимодействие с органами государственной власти","Взаимодействие с органами гос. власти при реализации международных проектов"]
["БП2 ГРУППА ПРОЦЕССОВ УПРАВЛЕНИЯ","БП2-3 ПОДГРУППА - ВЗАИМОДЕЙСТВИЕ С ЗАИНТЕРЕСОВАННЫМИ СТОРОНАМИ","Взаимодействие с органами государственной власти","Благотворительность"]
["БП2 ГРУППА ПРОЦЕССОВ УПРАВЛЕНИЯ","БП2-3 ПОДГРУППА - ВЗАИМОДЕЙСТВИЕ С ЗАИНТЕРЕСОВАННЫМИ СТОРОНАМИ","Внешние коммуникации","Организация, управление и повышение эффективности процессов Взаимодействия с общественностью и рекламой"]
["БП2 ГРУППА ПРОЦЕССОВ УПРАВЛЕНИЯ","БП2-3 ПОДГРУППА - ВЗАИМОДЕЙСТВИЕ С ЗАИНТЕРЕСОВАННЫМИ СТОРОНАМИ","Внешние коммуникации","Обеспечение информационной политики Компании "]
["БП2 ГРУППА ПРОЦЕССОВ УПРАВЛЕНИЯ","БП2-3 ПОДГРУППА - ВЗАИМОДЕЙСТВИЕ С ЗАИНТЕРЕСОВАННЫМИ СТОРОНАМИ","Внешние коммуникации","Реклама"]
["БП2 ГРУППА ПРОЦЕССОВ УПРАВЛЕНИЯ","БП2-3 ПОДГРУППА - ВЗАИМОДЕЙСТВИЕ С ЗАИНТЕРЕСОВАННЫМИ СТОРОНАМИ","Внешние коммуникации","Спонсорство"]
["БП2 ГРУППА ПРОЦЕССОВ УПРАВЛЕНИЯ","БП2-3 ПОДГРУППА - ВЗАИМОДЕЙСТВИЕ С ЗАИНТЕРЕСОВАННЫМИ СТОРОНАМИ","Внешние коммуникации","Организация и обеспечение выставочной деятельности"]
["БП2 ГРУППА ПРОЦЕССОВ УПРАВЛЕНИЯ","БП2-3 ПОДГРУППА - ВЗАИМОДЕЙСТВИЕ С ЗАИНТЕРЕСОВАННЫМИ СТОРОНАМИ","Внешние коммуникации","Информационное обеспечение мероприятий"]
["БП2 ГРУППА ПРОЦЕССОВ УПРАВЛЕНИЯ","БП2-3 ПОДГРУППА - ВЗАИМОДЕЙСТВИЕ С ЗАИНТЕРЕСОВАННЫМИ СТОРОНАМИ","Взаимодействие с инвесторами","Организация, управление и повышение эффективности процессов Взаимодействия с инвесторами"]
["БП2 ГРУППА ПРОЦЕССОВ УПРАВЛЕНИЯ","БП2-3 ПОДГРУППА - ВЗАИМОДЕЙСТВИЕ С ЗАИНТЕРЕСОВАННЫМИ СТОРОНАМИ","Взаимодействие с инвесторами","Информационное обеспечение инвесторов и раскрытие информации"]
["БП2 ГРУППА ПРОЦЕССОВ УПРАВЛЕНИЯ","БП2-3 ПОДГРУППА - ВЗАИМОДЕЙСТВИЕ С ЗАИНТЕРЕСОВАННЫМИ СТОРОНАМИ","Взаимодействие с инвесторами","Подготовка Годового Отчета"]
["БП2 ГРУППА ПРОЦЕССОВ УПРАВЛЕНИЯ","БП2-3 ПОДГРУППА - ВЗАИМОДЕЙСТВИЕ С ЗАИНТЕРЕСОВАННЫМИ СТОРОНАМИ","Взаимодействие с инвесторами","Проведение мероприятий для инвесторов"]
["БП2 ГРУППА ПРОЦЕССОВ УПРАВЛЕНИЯ","БП2-3 ПОДГРУППА - ВЗАИМОДЕЙСТВИЕ С ЗАИНТЕРЕСОВАННЫМИ СТОРОНАМИ","Взаимодействие с инвесторами","Обеспечение кредитного рейтинга"]
["БП2 ГРУППА ПРОЦЕССОВ УПРАВЛЕНИЯ","БП2-4 ПОДГРУППА - КОНТРОЛЬ И РИСКИ","Внутренний аудит"]
["БП2 ГРУППА ПРОЦЕССОВ УПРАВЛЕНИЯ","БП2-4 ПОДГРУППА - КОНТРОЛЬ И РИСКИ","Внутренний контроль"]
["БП2 ГРУППА ПРОЦЕССОВ УПРАВЛЕНИЯ","БП2-4 ПОДГРУППА - КОНТРОЛЬ И РИСКИ","Управление рисками","Планирование развития инфраструктуры и процесса ОСУР"]
["БП2 ГРУППА ПРОЦЕССОВ УПРАВЛЕНИЯ","БП2-4 ПОДГРУППА - КОНТРОЛЬ И РИСКИ","Управление рисками","Определение риск-аппетита"]
["БП2 ГРУППА ПРОЦЕССОВ УПРАВЛЕНИЯ","БП2-4 ПОДГРУППА - КОНТРОЛЬ И РИСКИ","Управление рисками","Управление стратегическими рисками"]
["БП2 ГРУППА ПРОЦЕССОВ УПРАВЛЕНИЯ","БП2-4 ПОДГРУППА - КОНТРОЛЬ И РИСКИ","Управление рисками","Управление рисками текущей финансово-хозяйственной деятельности"]
["БП2 ГРУППА ПРОЦЕССОВ УПРАВЛЕНИЯ","БП2-4 ПОДГРУППА - КОНТРОЛЬ И РИСКИ","Управление рисками","Управление инвестиционными рисками"]
["БП2 ГРУППА ПРОЦЕССОВ УПРАВЛЕНИЯ","БП2-4 ПОДГРУППА - КОНТРОЛЬ И РИСКИ","Управление рисками","Управление кредитными рисками"]
["БП2 ГРУППА ПРОЦЕССОВ УПРАВЛЕНИЯ","БП2-4 ПОДГРУППА - КОНТРОЛЬ И РИСКИ","Управление рисками","Управление рыночными рисками"]
["БП2 ГРУППА ПРОЦЕССОВ УПРАВЛЕНИЯ","БП2-4 ПОДГРУППА - КОНТРОЛЬ И РИСКИ","Управление рисками","Страхование"]
["БП3 ГРУППА ОБЕСПЕЧИВАЮЩИХ ПРОЦЕССОВ ","БП3-1 ПОДГРУППА - ОБЕСПЕЧЕНИЕ АКТИВАМИ","Капитальное строительство","Организация, управление и повышение эффективности процессов Капитального строительства"]
["БП3 ГРУППА ОБЕСПЕЧИВАЮЩИХ ПРОЦЕССОВ ","БП3-1 ПОДГРУППА - ОБЕСПЕЧЕНИЕ АКТИВАМИ","Капитальное строительство","Землеустроительные работы"]
["БП3 ГРУППА ОБЕСПЕЧИВАЮЩИХ ПРОЦЕССОВ ","БП3-1 ПОДГРУППА - ОБЕСПЕЧЕНИЕ АКТИВАМИ","Капитальное строительство","Проектно-изыскательские работы"]
["БП3 ГРУППА ОБЕСПЕЧИВАЮЩИХ ПРОЦЕССОВ ","БП3-1 ПОДГРУППА - ОБЕСПЕЧЕНИЕ АКТИВАМИ","Капитальное строительство","Комплектация"]
["БП3 ГРУППА ОБЕСПЕЧИВАЮЩИХ ПРОЦЕССОВ ","БП3-1 ПОДГРУППА - ОБЕСПЕЧЕНИЕ АКТИВАМИ","Капитальное строительство","Строительно-монтажные работы"]
["БП3 ГРУППА ОБЕСПЕЧИВАЮЩИХ ПРОЦЕССОВ ","БП3-1 ПОДГРУППА - ОБЕСПЕЧЕНИЕ АКТИВАМИ","Капитальное строительство","Строительный контроль"]
["БП3 ГРУППА ОБЕСПЕЧИВАЮЩИХ ПРОЦЕССОВ ","БП3-1 ПОДГРУППА - ОБЕСПЕЧЕНИЕ АКТИВАМИ","Управление корпоративной собственностью","Организация, управление и повышение эффективности процесса Управления недвижимостью"]
["БП3 ГРУППА ОБЕСПЕЧИВАЮЩИХ ПРОЦЕССОВ ","БП3-1 ПОДГРУППА - ОБЕСПЕЧЕНИЕ АКТИВАМИ","Управление корпоративной собственностью","Приобретение объектов недвижимости"]
["БП3 ГРУППА ОБЕСПЕЧИВАЮЩИХ ПРОЦЕССОВ ","БП3-1 ПОДГРУППА - ОБЕСПЕЧЕНИЕ АКТИВАМИ","Управление корпоративной собственностью","Ликвидация и реализация объектов недвижимости"]
["БП3 ГРУППА ОБЕСПЕЧИВАЮЩИХ ПРОЦЕССОВ ","БП3-1 ПОДГРУППА - ОБЕСПЕЧЕНИЕ АКТИВАМИ","Управление корпоративной собственностью","Учет и регистрация объектов недвижимости"]
["БП3 ГРУППА ОБЕСПЕЧИВАЮЩИХ ПРОЦЕССОВ ","БП3-1 ПОДГРУППА - ОБЕСПЕЧЕНИЕ АКТИВАМИ","Бурение","Строительство нефтяных скважин на суше"]
["БП3 ГРУППА ОБЕСПЕЧИВАЮЩИХ ПРОЦЕССОВ ","БП3-1 ПОДГРУППА - ОБЕСПЕЧЕНИЕ АКТИВАМИ","Бурение","Реконструкция нефтяных скважин на суше"]
["БП3 ГРУППА ОБЕСПЕЧИВАЮЩИХ ПРОЦЕССОВ ","БП3-1 ПОДГРУППА - ОБЕСПЕЧЕНИЕ АКТИВАМИ","Бурение","Текущий и капитальный ремонт нефтяных скважин на суше"]
["БП3 ГРУППА ОБЕСПЕЧИВАЮЩИХ ПРОЦЕССОВ ","БП3-1 ПОДГРУППА - ОБЕСПЕЧЕНИЕ АКТИВАМИ","Бурение","Буровая логистика на суше"]
["БП3 ГРУППА ОБЕСПЕЧИВАЮЩИХ ПРОЦЕССОВ ","БП3-1 ПОДГРУППА - ОБЕСПЕЧЕНИЕ АКТИВАМИ","Бурение","Супервайзинг бурения нефтяных скважин на суше"]
["БП3 ГРУППА ОБЕСПЕЧИВАЮЩИХ ПРОЦЕССОВ ","БП3-1 ПОДГРУППА - ОБЕСПЕЧЕНИЕ АКТИВАМИ","Бурение","Буровые технологии инженерное сопровождение нефтяных скважин на суше"]
["БП3 ГРУППА ОБЕСПЕЧИВАЮЩИХ ПРОЦЕССОВ ","БП3-2 ПОДГРУППА - ОБЕСПЕЧЕНИЕ  РЕСУРСАМИ И СЕРВИСНЫМИ УСЛУГАМИ","Обеспечение финансами","Организация, управление и повышение эффективности Финансов"]
["БП3 ГРУППА ОБЕСПЕЧИВАЮЩИХ ПРОЦЕССОВ ","БП3-2 ПОДГРУППА - ОБЕСПЕЧЕНИЕ  РЕСУРСАМИ И СЕРВИСНЫМИ УСЛУГАМИ","Обеспечение финансами","Формирование бюджета движения денежных средств"]
["БП3 ГРУППА ОБЕСПЕЧИВАЮЩИХ ПРОЦЕССОВ ","БП3-2 ПОДГРУППА - ОБЕСПЕЧЕНИЕ  РЕСУРСАМИ И СЕРВИСНЫМИ УСЛУГАМИ","Обеспечение финансами","Привлечение финансирования"]
["БП3 ГРУППА ОБЕСПЕЧИВАЮЩИХ ПРОЦЕССОВ ","БП3-2 ПОДГРУППА - ОБЕСПЕЧЕНИЕ  РЕСУРСАМИ И СЕРВИСНЫМИ УСЛУГАМИ","Обеспечение финансами","Финансовый контроль","Определение и авторизация лимитов финансовых обязательств"]
["БП3 ГРУППА ОБЕСПЕЧИВАЮЩИХ ПРОЦЕССОВ ","БП3-2 ПОДГРУППА - ОБЕСПЕЧЕНИЕ  РЕСУРСАМИ И СЕРВИСНЫМИ УСЛУГАМИ","Обеспечение финансами","Финансовый контроль","Контроллинг договорных лимитов"]
["БП3 ГРУППА ОБЕСПЕЧИВАЮЩИХ ПРОЦЕССОВ ","БП3-2 ПОДГРУППА - ОБЕСПЕЧЕНИЕ  РЕСУРСАМИ И СЕРВИСНЫМИ УСЛУГАМИ","Обеспечение финансами","Финансовый контроль","Контроллинг административно-управленческих расходов"]
["БП3 ГРУППА ОБЕСПЕЧИВАЮЩИХ ПРОЦЕССОВ ","БП3-2 ПОДГРУППА - ОБЕСПЕЧЕНИЕ  РЕСУРСАМИ И СЕРВИСНЫМИ УСЛУГАМИ","Обеспечение финансами","Финансовый контроль","Контроль цен по административно - управленческим  и общехозяйственным расходам ЦАУК"]
["БП3 ГРУППА ОБЕСПЕЧИВАЮЩИХ ПРОЦЕССОВ ","БП3-2 ПОДГРУППА - ОБЕСПЕЧЕНИЕ  РЕСУРСАМИ И СЕРВИСНЫМИ УСЛУГАМИ","Обеспечение финансами","Финансовый контроль","Экспертиза и согласование задания на платеж"]
["БП3 ГРУППА ОБЕСПЕЧИВАЮЩИХ ПРОЦЕССОВ ","БП3-2 ПОДГРУППА - ОБЕСПЕЧЕНИЕ  РЕСУРСАМИ И СЕРВИСНЫМИ УСЛУГАМИ","Обеспечение финансами","Финансовый контроль","Развитие функции финансового контроля"]
["БП3 ГРУППА ОБЕСПЕЧИВАЮЩИХ ПРОЦЕССОВ ","БП3-2 ПОДГРУППА - ОБЕСПЕЧЕНИЕ  РЕСУРСАМИ И СЕРВИСНЫМИ УСЛУГАМИ","Обеспечение финансами","Управление оборотным капиталом"]
["БП3 ГРУППА ОБЕСПЕЧИВАЮЩИХ ПРОЦЕССОВ ","БП3-2 ПОДГРУППА - ОБЕСПЕЧЕНИЕ  РЕСУРСАМИ И СЕРВИСНЫМИ УСЛУГАМИ","Обеспечение финансами","Управление ликвидностью"]
["БП3 ГРУППА ОБЕСПЕЧИВАЮЩИХ ПРОЦЕССОВ ","БП3-2 ПОДГРУППА - ОБЕСПЕЧЕНИЕ  РЕСУРСАМИ И СЕРВИСНЫМИ УСЛУГАМИ","Обеспечение финансами","Проектное и структурное финансирование"]
["БП3 ГРУППА ОБЕСПЕЧИВАЮЩИХ ПРОЦЕССОВ ","БП3-2 ПОДГРУППА - ОБЕСПЕЧЕНИЕ  РЕСУРСАМИ И СЕРВИСНЫМИ УСЛУГАМИ","Правовое обеспечение","Организация, управление и повышение эффективности процессов Правового обеспечения"]
["БП3 ГРУППА ОБЕСПЕЧИВАЮЩИХ ПРОЦЕССОВ ","БП3-2 ПОДГРУППА - ОБЕСПЕЧЕНИЕ  РЕСУРСАМИ И СЕРВИСНЫМИ УСЛУГАМИ","Правовое обеспечение","Правовое обеспечение бизнеса"]
["БП3 ГРУППА ОБЕСПЕЧИВАЮЩИХ ПРОЦЕССОВ ","БП3-2 ПОДГРУППА - ОБЕСПЕЧЕНИЕ  РЕСУРСАМИ И СЕРВИСНЫМИ УСЛУГАМИ","Правовое обеспечение","Патентное право и защита интеллектуальной собственности"]
["БП3 ГРУППА ОБЕСПЕЧИВАЮЩИХ ПРОЦЕССОВ ","БП3-2 ПОДГРУППА - ОБЕСПЕЧЕНИЕ  РЕСУРСАМИ И СЕРВИСНЫМИ УСЛУГАМИ","Правовое обеспечение","Судебная практика"]
["БП3 ГРУППА ОБЕСПЕЧИВАЮЩИХ ПРОЦЕССОВ ","БП3-2 ПОДГРУППА - ОБЕСПЕЧЕНИЕ  РЕСУРСАМИ И СЕРВИСНЫМИ УСЛУГАМИ","Административно-хозяйственное обеспечение (управление делами)","Организация и обеспечение поездок руководства"]
["БП3 ГРУППА ОБЕСПЕЧИВАЮЩИХ ПРОЦЕССОВ ","БП3-2 ПОДГРУППА - ОБЕСПЕЧЕНИЕ  РЕСУРСАМИ И СЕРВИСНЫМИ УСЛУГАМИ","Административно-хозяйственное обеспечение (управление делами)","Эксплуатация и ремонт зданий, сооружений"]
["БП3 ГРУППА ОБЕСПЕЧИВАЮЩИХ ПРОЦЕССОВ ","БП3-2 ПОДГРУППА - ОБЕСПЕЧЕНИЕ  РЕСУРСАМИ И СЕРВИСНЫМИ УСЛУГАМИ","Административно-хозяйственное обеспечение (управление делами)","Сервисное обслуживание помещений и офисного оборудования"]
["БП3 ГРУППА ОБЕСПЕЧИВАЮЩИХ ПРОЦЕССОВ ","БП3-2 ПОДГРУППА - ОБЕСПЕЧЕНИЕ  РЕСУРСАМИ И СЕРВИСНЫМИ УСЛУГАМИ","Административно-хозяйственное обеспечение (управление делами)","Организация питания"]
["БП3 ГРУППА ОБЕСПЕЧИВАЮЩИХ ПРОЦЕССОВ ","БП3-2 ПОДГРУППА - ОБЕСПЕЧЕНИЕ  РЕСУРСАМИ И СЕРВИСНЫМИ УСЛУГАМИ","Административно-хозяйственное обеспечение (управление делами)","Обеспечение транспортом"]
["БП3 ГРУППА ОБЕСПЕЧИВАЮЩИХ ПРОЦЕССОВ ","БП3-2 ПОДГРУППА - ОБЕСПЕЧЕНИЕ  РЕСУРСАМИ И СЕРВИСНЫМИ УСЛУГАМИ","Административно-хозяйственное обеспечение (управление делами)","Обеспечение авиаперевозок"]
["БП3 ГРУППА ОБЕСПЕЧИВАЮЩИХ ПРОЦЕССОВ ","БП3-2 ПОДГРУППА - ОБЕСПЕЧЕНИЕ  РЕСУРСАМИ И СЕРВИСНЫМИ УСЛУГАМИ","Административно-хозяйственное обеспечение (управление делами)","Организация строительства и снабжения"]
["БП3 ГРУППА ОБЕСПЕЧИВАЮЩИХ ПРОЦЕССОВ ","БП3-2 ПОДГРУППА - ОБЕСПЕЧЕНИЕ  РЕСУРСАМИ И СЕРВИСНЫМИ УСЛУГАМИ","Административно-хозяйственное обеспечение (управление делами)","Перевозка вахт и грузов"]
["БП3 ГРУППА ОБЕСПЕЧИВАЮЩИХ ПРОЦЕССОВ ","БП3-2 ПОДГРУППА - ОБЕСПЕЧЕНИЕ  РЕСУРСАМИ И СЕРВИСНЫМИ УСЛУГАМИ","Обеспечение персоналом","Организация, управление и повышение эффективности процессов Управления персоналом"]
["БП3 ГРУППА ОБЕСПЕЧИВАЮЩИХ ПРОЦЕССОВ ","БП3-2 ПОДГРУППА - ОБЕСПЕЧЕНИЕ  РЕСУРСАМИ И СЕРВИСНЫМИ УСЛУГАМИ","Обеспечение персоналом","Обеспечение трудовыми ресурсами"]
["БП3 ГРУППА ОБЕСПЕЧИВАЮЩИХ ПРОЦЕССОВ ","БП3-2 ПОДГРУППА - ОБЕСПЕЧЕНИЕ  РЕСУРСАМИ И СЕРВИСНЫМИ УСЛУГАМИ","Обеспечение персоналом","Социальное обеспечение персонала"]
["БП3 ГРУППА ОБЕСПЕЧИВАЮЩИХ ПРОЦЕССОВ ","БП3-2 ПОДГРУППА - ОБЕСПЕЧЕНИЕ  РЕСУРСАМИ И СЕРВИСНЫМИ УСЛУГАМИ","Обеспечение персоналом","Организационное проектирование и строительство"]
["БП3 ГРУППА ОБЕСПЕЧИВАЮЩИХ ПРОЦЕССОВ ","БП3-2 ПОДГРУППА - ОБЕСПЕЧЕНИЕ  РЕСУРСАМИ И СЕРВИСНЫМИ УСЛУГАМИ","Обеспечение персоналом","Деловая этика и корпоративная культура "]
["БП3 ГРУППА ОБЕСПЕЧИВАЮЩИХ ПРОЦЕССОВ ","БП3-2 ПОДГРУППА - ОБЕСПЕЧЕНИЕ  РЕСУРСАМИ И СЕРВИСНЫМИ УСЛУГАМИ","Промышленная безопасность, охрана труда  и окружающей среды","Организация, управление и повышение эффективности процессов Промышленной безопасности, охраны труда  и окружающей среды"]
["БП3 ГРУППА ОБЕСПЕЧИВАЮЩИХ ПРОЦЕССОВ ","БП3-2 ПОДГРУППА - ОБЕСПЕЧЕНИЕ  РЕСУРСАМИ И СЕРВИСНЫМИ УСЛУГАМИ","Промышленная безопасность, охрана труда  и окружающей среды","Охрана окружающей среды"]
["БП3 ГРУППА ОБЕСПЕЧИВАЮЩИХ ПРОЦЕССОВ ","БП3-2 ПОДГРУППА - ОБЕСПЕЧЕНИЕ  РЕСУРСАМИ И СЕРВИСНЫМИ УСЛУГАМИ","Промышленная безопасность, охрана труда  и окружающей среды","Промышленная безопасность и охрана труда "]
["БП3 ГРУППА ОБЕСПЕЧИВАЮЩИХ ПРОЦЕССОВ ","БП3-2 ПОДГРУППА - ОБЕСПЕЧЕНИЕ  РЕСУРСАМИ И СЕРВИСНЫМИ УСЛУГАМИ","Бухгалтерский и налоговый учет","Организация, управление и повышение эффективности процессов Бухгалтерского и налогового учета"]
["БП3 ГРУППА ОБЕСПЕЧИВАЮЩИХ ПРОЦЕССОВ ","БП3-2 ПОДГРУППА - ОБЕСПЕЧЕНИЕ  РЕСУРСАМИ И СЕРВИСНЫМИ УСЛУГАМИ","Бухгалтерский и налоговый учет","Бухгалтерский учет"]
["БП3 ГРУППА ОБЕСПЕЧИВАЮЩИХ ПРОЦЕССОВ ","БП3-2 ПОДГРУППА - ОБЕСПЕЧЕНИЕ  РЕСУРСАМИ И СЕРВИСНЫМИ УСЛУГАМИ","Бухгалтерский и налоговый учет","Налоговый учет и администрирование"]
["БП3 ГРУППА ОБЕСПЕЧИВАЮЩИХ ПРОЦЕССОВ ","БП3-2 ПОДГРУППА - ОБЕСПЕЧЕНИЕ  РЕСУРСАМИ И СЕРВИСНЫМИ УСЛУГАМИ","Энергоснабжение","Управление энергетическими активами"]
["БП3 ГРУППА ОБЕСПЕЧИВАЮЩИХ ПРОЦЕССОВ ","БП3-2 ПОДГРУППА - ОБЕСПЕЧЕНИЕ  РЕСУРСАМИ И СЕРВИСНЫМИ УСЛУГАМИ","Энергоснабжение","Развитие объектов энергетики"]
["БП3 ГРУППА ОБЕСПЕЧИВАЮЩИХ ПРОЦЕССОВ ","БП3-2 ПОДГРУППА - ОБЕСПЕЧЕНИЕ  РЕСУРСАМИ И СЕРВИСНЫМИ УСЛУГАМИ","Энергоснабжение","Снабжение и использование топливно энергетических ресурсов"]
["БП3 ГРУППА ОБЕСПЕЧИВАЮЩИХ ПРОЦЕССОВ ","БП3-2 ПОДГРУППА - ОБЕСПЕЧЕНИЕ  РЕСУРСАМИ И СЕРВИСНЫМИ УСЛУГАМИ","Энергоснабжение","Управление курируемыми Обществами группы"]
["БП3 ГРУППА ОБЕСПЕЧИВАЮЩИХ ПРОЦЕССОВ ","БП3-2 ПОДГРУППА - ОБЕСПЕЧЕНИЕ  РЕСУРСАМИ И СЕРВИСНЫМИ УСЛУГАМИ","Снабжение МТР, работами и услугами","Материально-техническое обеспечение","Планирование поставок МТР"]
["БП3 ГРУППА ОБЕСПЕЧИВАЮЩИХ ПРОЦЕССОВ ","БП3-2 ПОДГРУППА - ОБЕСПЕЧЕНИЕ  РЕСУРСАМИ И СЕРВИСНЫМИ УСЛУГАМИ","Снабжение МТР, работами и услугами","Материально-техническое обеспечение","Планирование закупок МТР"]
["БП3 ГРУППА ОБЕСПЕЧИВАЮЩИХ ПРОЦЕССОВ ","БП3-2 ПОДГРУППА - ОБЕСПЕЧЕНИЕ  РЕСУРСАМИ И СЕРВИСНЫМИ УСЛУГАМИ","Снабжение МТР, работами и услугами","Материально-техническое обеспечение","Проведение закупочных процедур МТР"]
["БП3 ГРУППА ОБЕСПЕЧИВАЮЩИХ ПРОЦЕССОВ ","БП3-2 ПОДГРУППА - ОБЕСПЕЧЕНИЕ  РЕСУРСАМИ И СЕРВИСНЫМИ УСЛУГАМИ","Снабжение МТР, работами и услугами","Материально-техническое обеспечение","Администрирование договоров поставок МТР"]
["БП3 ГРУППА ОБЕСПЕЧИВАЮЩИХ ПРОЦЕССОВ ","БП3-2 ПОДГРУППА - ОБЕСПЕЧЕНИЕ  РЕСУРСАМИ И СЕРВИСНЫМИ УСЛУГАМИ","Снабжение МТР, работами и услугами","Материально-техническое обеспечение","Управление обязательствами по договорам поставок МТР"]
["БП3 ГРУППА ОБЕСПЕЧИВАЮЩИХ ПРОЦЕССОВ ","БП3-2 ПОДГРУППА - ОБЕСПЕЧЕНИЕ  РЕСУРСАМИ И СЕРВИСНЫМИ УСЛУГАМИ","Снабжение МТР, работами и услугами","Материально-техническое обеспечение","Управление движением МТР"]
["БП3 ГРУППА ОБЕСПЕЧИВАЮЩИХ ПРОЦЕССОВ ","БП3-2 ПОДГРУППА - ОБЕСПЕЧЕНИЕ  РЕСУРСАМИ И СЕРВИСНЫМИ УСЛУГАМИ","Снабжение МТР, работами и услугами","Материально-техническое обеспечение","Управление запасами МТР"]
["БП3 ГРУППА ОБЕСПЕЧИВАЮЩИХ ПРОЦЕССОВ ","БП3-2 ПОДГРУППА - ОБЕСПЕЧЕНИЕ  РЕСУРСАМИ И СЕРВИСНЫМИ УСЛУГАМИ","Снабжение МТР, работами и услугами","Материально-техническое обеспечение","Управление категориями МТР"]
["БП3 ГРУППА ОБЕСПЕЧИВАЮЩИХ ПРОЦЕССОВ ","БП3-2 ПОДГРУППА - ОБЕСПЕЧЕНИЕ  РЕСУРСАМИ И СЕРВИСНЫМИ УСЛУГАМИ","Снабжение МТР, работами и услугами","Материально-техническое обеспечение","Управление логистическими активами"]
["БП3 ГРУППА ОБЕСПЕЧИВАЮЩИХ ПРОЦЕССОВ ","БП3-2 ПОДГРУППА - ОБЕСПЕЧЕНИЕ  РЕСУРСАМИ И СЕРВИСНЫМИ УСЛУГАМИ","Снабжение МТР, работами и услугами","Материально-техническое обеспечение","Управление качеством МТР"]
["БП3 ГРУППА ОБЕСПЕЧИВАЮЩИХ ПРОЦЕССОВ ","БП3-2 ПОДГРУППА - ОБЕСПЕЧЕНИЕ  РЕСУРСАМИ И СЕРВИСНЫМИ УСЛУГАМИ","Снабжение МТР, работами и услугами","Материально-техническое обеспечение","Управление эффективностью МТО"]
["БП3 ГРУППА ОБЕСПЕЧИВАЮЩИХ ПРОЦЕССОВ ","БП3-2 ПОДГРУППА - ОБЕСПЕЧЕНИЕ  РЕСУРСАМИ И СЕРВИСНЫМИ УСЛУГАМИ","Снабжение МТР, работами и услугами","Организация закупок"]
["БП3 ГРУППА ОБЕСПЕЧИВАЮЩИХ ПРОЦЕССОВ ","БП3-2 ПОДГРУППА - ОБЕСПЕЧЕНИЕ  РЕСУРСАМИ И СЕРВИСНЫМИ УСЛУГАМИ","Снабжение МТР, работами и услугами","Контрактование (управление договорами)"]
["БП3 ГРУППА ОБЕСПЕЧИВАЮЩИХ ПРОЦЕССОВ ","БП3-2 ПОДГРУППА - ОБЕСПЕЧЕНИЕ  РЕСУРСАМИ И СЕРВИСНЫМИ УСЛУГАМИ","Обеспечение нефтесервисными услугами"]
["БП3 ГРУППА ОБЕСПЕЧИВАЮЩИХ ПРОЦЕССОВ ","БП3-2 ПОДГРУППА - ОБЕСПЕЧЕНИЕ  РЕСУРСАМИ И СЕРВИСНЫМИ УСЛУГАМИ","Обеспечение безопасности","Организация, управление и повышение эффективности процессов Обеспечения безопасности"]
["БП3 ГРУППА ОБЕСПЕЧИВАЮЩИХ ПРОЦЕССОВ ","БП3-2 ПОДГРУППА - ОБЕСПЕЧЕНИЕ  РЕСУРСАМИ И СЕРВИСНЫМИ УСЛУГАМИ","Обеспечение безопасности","Обеспечение информационно-технической безопасности"]
["БП3 ГРУППА ОБЕСПЕЧИВАЮЩИХ ПРОЦЕССОВ ","БП3-2 ПОДГРУППА - ОБЕСПЕЧЕНИЕ  РЕСУРСАМИ И СЕРВИСНЫМИ УСЛУГАМИ","Обеспечение безопасности","Обеспечение экономической безопасности"]
["БП3 ГРУППА ОБЕСПЕЧИВАЮЩИХ ПРОЦЕССОВ ","БП3-2 ПОДГРУППА - ОБЕСПЕЧЕНИЕ  РЕСУРСАМИ И СЕРВИСНЫМИ УСЛУГАМИ","Обеспечение безопасности","Обеспечение физической и объектовой безопасности"]
["БП3 ГРУППА ОБЕСПЕЧИВАЮЩИХ ПРОЦЕССОВ ","БП3-2 ПОДГРУППА - ОБЕСПЕЧЕНИЕ  РЕСУРСАМИ И СЕРВИСНЫМИ УСЛУГАМИ","ГО и ЧС","Организация, управление и повышение эффективности процессов ГО и ЧС"]
["БП3 ГРУППА ОБЕСПЕЧИВАЮЩИХ ПРОЦЕССОВ ","БП3-2 ПОДГРУППА - ОБЕСПЕЧЕНИЕ  РЕСУРСАМИ И СЕРВИСНЫМИ УСЛУГАМИ","ГО и ЧС","Организация и ведение гражданской обороны"]
["БП3 ГРУППА ОБЕСПЕЧИВАЮЩИХ ПРОЦЕССОВ ","БП3-2 ПОДГРУППА - ОБЕСПЕЧЕНИЕ  РЕСУРСАМИ И СЕРВИСНЫМИ УСЛУГАМИ","ГО и ЧС","Предупреждение возникновения ЧС"]
["БП3 ГРУППА ОБЕСПЕЧИВАЮЩИХ ПРОЦЕССОВ ","БП3-2 ПОДГРУППА - ОБЕСПЕЧЕНИЕ  РЕСУРСАМИ И СЕРВИСНЫМИ УСЛУГАМИ","ГО и ЧС","Ликвидация ЧС"]
["БП3 ГРУППА ОБЕСПЕЧИВАЮЩИХ ПРОЦЕССОВ ","БП3-2 ПОДГРУППА - ОБЕСПЕЧЕНИЕ  РЕСУРСАМИ И СЕРВИСНЫМИ УСЛУГАМИ","Обеспечение ИТ","Организация, управление и повышение эффективности  ИТ","Управление проектами  и программами ИТ"]
["БП3 ГРУППА ОБЕСПЕЧИВАЮЩИХ ПРОЦЕССОВ ","БП3-2 ПОДГРУППА - ОБЕСПЕЧЕНИЕ  РЕСУРСАМИ И СЕРВИСНЫМИ УСЛУГАМИ","Обеспечение ИТ","Организация, управление и повышение эффективности  ИТ","Разработка планов развития ИТ"]
["БП3 ГРУППА ОБЕСПЕЧИВАЮЩИХ ПРОЦЕССОВ ","БП3-2 ПОДГРУППА - ОБЕСПЕЧЕНИЕ  РЕСУРСАМИ И СЕРВИСНЫМИ УСЛУГАМИ","Обеспечение ИТ","Организация, управление и повышение эффективности  ИТ","Планирование (вкл. производственное) и бюджетирование ИТ"]
["БП3 ГРУППА ОБЕСПЕЧИВАЮЩИХ ПРОЦЕССОВ ","БП3-2 ПОДГРУППА - ОБЕСПЕЧЕНИЕ  РЕСУРСАМИ И СЕРВИСНЫМИ УСЛУГАМИ","Обеспечение ИТ","Организация, управление и повышение эффективности  ИТ","Определение потребности в ресурсах (кадры, энергетика и пр.) для ИТ"]
["БП3 ГРУППА ОБЕСПЕЧИВАЮЩИХ ПРОЦЕССОВ ","БП3-2 ПОДГРУППА - ОБЕСПЕЧЕНИЕ  РЕСУРСАМИ И СЕРВИСНЫМИ УСЛУГАМИ","Обеспечение ИТ","Организация, управление и повышение эффективности  ИТ","Контрактование и закупки ИТ"]
["БП3 ГРУППА ОБЕСПЕЧИВАЮЩИХ ПРОЦЕССОВ ","БП3-2 ПОДГРУППА - ОБЕСПЕЧЕНИЕ  РЕСУРСАМИ И СЕРВИСНЫМИ УСЛУГАМИ","Обеспечение ИТ","Организация, управление и повышение эффективности  ИТ","Разработка/актуализация ЛНД, описание бизнес-процессов ИТ"]
["БП3 ГРУППА ОБЕСПЕЧИВАЮЩИХ ПРОЦЕССОВ ","БП3-2 ПОДГРУППА - ОБЕСПЕЧЕНИЕ  РЕСУРСАМИ И СЕРВИСНЫМИ УСЛУГАМИ","Обеспечение ИТ","Организация, управление и повышение эффективности  ИТ","Определение потребности и  требований к автоматизации ИТ"]
["БП3 ГРУППА ОБЕСПЕЧИВАЮЩИХ ПРОЦЕССОВ ","БП3-2 ПОДГРУППА - ОБЕСПЕЧЕНИЕ  РЕСУРСАМИ И СЕРВИСНЫМИ УСЛУГАМИ","Обеспечение ИТ","Организация, управление и повышение эффективности  ИТ","Мониторинг, учет и отчетность ИТ"]
["БП3 ГРУППА ОБЕСПЕЧИВАЮЩИХ ПРОЦЕССОВ ","БП3-2 ПОДГРУППА - ОБЕСПЕЧЕНИЕ  РЕСУРСАМИ И СЕРВИСНЫМИ УСЛУГАМИ","Обеспечение ИТ","Организация, управление и повышение эффективности  ИТ","Контроль, анализ  и управление рисками ИТ"]
["БП3 ГРУППА ОБЕСПЕЧИВАЮЩИХ ПРОЦЕССОВ ","БП3-2 ПОДГРУППА - ОБЕСПЕЧЕНИЕ  РЕСУРСАМИ И СЕРВИСНЫМИ УСЛУГАМИ","Обеспечение ИТ","Организация, управление и повышение эффективности  ИТ","Управление эффективностью и внедрение новых технологий в ИТ"]
["БП3 ГРУППА ОБЕСПЕЧИВАЮЩИХ ПРОЦЕССОВ ","БП3-2 ПОДГРУППА - ОБЕСПЕЧЕНИЕ  РЕСУРСАМИ И СЕРВИСНЫМИ УСЛУГАМИ","Обеспечение ИТ","ИТ-сервисы","Управление реализацией проектов ИТ-сервисов"]
["БП3 ГРУППА ОБЕСПЕЧИВАЮЩИХ ПРОЦЕССОВ ","БП3-2 ПОДГРУППА - ОБЕСПЕЧЕНИЕ  РЕСУРСАМИ И СЕРВИСНЫМИ УСЛУГАМИ","Обеспечение ИТ","ИТ-сервисы","Управление корпоративными ИТ сервисами"]
["БП3 ГРУППА ОБЕСПЕЧИВАЮЩИХ ПРОЦЕССОВ ","БП3-2 ПОДГРУППА - ОБЕСПЕЧЕНИЕ  РЕСУРСАМИ И СЕРВИСНЫМИ УСЛУГАМИ","Обеспечение ИТ","ИТ-сервисы","Управление изменениями ИТ сервисов"]
["БП3 ГРУППА ОБЕСПЕЧИВАЮЩИХ ПРОЦЕССОВ ","БП3-2 ПОДГРУППА - ОБЕСПЕЧЕНИЕ  РЕСУРСАМИ И СЕРВИСНЫМИ УСЛУГАМИ","Обеспечение ИТ","ИТ-сервисы","Управление ИТ рисками и непрерывностью ИТ сервисов"]
["БП3 ГРУППА ОБЕСПЕЧИВАЮЩИХ ПРОЦЕССОВ ","БП3-2 ПОДГРУППА - ОБЕСПЕЧЕНИЕ  РЕСУРСАМИ И СЕРВИСНЫМИ УСЛУГАМИ","Обеспечение ИТ","ИТ-сервисы","Управление тех. политикой и конфигурациями ИТ активов ИТ сервисов"]
["БП3 ГРУППА ОБЕСПЕЧИВАЮЩИХ ПРОЦЕССОВ ","БП3-2 ПОДГРУППА - ОБЕСПЕЧЕНИЕ  РЕСУРСАМИ И СЕРВИСНЫМИ УСЛУГАМИ","Обеспечение ИТ","ИТ-сервисы","Управление обслуживанием (локальные ИТ сервиса)"]
["БП3 ГРУППА ОБЕСПЕЧИВАЮЩИХ ПРОЦЕССОВ ","БП3-2 ПОДГРУППА - ОБЕСПЕЧЕНИЕ  РЕСУРСАМИ И СЕРВИСНЫМИ УСЛУГАМИ","Обеспечение ИТ","Информатизация и развитие бизнес-процессов","Управление реализацией проектов Информатизации и развитие бизнес-процессов"]
["БП3 ГРУППА ОБЕСПЕЧИВАЮЩИХ ПРОЦЕССОВ ","БП3-2 ПОДГРУППА - ОБЕСПЕЧЕНИЕ  РЕСУРСАМИ И СЕРВИСНЫМИ УСЛУГАМИ","Обеспечение ИТ","Информатизация и развитие бизнес-процессов","Управление корпоративными ИТ сервисами Информатизации и развития бизнес-процессов"]
["БП3 ГРУППА ОБЕСПЕЧИВАЮЩИХ ПРОЦЕССОВ ","БП3-2 ПОДГРУППА - ОБЕСПЕЧЕНИЕ  РЕСУРСАМИ И СЕРВИСНЫМИ УСЛУГАМИ","Обеспечение ИТ","Информатизация и развитие бизнес-процессов","Управление изменениями Информатизации и развития бизнес-процессов"]
["БП3 ГРУППА ОБЕСПЕЧИВАЮЩИХ ПРОЦЕССОВ ","БП3-2 ПОДГРУППА - ОБЕСПЕЧЕНИЕ  РЕСУРСАМИ И СЕРВИСНЫМИ УСЛУГАМИ","Обеспечение ИТ","Информатизация и развитие бизнес-процессов","Управление ИТ рисками и непрерывностью Информатизации и развития бизнес-процессов"]
["БП3 ГРУППА ОБЕСПЕЧИВАЮЩИХ ПРОЦЕССОВ ","БП3-2 ПОДГРУППА - ОБЕСПЕЧЕНИЕ  РЕСУРСАМИ И СЕРВИСНЫМИ УСЛУГАМИ","Обеспечение ИТ","Информатизация и развитие бизнес-процессов","Управление тех. политикой и конфигурациями ИТ активов Информатизации и развития бизнес-процессов"]
["БП3 ГРУППА ОБЕСПЕЧИВАЮЩИХ ПРОЦЕССОВ ","БП3-2 ПОДГРУППА - ОБЕСПЕЧЕНИЕ  РЕСУРСАМИ И СЕРВИСНЫМИ УСЛУГАМИ","Обеспечение ИТ","Информатизация и развитие бизнес-процессов","Управление ИТ-архитектурой"]
["БП3 ГРУППА ОБЕСПЕЧИВАЮЩИХ ПРОЦЕССОВ ","БП3-2 ПОДГРУППА - ОБЕСПЕЧЕНИЕ  РЕСУРСАМИ И СЕРВИСНЫМИ УСЛУГАМИ","Обеспечение ИТ","Производственная автоматизация"]
["БП3 ГРУППА ОБЕСПЕЧИВАЮЩИХ ПРОЦЕССОВ ","БП3-2 ПОДГРУППА - ОБЕСПЕЧЕНИЕ  РЕСУРСАМИ И СЕРВИСНЫМИ УСЛУГАМИ","Обеспечение ИТ","Управление реализацией проектов Производственной автоматизации"]
["БП3 ГРУППА ОБЕСПЕЧИВАЮЩИХ ПРОЦЕССОВ ","БП3-2 ПОДГРУППА - ОБЕСПЕЧЕНИЕ  РЕСУРСАМИ И СЕРВИСНЫМИ УСЛУГАМИ","Обеспечение ИТ","Управление корпоративными ИТ сервисами Производственной автоматизации"]
["БП3 ГРУППА ОБЕСПЕЧИВАЮЩИХ ПРОЦЕССОВ ","БП3-2 ПОДГРУППА - ОБЕСПЕЧЕНИЕ  РЕСУРСАМИ И СЕРВИСНЫМИ УСЛУГАМИ","Обеспечение ИТ","Управление изменениями Производственной автоматизации"]
["БП3 ГРУППА ОБЕСПЕЧИВАЮЩИХ ПРОЦЕССОВ ","БП3-2 ПОДГРУППА - ОБЕСПЕЧЕНИЕ  РЕСУРСАМИ И СЕРВИСНЫМИ УСЛУГАМИ","Обеспечение ИТ","Управление ИТ рисками и непрерывностью Производственной автоматизации"]
["БП3 ГРУППА ОБЕСПЕЧИВАЮЩИХ ПРОЦЕССОВ ","БП3-2 ПОДГРУППА - ОБЕСПЕЧЕНИЕ  РЕСУРСАМИ И СЕРВИСНЫМИ УСЛУГАМИ","Обеспечение ИТ","Управление тех. политикой и конфигурациями ИТ активов Производственной автоматизации"]
["БП4 ГРУППА ПРОЦЕССОВ УЛУЧШЕНИЯ И РАЗВИТИЯ","БП4 ГРУППА ПРОЦЕССОВ УЛУЧШЕНИЯ И РАЗВИТИЯ","Научно-техническое развитие и инновации","Организация, управление и повышение эффективности процессов Научно-технического развития и инноваций"]
["БП4 ГРУППА ПРОЦЕССОВ УЛУЧШЕНИЯ И РАЗВИТИЯ","БП4 ГРУППА ПРОЦЕССОВ УЛУЧШЕНИЯ И РАЗВИТИЯ","Научно-техническое развитие и инновации","Разработка программы инновационного развития"]
["БП4 ГРУППА ПРОЦЕССОВ УЛУЧШЕНИЯ И РАЗВИТИЯ","БП4 ГРУППА ПРОЦЕССОВ УЛУЧШЕНИЯ И РАЗВИТИЯ","Научно-техническое развитие и инновации","Формирование и управление портфелем инновационных проектов"]
["БП4 ГРУППА ПРОЦЕССОВ УЛУЧШЕНИЯ И РАЗВИТИЯ","БП4 ГРУППА ПРОЦЕССОВ УЛУЧШЕНИЯ И РАЗВИТИЯ","Научно-техническое развитие и инновации","Управление инновационными проектами"]
["БП4 ГРУППА ПРОЦЕССОВ УЛУЧШЕНИЯ И РАЗВИТИЯ","БП4 ГРУППА ПРОЦЕССОВ УЛУЧШЕНИЯ И РАЗВИТИЯ","Научно-техническое развитие и инновации","Организационные инновации"]
["БП4 ГРУППА ПРОЦЕССОВ УЛУЧШЕНИЯ И РАЗВИТИЯ","БП4 ГРУППА ПРОЦЕССОВ УЛУЧШЕНИЯ И РАЗВИТИЯ","Обеспечение и развитие техники и технологий","Оценка, анализ  и экспертиза эффективности существующей  техники и технологий"]
["БП4 ГРУППА ПРОЦЕССОВ УЛУЧШЕНИЯ И РАЗВИТИЯ","БП4 ГРУППА ПРОЦЕССОВ УЛУЧШЕНИЯ И РАЗВИТИЯ","Обеспечение и развитие техники и технологий","Исследование и разработки новых технологий"]
["БП4 ГРУППА ПРОЦЕССОВ УЛУЧШЕНИЯ И РАЗВИТИЯ","БП4 ГРУППА ПРОЦЕССОВ УЛУЧШЕНИЯ И РАЗВИТИЯ","Обеспечение и развитие техники и технологий","Внедрение и применение техники и технологий"]
["БП4 ГРУППА ПРОЦЕССОВ УЛУЧШЕНИЯ И РАЗВИТИЯ","БП4 ГРУППА ПРОЦЕССОВ УЛУЧШЕНИЯ И РАЗВИТИЯ","Обеспечение и развитие техники и технологий","Локализация техники и технологий"]
["БП4 ГРУППА ПРОЦЕССОВ УЛУЧШЕНИЯ И РАЗВИТИЯ","БП4 ГРУППА ПРОЦЕССОВ УЛУЧШЕНИЯ И РАЗВИТИЯ","Обеспечение и развитие техники и технологий","Технологическая поддержка"]
["БП4 ГРУППА ПРОЦЕССОВ УЛУЧШЕНИЯ И РАЗВИТИЯ","БП4 ГРУППА ПРОЦЕССОВ УЛУЧШЕНИЯ И РАЗВИТИЯ","Обеспечение и развитие техники и технологий","Управление знаниями"]
["БП4 ГРУППА ПРОЦЕССОВ УЛУЧШЕНИЯ И РАЗВИТИЯ","БП4 ГРУППА ПРОЦЕССОВ УЛУЧШЕНИЯ И РАЗВИТИЯ","Обеспечение и развитие техники и технологий","Метрология и обеспечение единства средств измерений"]
["БП4 ГРУППА ПРОЦЕССОВ УЛУЧШЕНИЯ И РАЗВИТИЯ","БП4 ГРУППА ПРОЦЕССОВ УЛУЧШЕНИЯ И РАЗВИТИЯ","Обеспечение и развитие техники и технологий","Управление технической информацией, включая НСИ"]

{"sheet":"Справка","index":8,"n_rows":84,"n_cols":10,"rows_kept":84,"cut":false,"hidden":true,"merged":[]}
[]
[]
[]
[]
[]
[null,"Справка"]
[]
[null,"Базовые элементы формы Заявки"]
[null,"Форма заявки содержит следующие базовые элементы:"]
[null,"1.","Панель навигации"]
[null,"2.","Поля ввода данных"]
[null,"3.","Функциональные кнопки"]
[]
[null,"Панель навигации"]
[null,"Панель навигации предназначена для перехода между разделами формы"]
[null,"При нажатии на кнопку осуществляется переход к соответствующему ей разделу формы заявки"]
[]
[]
[]
[null,null,null,null,null,null,null,null,null,"Рис. 1 Панель навигации"]
[null,"Поля ввода данных"]
[null,"Форма заявки содержит поля ввода 3 типов:"]
[]
[null,"1.","Поле ручного ввода данных"]
[]
[null,"2.","Поле выбора значения из выпадающего списка или ручного ввода"]
[]
[null,"3.","Поле выбора значения из выпадающего списка"]
[]
[null,"Выпадающий список – это перечень преднастроенных значений поля. "]
[null,"Выпадающий список развертывается при нажатии на знак        в правом верхнем углу выбранной ячейки. "]
[]
[null,"Пример выпадающего списка представлен на рисунке 2."]
[]
[]
[]
[]
[]
[]
[]
[]
[null,null,null,null,null,null,null,null,null,"Рис. 2 Пример выпадающего списка"]
[]
[null,"Заполненное поле ввода данных изменяет свой цвет с первоначального на   "]
[]
[null,"Пример заполненного поля представлен на рисунке 3."]
[]
[]
[]
[]
[]
[]
[null,null,null,null,null,null,null,null,null,"Рис. 3 Пример заполнения поля"]
[]
[null,"Функциональные кнопки"]
[]
[null,"Форма заявки содержит функциональные кнопки 2 типов:"]
[null,"1.","Добавить"]
[null,"2.","Удалить"]
[]
[null,"Функциональная кнопка «Добавить {элемент}» добавляет сгруппированные поля описания элемента"]
[null,"Пример работы функциональной кнопки «Добавить {элемент}» представлен на рисунке 4"]
[]
[]
[]
[]
[]
[]
[]
[]
[]
[]
[]
[]
[]
[]
[]
[]
[]
[]
[]
[null,null,null,null,null,null,null,null,null,"Рис. 4 Пример работы функциональной кнопки «Добавить {элемент}»"]
[null,"При добавлении нового элемента возможно скрыть поля описания элемента с использованием группировки полей (см. рисунок 4)"]
[null,"Функциональная кнопка «Удалить»         располагается в правом верхнем углу добавленных элементов и позволяет удалить выбранный элемент (см. рисунок 4)"]

{"sheet":"Шаблоны","index":9,"n_rows":307,"n_cols":11,"rows_kept":307,"cut":false,"hidden":true,"merged":[]}
[]
[null,null,null,null,{"$f":"'Форма заявки'!$E$54&\".(#)\"","v":"1.13.(#)"},"Результат №(#)"]
[]
[null,null,null,null,{"$f":"'Форма заявки'!$E$54&\".(#).1\"","v":"1.13.(#).1"},"Выберите тип достигнутого результата из списка. Если в списке нет нужного наименования - впишите его самостоятельно"]
[]
[]
[null,null,null,null,{"$f":"'Форма заявки'!$E$54&\".(#).2\"","v":"1.13.(#).2"},"Укажите объекты интеллектуальной собственности, относящиеся к результату. Для добавления нажмите кнопку \"Добавить объект интеллектуальной собственности\""]
[]
[]
[]
[]
[null,null,null,null,{"$f":"'Форма заявки'!$E$54&\".(##).2.(#)\"","v":"1.13.(##).2.(#)"},"Объект интеллектуальной собственности №(#)"]
[]
[null,null,null,null,{"$f":"'Форма заявки'!$E$54&\".(##).2.(#).1\"","v":"1.13.(##).2.(#).1"},"Укажите тип объекта интеллектуальной собственности"]
[]
[null,null,null,null,{"$f":"'Форма заявки'!$E$54&\".(##).2.(#).2\"","v":"1.13.(##).2.(#).2"},"Укажите территорию правовой защиты ОИС. Если в списке нет нужного наименования - впишите его самостоятельно"]
[]
[]
[]
[null,null,null,null,{"$f":"'Форма заявки'!$E$88&\".(#)\"","v":"1.18.(#)"},"Эффект (#). Выберите тип эффекта из списка. Если в списке нет нужного наименования - впишите его самостоятельно"]
[]
[]
[]
[null,null,null,null,null,"Бизнес-процесс (#4)-го уровня"]
[]
[null,null,null,null,"2.6.(#)","Введите наименование процесса"]
[null,null,null,null,null,"Поле для ввода наименования процесса"]
[]
[]
[null,null,null,null,"2.7.(#)","Показатель №(#)"]
[]
[null,null,null,null,"2.7.(#).1","Выберите наименование показателя из списка. Если в списке нет нужного показателя - впишите его самостоятельно"]
[]
[]
[null,null,null,null,"2.7.(#).2","Выберите причину, по которой данный показатель должен быть улучшен. Если в списке нет нужной причины - впишите её самостоятельно"]
[]
[]
[]
[null,null,null,null,"2.8.(#)","Компонент инновации"]
[]
[null,null,null,null,"2.8.(#).1","Выберите категорию компонента"]
[]
[]
[null,null,null,null,"2.8.(#).2","Выберите тип из списка. Если в списке нет нужного значения - впишите его самостоятельно"]
[]
[]
[null,null,null,null,"2.8.(#).3","Введите наименование компонента инновации"]
[null,null,null,null,null,"Поле для ввода наименования компонента инновации"]
[]
[null,null,null,null,"2.8.(#).4","Укажите показатели, являющиеся характеристиками компонента инновации. Данные показатели должны оказывать влияние на характеристики процесса или других компонентов инновационного продукта"]
[]
[]
[]
[]
[null,null,null,null,null,"Показатель №(#)"]
[]
[null,null,null,null,"2.8.(##).4.(#)","Выберите наименование показателя, характеризующего компонент инновации из списка. Если в списке нет нужного показателя - впишите его самостоятельно"]
[]
[]
[null,null,null,null,null,"Для полноты описания показателя необходимо указать, на какой показатель процесса или других компонентов инновации он влияет.\nДля этого нужно выбрать зависимый показатель и указать тип воздействия"]
[]
[]
[]
[]
[null,null,null,null,"2.8.(###).4.(##).(#)","Зависимый показатель №(#)"]
[]
[null,null,null,null,"2.8.(###).4.(##).(#).1","Выберите зависимый показатель из списка"]
[]
[]
[null,null,null,null,"2.8.(###).4.(##).(#).2","Выберите тип зависимости из списка или введите его вручную"]
[]
[]
[null,null,null,null,"2.8.(###).4.(##).(#).3","Оцените степень изменения зависимого показателя в случае изменения влияющего показателя на 1% (в процентном выражении)"]
[null,null,null,null,null,"Поле для ввода степени зависимости показателя (%)"]
[]
[]
[]
[null,null,null,"Этап НИР. Научно-исследовательские работы."]
[]
[null,null,null,null,"3.(#).1","Укажите предполагаемые сроки реализации этапа"]
[null,null,null,null,null,"Поле для ввода сроков реализации. Пример: май 2015 - сентябрь 2015"]
[]
[null,null,null,null,"3.(#).2","Укажите наименование дочернего общества Компании, привлеченного к выполнению этапа"]
[]
[]
[null,null,null,null,"Работы этапа"]
[null,null,null,null,null,"Опишите работы, входящие в состав этапа. Для добавления новой работы нажмите кнопку \"Добавить работу\""]
[]
[]
[]
[]
[]
[null,null,null,"Этап ОКР. Опытно-конструкторские работы "]
[]
[null,null,null,null,"3.(#).1","Укажите предполагаемые сроки реализации этапа"]
[null,null,null,null,null,"Поле для ввода сроков реализации. Пример: май 2015 - сентябрь 2015"]
[]
[null,null,null,null,"3.(#).2","Укажите наименование дочернего общества Компании, привлеченного к выполнению этапа"]
[]
[]
[null,null,null,null,"Работы этапа"]
[null,null,null,null,null,"Опишите работы, входящие в состав этапа. Для добавления новой работы нажмите кнопку \"Добавить работу\""]
[]
[]
[]
[]
[]
[null,null,null,"Этап ОПР. Опытно-промышленные работы (Испытание новой технологии) "]
[]
[null,null,null,null,"3.(#).1","Укажите предполагаемые сроки реализации этапа"]
[null,null,null,null,null,"Поле для ввода сроков реализации. Пример: май 2015 - сентябрь 2015"]
[]
[null,null,null,null,"3.(#).2","Укажите наименование дочернего общества Компании, привлеченного к выполнению этапа"]
[]
[]
[null,null,null,null,"Работы этапа"]
[null,null,null,null,null,"Опишите работы, входящие в состав этапа. Для добавления новой работы нажмите кнопку \"Добавить работу\""]
[]
[]
[]
[]
[]
[null,null,null,"Этап Внедрение и коммерциализация "]
[]
[null,null,null,null,"3.(#).1","Укажите предполагаемые сроки реализации этапа"]
[null,null,null,null,null,"Поле для ввода сроков реализации. Пример: май 2015 - сентябрь 2015"]
[]
[null,null,null,null,"3.(#).2","Укажите наименование дочернего общества Компании, привлеченного к выполнению этапа"]
[]
[]
[null,null,null,null,"Работы этапа"]
[null,null,null,null,null,"Опишите работы, входящие в состав этапа. Для добавления новой работы нажмите кнопку \"Добавить работу\""]
[]
[]
[]
[]
[null,null,null,null,null,"Работа №(#)",null,null,null,null,"НИР"]
[]
[null,null,null,null,"3.(##).(#3).1","Выберите наименование работы из списка. Если в списке нет нужного наименования - впишите его самостоятельно"]
[]
[]
[null,null,null,null,"3.(##).(#3).2","Укажите компанию-подрядчика для выполнения работы"]
[null,null,null,null,null,"Поле для самостоятельного указания компании-подрядчика"]
[]
[null,null,null,null,"3.(##).(#3).3","Укажите ориентировочную стоимость работ в рублях"]
[null,null,null,null,null,"Поле для самостоятельного ввода стоимости работы"]
[]
[null,null,null,null,"3.(##).(#3).4","Перечислите организации, которые планируются к привлечению в ходе работ"]
[]
[]
[]
[null,null,null,null,"3.(##).(#3).5","Укажите результаты работы. Для добавления нового результата нажмите кнопку \"Добавить результат работы\""]
[]
[]
[]
[]
[null,null,null,null,null,"Работа №(#)",null,null,null,null,"ОКР"]
[]
[null,null,null,null,"3.(##).(#3).1","Выберите наименование работы из списка. Если в списке нет нужного наименования - впишите его самостоятельно"]
[]
[]
[null,null,null,null,"3.(##).(#3).2","Укажите компанию-подрядчика для выполнения работы"]
[null,null,null,null,null,"Поле для самостоятельного указания компании-подрядчика"]
[]
[null,null,null,null,"3.(##).(#3).3","Укажите ориентировочную стоимость работ в рублях"]
[null,null,null,null,null,"Поле для самостоятельного ввода стоимости работы"]
[]
[null,null,null,null,"3.(##).(#3).4","Перечислите организации, которые планируются к привлечению в ходе работ"]
[]
[]
[]
[null,null,null,null,"3.(##).(#3).5","Укажите результаты работы. Для добавления нового результата нажмите кнопку \"Добавить результат работы\""]
[]
[]
[]
[]
[null,null,null,null,null,"Работа №(#)",null,null,null,null,"ОПР"]
[]
[null,null,null,null,"3.(##).(#3).1","Выберите наименование работы из списка. Если в списке нет нужного наименования - впишите его самостоятельно"]
[]
[]
[null,null,null,null,"3.(##).(#3).2","Укажите компанию-подрядчика для выполнения работы"]
[null,null,null,null,null,"Поле для самостоятельного указания компании-подрядчика"]
[]
[null,null,null,null,"3.(##).(#3).3","Укажите ориентировочную стоимость работ в рублях"]
[null,null,null,null,null,"Поле для самостоятельного ввода стоимости работы"]
[]
[null,null,null,null,"3.(##).(#3).4","Перечислите организации, которые планируются к привлечению в ходе работ"]
[]
[]
[]
[null,null,null,null,"3.(##).(#3).5","Укажите результаты работы. Для добавления нового результата нажмите кнопку \"Добавить результат работы\""]
[]
[]
[]
[]
[null,null,null,null,null,"Работа №(#)",null,null,null,null,"ВНД"]
[]
[null,null,null,null,"3.(##).(#3).1","Выберите наименование работы из списка. Если в списке нет нужного наименования - впишите его самостоятельно"]
[]
[]
[null,null,null,null,"3.(##).(#3).2","Укажите компанию-подрядчика для выполнения работы"]
[null,null,null,null,null,"Поле для самостоятельного указания компании-подрядчика"]
[]
[null,null,null,null,"3.(##).(#3).3","Укажите ориентировочную стоимость работ в рублях"]
[null,null,null,null,null,"Поле для самостоятельного ввода стоимости работы"]
[]
[null,null,null,null,"3.(##).(#3).4","Перечислите организации, которые планируются к привлечению в ходе работ"]
[]
[]
[]
[null,null,null,null,"3.(##).(#3).5","Укажите результаты работы. Для добавления нового результата нажмите кнопку \"Добавить результат работы\""]
[]
[]
[]
[]
[null,null,null,null,"3.(###).(##3).4.(#)","Организация №(#)"]
[]
[null,null,null,null,"3.(###).(##3).4.(#).1","Введите наименование организации-соисполнителя работ"]
[null,null,null,null,null,"Поле для ввода наименования организации"]
[]
[null,null,null,null,"3.(###).(##3).4.(#).2","Выберите тип работ, исполняемых организацией, из списка. Если в списке нет нужного наименования - впишите его самостоятельно"]
[]
[]
[null,null,null,null,"3.(###).(##3).4.(#).3","Укажите ориентировочную стоимость работ, выполняемых организацией соисполнителем, в рублях"]
[null,null,null,null,null,"Поле для самостоятельного ввода стоимости работы"]
[]
[]
[null,null,null,null,null,"Результат №(#)"]
[]
[null,null,null,null,"3.(###).(##3).5.(#)","Выберите наименование результата работы из списка. Если в списке нет нужного наименования - впишите его самостоятельно"]
[]
[]
[]
[]
[null,null,null,null,null,"Аналог №(#0)"]
[]
[null,null,null,null,"4.6.(#).1","Укажите наименование аналога инновационного продукта"]
[null,null,null,null,null,"Поле для самостоятельного ввода аналога инновационного продукта"]
[]
[null,null,null,null,"4.6.(#).2","Введите наименование компании, представляющей аналог на рынке"]
[null,null,null,null,null,"Поле для самостоятельного ввода компании-поставщика"]
[]
[null,null,null,null,"4.6.(#).3","Укажите компании, являющиеся потребителями аналога инновационного продукта"]
[null,null,null,null,null,"Поле для ввода наименований компаний, являющихся потребителями аналога"]
[]
[null,null,null,null,"4.6.(#).4","Оцените количество успешных внедрений аналога (единиц внедрения)"]
[null,null,null,null,null,"Поле для ввода количества внедрений аналога"]
[]
[null,null,null,null,"4.6.(#).5","Укажите показатели, по которым аналог может быть сопоставлен инновационному продукту. Для добавления показателя используйте кнопку \"Добавить показатель для сравнения\". "]
[]
[]
[]
[]
[]
[null,null,null,null,"4.6.(##).5.(#)","Показатель для сравнения №(#)"]
[]
[null,null,null,null,"4.6.(##).5.(#).1","Выберите показатель для сравнения из списка или введите название вручную"]
[]
[]
[null,null,null,null,"4.6.(##).5.(#).2","Выберите из списка уровень превосходства инновационного продукта над аналогом"]
[]
[]
[]
[]
[null,null,null,null,"5.(#)","Риск №(#)"]
[]
[null,null,null,null,"5.(#).1","Введите наименование риска"]
[null,null,null,null,null,"Поле для ввода наименования риска"]
[]
[null,null,null,null,"5.(#).2","Выберите тип риска из списка. При необходимости укажите тип риска самостоятельно."]
[]
[]
[null,null,null,null,"5.(#).3","Выберите тип ущерба от риска из списка. При необходимости укажите тип ущерба от риска самостоятельно"]
[]
[]
[null,null,null,null,"5.(#).4","Укажите, к какому этапу реализации проекта может быть отнесён данный риск, выбрав его из списка"]
[]
[]
[null,null,null,null,"5.(#).5","Выберите показатель, характеризующий инновационный продукт, на который окажет воздействие рисковое событие"]
[]
[]
[null,null,null,null,"5.(#).6","Выберите из списка тип воздействия риска на показатель"]
[]
[]
[null,null,null,null,"5.(#).7","Оцените степень изменения показателя в результате реализации риска в процентном выражении"]
[null,null,null,null,null,"Поле для ввода степени изменения показателя от реализации риска"]
[]
[null,null,null,null,"5.(#).8","Оцените критичность риска, в случае его реализации, выбрав её из списка"]
[]
[]
[null,null,null,null,"5.(#).9","Оцените вероятность реализации риска, выбрав её из списка"]
[]
[]
[]
[null,null,null,null,"5.(#).10","Укажите антирисковые инициативы, которые могут быть направлены на нейтрализацию данного риска. Для добавления инициативы нажмите кнопку \"Добавить инициативу\""]
[]
[]
[]
[]
[]
[null,null,null,null,"5.(##).10.(#)","Инициатива №(#)"]
[]
[null,null,null,null,"5.(##).10.(#).1","Выберите наименование типа антирисковой инициативы из списка. При необходимости введите его самостоятельно"]
[]
[]
[null,null,null,null,"5.(##).10.(#).2","Выберите наименование антирисковой инициативы из списка. При необходимости введите его самостоятельно"]

{"sheet":"Шаблоны фигур","index":10,"n_rows":0,"n_cols":0,"rows_kept":0,"cut":false,"hidden":true,"merged":[]}

{"sheet":"Динамические справочники","index":11,"n_rows":151,"n_cols":7,"rows_kept":151,"cut":false,"hidden":true,"merged":[]}
["Процесс нижнего уровня","Показатели процесса нижнего уровня","Имя диапазона","Название для справочника","Показатели компонентов инновации","Имя диапазона"]
[{"$f":"IF(this_bp5=\"\",IF(this_bp4=\"\",IF(this_bp3=\"\",IF(this_bp2=\"\",this_bp1,this_bp2),this_bp3),this_bp4),this_bp5)","v":"БП1 ГРУППА ОСНОВНЫХ ПРОЦЕССОВ "},null,null,{"$f":"IF(OFFSET(D2,0,-2)=\"\",\"\",\"[\"&_process&\"].\"&OFFSET(D2,0,-2))","v":""},{"$f":"\"[\"&'Форма заявки'!$F$139&\"].\"&'Форма заявки'!$F$145","v":"[Поле для ввода наименования компонента инновации]."},"Item_1_1",{"$f":"IFERROR(IF(ROW()-ROW($G$1)>IF(ISERR(INDEX(_process_items,1,1)),0,COUNTA(_process_items_prep)),INDEX(_component_items,ROW()-IF(ISERR(INDEX(_process_items,1,1)),0,COUNTA(_process_items_prep))-ROW($G$1)),INDEX(_process_items_prep,ROW()-ROW($G$1))),\"\")","v":"[Поле для ввода наименования компонента инновации]."}]
[null,null,null,"",null,null,""]
[null,null,null,"",null,null,""]
[null,null,null,"",null,null,""]
[null,null,null,"",null,null,""]
[null,null,null,"",null,null,""]
[null,null,null,"",null,null,""]
[null,null,null,"",null,null,""]
[null,null,null,"",null,null,""]
[null,null,null,"",null,null,""]
[null,null,null,"",null,null,""]
[null,null,null,"",null,null,""]
[null,null,null,"",null,null,""]
[null,null,null,"",null,null,""]
[null,null,null,"",null,null,""]
[null,null,null,"",null,null,""]
[null,null,null,"",null,null,""]
[null,null,null,"",null,null,""]
[null,null,null,"",null,null,""]
[null,null,null,"",null,null,""]
[null,null,null,"",null,null,""]
[null,null,null,"",null,null,""]
[null,null,null,"",null,null,""]
[null,null,null,"",null,null,""]
[null,null,null,"",null,null,""]
[null,null,null,"",null,null,""]
[null,null,null,"",null,null,""]
[null,null,null,"",null,null,""]
[null,null,null,"",null,null,""]
[null,null,null,"",null,null,""]
[null,null,null,"",null,null,""]
[null,null,null,"",null,null,""]
[null,null,null,{"$f":"IF(OFFSET(D34,0,-2)=\"\",\"\",\"[\"&_process&\"].\"&OFFSET(D34,0,-2))","v":""},null,null,{"$f":"IFERROR(IF(ROW()-ROW($G$1)>IF(ISERR(INDEX(_process_items,1,1)),0,COUNTA(_process_items_prep)),INDEX(_component_items,ROW()-IF(ISERR(INDEX(_process_items,1,1)),0,COUNTA(_process_items_prep))-ROW($G$1)),INDEX(_process_items_prep,ROW()-ROW($G$1))),\"\")","v":""}]
[null,null,null,"",null,null,""]
[null,null,null,"",null,null,""]
[null,null,null,"",null,null,""]
[null,null,null,"",null,null,""]
[null,null,null,"",null,null,""]
[null,null,null,"",null,null,""]
[null,null,null,"",null,null,""]
[null,null,null,"",null,null,""]
[null,null,null,"",null,null,""]
[null,null,null,"",null,null,""]
[null,null,null,"",null,null,""]
[null,null,null,"",null,null,""]
[null,null,null,"",null,null,""]
[null,null,null,"",null,null,""]
[null,null,null,"",null,null,""]
[null,null,null,"",null,null,""]
[null,null,null,"",null,null,""]
[null,null,null,null,null,null,""]
[null,null,null,null,null,null,""]
[null,null,null,null,null,null,""]
[null,null,null,null,null,null,""]
[null,null,null,null,null,null,""]
[null,null,null,null,null,null,""]
[null,null,null,null,null,null,""]
[null,null,null,null,null,null,""]
[null,null,null,null,null,null,""]
[null,null,null,null,null,null,""]
[null,null,null,null,null,null,""]
[null,null,null,null,null,null,""]
[null,null,null,null,null,null,""]
[null,null,null,null,null,null,""]
[null,null,null,null,null,null,{"$f":"IFERROR(IF(ROW()-ROW($G$1)>IF(ISERR(INDEX(_process_items,1,1)),0,COUNTA(_process_items_prep)),INDEX(_component_items,ROW()-IF(ISERR(INDEX(_process_items,1,1)),0,COUNTA(_process_items_prep))-ROW($G$1)),INDEX(_process_items_prep,ROW()-ROW($G$1))),\"\")","v":""}]
[null,null,null,null,null,null,""]
[null,null,null,null,null,null,""]
[null,null,null,null,null,null,""]
[null,null,null,null,null,null,""]
[null,null,null,null,null,null,""]
[null,null,null,null,null,null,""]
[null,null,null,null,null,null,""]
[null,null,null,null,null,null,""]
[null,null,null,null,null,null,""]
[null,null,null,null,null,null,""]
[null,null,null,null,null,null,""]
[null,null,null,null,null,null,""]
[null,null,null,null,null,null,""]
[null,null,null,null,null,null,""]
[null,null,null,null,null,null,""]
[null,null,null,null,null,null,""]
[null,null,null,null,null,null,""]
[null,null,null,null,null,null,""]
[null,null,null,null,null,null,""]
[null,null,null,null,null,null,""]
[null,null,null,null,null,null,""]
[null,null,null,null,null,null,""]
[null,null,null,null,null,null,""]
[null,null,null,null,null,null,""]
[null,null,null,null,null,null,""]
[null,null,null,null,null,null,""]
[null,null,null,null,null,null,""]
[null,null,null,null,null,null,""]
[null,null,null,null,null,null,""]
[null,null,null,null,null,null,""]
[null,null,null,null,null,null,""]
[null,null,null,null,null,null,{"$f":"IFERROR(IF(ROW()-ROW($G$1)>IF(ISERR(INDEX(_process_items,1,1)),0,COUNTA(_process_items_prep)),INDEX(_component_items,ROW()-IF(ISERR(INDEX(_process_items,1,1)),0,COUNTA(_process_items_prep))-ROW($G$1)),INDEX(_process_items_prep,ROW()-ROW($G$1))),\"\")","v":""}]
[null,null,null,null,null,null,""]
[null,null,null,null,null,null,""]
[null,null,null,null,null,null,""]
[null,null,null,null,null,null,""]
[null,null,null,null,null,null,""]
[null,null,null,null,null,null,""]
[null,null,null,null,null,null,""]
[null,null,null,null,null,null,""]
[null,null,null,null,null,null,""]
[null,null,null,null,null,null,""]
[null,null,null,null,null,null,""]
[null,null,null,null,null,null,""]
[null,null,null,null,null,null,""]
[null,null,null,null,null,null,""]
[null,null,null,null,null,null,""]
[null,null,null,null,null,null,""]
[null,null,null,null,null,null,""]
[null,null,null,null,null,null,""]
[null,null,null,null,null,null,""]
[null,null,null,null,null,null,""]
[null,null,null,null,null,null,""]
[null,null,null,null,null,null,""]
[null,null,null,null,null,null,""]
[null,null,null,null,null,null,""]
[null,null,null,null,null,null,""]
[null,null,null,null,null,null,""]
[null,null,null,null,null,null,""]
[null,null,null,null,null,null,""]
[null,null,null,null,null,null,""]
[null,null,null,null,null,null,""]
[null,null,null,null,null,null,""]
[null,null,null,null,null,null,{"$f":"IFERROR(IF(ROW()-ROW($G$1)>IF(ISERR(INDEX(_process_items,1,1)),0,COUNTA(_process_items_prep)),INDEX(_component_items,ROW()-IF(ISERR(INDEX(_process_items,1,1)),0,COUNTA(_process_items_prep))-ROW($G$1)),INDEX(_process_items_prep,ROW()-ROW($G$1))),\"\")","v":""}]
[null,null,null,null,null,null,""]
[null,null,null,null,null,null,""]
[null,null,null,null,null,null,""]
[null,null,null,null,null,null,""]
[null,null,null,null,null,null,""]
[null,null,null,null,null,null,""]
[null,null,null,null,null,null,""]
[null,null,null,null,null,null,""]
[null,null,null,null,null,null,""]
[null,null,null,null,null,null,""]
[null,null,null,null,null,null,""]
[null,null,null,null,null,null,""]
[null,null,null,null,null,null,""]
[null,null,null,null,null,null,""]
[null,null,null,null,null,null,""]
[null,null,null,null,null,null,""]
[null,null,null,null,null,null,""]
[null,null,null,null,null,null,""]
[null,null,null,null,null,null,""]
[null,null,null,null,null,null,""]
[null,null,null,null,null,null,""]